{"text_format":"1","workbook":"xlsx","n_sheets":7,"sheets":["Datos","Clave Taxomonica ","Definiciones","ListaElementos","EncabezadosStandard","Vocabulario","Instrucciones"],"not_rendered":{"charts":0,"images":5,"macros":1,"external_links":0,"defined_names":161,"comments":0,"pivot_tables":0},"unopened":[],"bounds":{"document_bytes":16777216,"sheet_cells":100000,"rows_first":2000,"rows_last":500,"rows_between":2000,"halvings":0,"cell_chars":16384,"cell_head_chars":4096},"cells_cut":0,"cells_raw":0,"read":"whole","date_system":"1900"}

{"sheet":"Datos","index":0,"n_rows":112,"n_cols":109,"rows_kept":112,"cut":false,"hidden":false,"merged":[]}
["occurrenceID","basisOfRecord","type","language","license","rightsHolder","accessRights","institutionID","datasetID","institutionCode","collectionCode","datasetName","ownerInstitutionCode","catalogNumber","recordNumber","recordedBy","individualCount","occurrenceStatus","eventID","samplingProtocol","samplingEffort","eventDate","habitat","locationID","higherGeography","continent","waterBody","islandGroup","island","country","countryCode","stateProvince","municipality","county","locality","minimumDepthInMeters","maximumDepthInMeters","locationAccordingTo","locationRemarks","verbatimLatitude","verbatimLongitude","verbatimCoordinateSystem","verbatimSRS","decimalLatitude","decimalLongitude","geodeticDatum","georeferencedBy","georeferencedDate","georeferenceProtocol","georeferenceSources","georeferenceVerificationStatus","georeferenceRemarks","identifiedBy","dateIdentified","identificationRemarks","identificationQualifier","scientificNameID","scientificName","occurrenceRemarks","eventTime","fieldNumber","fieldNotes","eventRemarks","verbatimLocality","verbatimElevation","minimumElevationInMeters","maximumElevationInMeters","verbatimDepth","minimumDistanceAboveSurfaceInMeters","maximumDistanceAboveSurfaceInMeters","verbatimCoordinates","coordinateUncertaintyInMeters","coordinatePrecision","pointRadiusSpatialFit","footprintWKT","footprintSRS","footprintSpatialFit","geologicalContextID","earliestEonOrLowestEonothem","latestEonOrHighestEonothem","earliestEraOrLowestErathem","latestEraOrHighestErathem","earliestPeriodOrLowestSystem","latestPeriodOrHighestSystem","earliestEpochOrLowestSeries","latestEpochOrHighestSeries","earliestAgeOrLowestStage","latestAgeOrHighestStage","lowestBiostratigraphicZone","highestBiostratigraphicZone","lithostratigraphicTerms","group","formation","member","bed","identificationQualifier","higherClassification","kingdom","phylum","class","order","family","genus","subgenus","specificEpithet","taxonRank","scientificNameAuthorship","nomenclaturalCode","taxonomicStatus"]
["ID del registro biológico","Base del registro","Tipo","Idioma","licencia","Titular de los derechos","Derechos de acceso","ID de la institución","ID del conjunto de datos","Código de la institución","Código de la colección","Nombre del conjunto de datos","Código de la institución propietaria","Número de catálogo","Número de registro","Registrado por","Número de individuos","Estado del registro biológico","ID del evento","Protocolo de muestreo","Esfuerzo de muestreo","Fecha del evento","Hábitat","ID de la ubicación","Geografía superior","Continente","Cuerpo de agua","Grupo de islas","Isla","País","Código del país","Departamento","Municipio","Centro poblado / Cabecera municipal","Localidad","Profundidad mínima en metros","Profundidad máxima en metros","Ubicación de acuerdo con","Comentarios de la ubicación","Latitud original","Longitud original","Sistema original de coordenadas","SRS original","Latitud decimal","Longitud decimal","Datum geodésico","Georreferenciado por","Fecha de georreferenciación","Protocolo de georreferenciación","Fuentes de georreferenciación","Estado de la verificación de la georreferenciación","Comentarios de la georreferenciación","Identificado por","Fecha de identificación","Comentarios de la Identificación","Calificador de la identificación","ID del nombre científico","Nombre científico","Comentarios del registro biológico","Hora del evento","Número de campo","Notas de campo","Comentarios del evento","Localidad original","Elevación original","Elevación mínima en metros","Elevación máxima en metros","Profundidad original","Distancia mínima de la superficie metros","Distancia máxima de la superficie metros","Coordenadas originales","Incertidumbre de las coordenadas en metros","Precisión de las coordenadas","Ajuste espacial del radio-punto","WKT footprint","SRS footprint","Ajuste espacial de footprint","ID del contexto geológico","Eón temprano o eonotema inferior","Eón tardío o eonotema superior","Era temprana o eratema inferior","Era tardía o eratema superior","Periodo temprano o sistema inferior","Periodo tardío o sistema superior","Época temprana o serie inferior","Época tardía o serie superior","Edad temprana o piso inferior","Edad tardía o piso superior","Zona bioestratigráfica inferior","Zona bioestratigráfica superior","Términos litoestratigráficos","Grupo","Formación","Miembro","Capa","Calificador de la identificación","Clasificación superior","Reino","Filo","Clase","Orden","Familia","Género","Subgénero","Epíteto específico","Categoría del taxón","Autoría del nombre científico","Código nomenclatural","Estado taxonómico"]
["INVEMAR:CORALINA:SAI2018:MCE:001","Observación humana","Evento","ES","Creative Commons Attribution Non Commercial (CC-BY-NC) 4.0 License","INVEMAR","Sólo para uso no comercial","ColombiaNIT:800250062-0","INV_CoralinaSAI2018_MCE","INVEMAR","INVEMARCORALINASAI2018","Biodiversidad de los ecosistemas de coral mesofóticos en San andrés islas 2018","INVEMAR","INV_CoralinaSAI2018_MCE:001","1","Katherine Mejía",null,"Presente",null,"Censo visual","6 inmersiones con rebreather","2018-04-16/2018-04-19","Ecosistema de coral mesofótico","http://marineregions.org/mrgid/48551","SA | Colombia | Archipiélago se San Andrés, Providencia y Santa Catalina","SA","Mar Caribe","Archipiélago de San Andrés, Providencia y Santa Catalina","Isla de San Andrés","Colombia","CO","Archipiélago de San Andrés, Providencia y Santa Catalina","San Andrés",null,"Nirvana",40,50,"Dato in situ usando GPS","Sitio de buceo en el costado occidental de la Isla de San Andrés","12° 30,142' N","81° 44,038' W","Grados, Minutos decimales - GMS","WGS84",12.502359999999999,-81.733959999999996,"WGS84","Luis Chasqui","2018-04-16","http://www.gbif.org/orc/?doc_id=1288",null,"Verificado por el proveedor de datos","Georreferenciado in situ con GPS","Natalia Rincón","2020-02-13","identificado in situ con base en morfología",null,"urn:lsid:marinespecies.org:taxname:211515","Halimeda copiosa",null,null,null,null,null,null,null,null,null,null,null,null,null,null,null,null,null,null,null,null,null,null,null,null,null,null,null,null,null,null,null,null,null,null,null,null,null,null,{"$f":" CONCATENATE(CT3,CU3,CV3,CW3,CX3,CY3,CZ3,DA3)","v":"Plantae Chlorophyta Ulvophyceae BryopsidalesHalimedaceae Halimedacopiosa"},"Plantae ","Chlorophyta ","Ulvophyceae ","Bryopsidales","Halimedaceae ","Halimeda",null,"copiosa","Especie","Goreau & E.A.Graham, 1967","ICBN","Aceptado"]
["INVEMAR:CORALINA:SAI2018:MCE:002","Observación humana","Evento","ES","Creative Commons Attribution Non Commercial (CC-BY-NC) 4.0 License","INVEMAR","Sólo para uso no comercial","ColombiaNIT:800250062-0","INV_CoralinaSAI2018_MCE","INVEMAR","INVEMARCORALINASAI2018","Biodiversidad de los ecosistemas de coral mesofóticos en San andrés islas 2018","INVEMAR","INV_CoralinaSAI2018_MCE:002","2","Katherine Mejía",null,"Presente",null,"Censo visual","6 inmersiones con rebreather","2018-04-16/2018-04-19","Ecosistema de coral mesofótico","http://marineregions.org/mrgid/48551","SA | Colombia | Archipiélago se San Andrés, Providencia y Santa Catalina","SA","Mar Caribe","Archipiélago de San Andrés, Providencia y Santa Catalina","Isla de San Andrés","Colombia","CO","Archipiélago de San Andrés, Providencia y Santa Catalina","San Andrés",null,"Nirvana",50,70,"Dato in situ usando GPS","Sitio de buceo en el costado occidental de la Isla de San Andrés","12° 30,142' N","81° 44,038' W","Grados, Minutos decimales - GMS","WGS84",12.502359999999999,-81.733959999999996,"WGS84","Luis Chasqui","2018-04-16","http://www.gbif.org/orc/?doc_id=1288",null,"Verificado por el proveedor de datos","Georreferenciado in situ con GPS","Natalia Rincón","2020-02-13","identificado in situ con base en morfología",null,"urn:lsid:marinespecies.org:taxname:144483","Halimeda tuna",null,null,null,null,null,null,null,null,null,null,null,null,null,null,null,null,null,null,null,null,null,null,null,null,null,null,null,null,null,null,null,null,null,null,null,null,null,null,{"$f":" CONCATENATE(CT4,CU4,CV4,CW4,CX4,CY4,CZ4,DA4)","v":"Plantae Chlorophyta Ulvophyceae BryopsidalesHalimedaceae Halimedatuna"},"Plantae ","Chlorophyta ","Ulvophyceae ","Bryopsidales","Halimedaceae ","Halimeda",null,"tuna","Especie","(J.Ellis & Solander) J.V.Lamouroux, 1816","ICBN","Aceptado"]
["INVEMAR:CORALINA:SAI2018:MCE:003","Observación humana","Evento","ES","Creative Commons Attribution Non Commercial (CC-BY-NC) 4.0 License","INVEMAR","Sólo para uso no comercial","ColombiaNIT:800250062-0","INV_CoralinaSAI2018_MCE","INVEMAR","INVEMARCORALINASAI2018","Biodiversidad de los ecosistemas de coral mesofóticos en San andrés islas 2018","INVEMAR","INV_CoralinaSAI2018_MCE:003","3","Katherine Mejía y Luis Chasqui",null,"Presente",null,"Censo visual","6 inmersiones con rebreather","2018-04-16/2018-04-19","Ecosistema de coral mesofótico","http://marineregions.org/mrgid/48551","SA | Colombia | Archipiélago se San Andrés, Providencia y Santa Catalina","SA","Mar Caribe","Archipiélago de San Andrés, Providencia y Santa Catalina","Isla de San Andrés","Colombia","CO","Archipiélago de San Andrés, Providencia y Santa Catalina","San Andrés",null,"Nirvana",40,70,"Dato in situ usando GPS","Sitio de buceo en el costado occidental de la Isla de San Andrés","12° 30,142' N","81° 44,038' W","Grados, Minutos decimales - GMS","WGS84",12.502359999999999,-81.733959999999996,"WGS84","Luis Chasqui","2018-04-16","http://www.gbif.org/orc/?doc_id=1288",null,"Verificado por el proveedor de datos","Georreferenciado in situ con GPS","Natalia Rincón","2018-04-22","identificado in situ con base en morfología",null,"urn:lsid:marinespecies.org:taxname:143820","Halimeda ",null,null,null,null,null,null,null,null,null,null,null,null,null,null,null,null,null,null,null,null,null,null,null,null,null,null,null,null,null,null,null,null,null,null,null,null,null,null,{"$f":" CONCATENATE(CT5,CU5,CV5,CW5,CX5,CY5,CZ5,DA5)","v":"Plantae Chlorophyta Ulvophyceae BryopsidalesHalimedaceae Halimeda"},"Plantae ","Chlorophyta ","Ulvophyceae ","Bryopsidales","Halimedaceae ","Halimeda",null,null,"Género","J.V.Lamouroux, 1812","ICBN","Aceptado"]
["INVEMAR:CORALINA:SAI2018:MCE:004","Observación humana","Evento","ES","Creative Commons Attribution Non Commercial (CC-BY-NC) 4.0 License","INVEMAR","Sólo para uso no comercial","ColombiaNIT:800250062-0","INV_CoralinaSAI2018_MCE","INVEMAR","INVEMARCORALINASAI2018","Biodiversidad de los ecosistemas de coral mesofóticos en San andrés islas 2018","INVEMAR","INV_CoralinaSAI2018_MCE:004","4","Katherine Mejía y Luis Chasqui",null,"Presente",null,"Censo visual","6 inmersiones con rebreather","2018-04-16/2018-04-19","Ecosistema de coral mesofótico","http://marineregions.org/mrgid/48551","SA | Colombia | Archipiélago se San Andrés, Providencia y Santa Catalina","SA","Mar Caribe","Archipiélago de San Andrés, Providencia y Santa Catalina","Isla de San Andrés","Colombia","CO","Archipiélago de San Andrés, Providencia y Santa Catalina","San Andrés",null,"Nirvana",40,50,"Dato in situ usando GPS","Sitio de buceo en el costado occidental de la Isla de San Andrés","12° 30,142' N","81° 44,038' W","Grados, Minutos decimales - GMS","WGS84",12.502359999999999,-81.733959999999996,"WGS84","Luis Chasqui","2018-04-16","http://www.gbif.org/orc/?doc_id=1288",null,"Verificado por el proveedor de datos","Georreferenciado in situ con GPS","Katherine Mejía y Luis Chasqui","2018-04-22","identificado in situ con base en morfología",null,"urn:lsid:marinespecies.org:taxname:144086","Dictyota",null,null,null,null,null,null,null,null,null,null,null,null,null,null,null,null,null,null,null,null,null,null,null,null,null,null,null,null,null,null,null,null,null,null,null,null,null,null,"ChromistaOchrophyta Phaeophyceae Dictyotales Dictyotaceae Dictyota","Chromista","Ochrophyta ","Phaeophyceae ","Dictyotales ","Dictyotaceae ","Dictyota",null,null,"Género","J.V.Lamouroux, 1809","ICBN","Aceptado"]
["INVEMAR:CORALINA:SAI2018:MCE:005","Observación humana","Evento","ES","Creative Commons Attribution Non Commercial (CC-BY-NC) 4.0 License","INVEMAR","Sólo para uso no comercial","ColombiaNIT:800250062-0","INV_CoralinaSAI2018_MCE","INVEMAR","INVEMARCORALINASAI2018","Biodiversidad de los ecosistemas de coral mesofóticos en San andrés islas 2018","INVEMAR","INV_CoralinaSAI2018_MCE:005","5","Katherine Mejía y Luis Chasqui",null,"Presente",null,"Censo visual","6 inmersiones con rebreather","2018-04-16/2018-04-19","Ecosistema de coral mesofótico","http://marineregions.org/mrgid/48551","SA | Colombia | Archipiélago se San Andrés, Providencia y Santa Catalina","SA","Mar Caribe","Archipiélago de San Andrés, Providencia y Santa Catalina","Isla de San Andrés","Colombia","CO","Archipiélago de San Andrés, Providencia y Santa Catalina","San Andrés",null,"Nirvana",40,50,"Dato in situ usando GPS","Sitio de buceo en el costado occidental de la Isla de San Andrés","12° 30,142' N","81° 44,038' W","Grados, Minutos decimales - GMS","WGS84",12.502359999999999,-81.733959999999996,"WGS84","Luis Chasqui","2018-04-16","http://www.gbif.org/orc/?doc_id=1288",null,"Verificado por el proveedor de datos","Georreferenciado in situ con GPS","Katherine Mejía y Luis Chasqui","2018-04-22","identificado in situ con base en morfología",null,"urn:lsid:marinespecies.org:taxname:144087","Lobophora",null,null,null,null,null,null,null,null,null,null,null,null,null,null,null,null,null,null,null,null,null,null,null,null,null,null,null,null,null,null,null,null,null,null,null,null,null,null,"ChromistaOchrophyta Phaeophyceae Dictyotales Dictyotaceae Lobophora","Chromista","Ochrophyta ","Phaeophyceae ","Dictyotales ","Dictyotaceae ","Lobophora",null,null,"Género","J.Agardh, 1894","ICBN","Aceptado"]
["INVEMAR:CORALINA:SAI2018:MCE:006","Observación humana","Evento","ES","Creative Commons Attribution Non Commercial (CC-BY-NC) 4.0 License","INVEMAR","Sólo para uso no comercial","ColombiaNIT:800250062-0","INV_CoralinaSAI2018_MCE","INVEMAR","INVEMARCORALINASAI2018","Biodiversidad de los ecosistemas de coral mesofóticos en San andrés islas 2018","INVEMAR","INV_CoralinaSAI2018_MCE:006","6","Katherine Mejía",null,"Presente",null,"Censo visual","6 inmersiones con rebreather","2018-04-16/2018-04-19","Ecosistema de coral mesofótico","http://marineregions.org/mrgid/48551","SA | Colombia | Archipiélago se San Andrés, Providencia y Santa Catalina","SA","Mar Caribe","Archipiélago de San Andrés, Providencia y Santa Catalina","Isla de San Andrés","Colombia","CO","Archipiélago de San Andrés, Providencia y Santa Catalina","San Andrés",null,"Nirvana",50,70,"Dato in situ usando GPS","Sitio de buceo en el costado occidental de la Isla de San Andrés","12° 30,142' N","81° 44,038' W","Grados, Minutos decimales - GMS","WGS84",12.502359999999999,-81.733959999999996,"WGS84","Luis Chasqui","2018-04-16","http://www.gbif.org/orc/?doc_id=1288",null,"Verificado por el proveedor de datos","Georreferenciado in situ con GPS","Katherine Mejía","2018-04-22","identificado in situ con base en morfología",null,"urn:lsid:marinespecies.org:taxname:103302","Antipathes",null,null,null,null,null,null,null,null,null,null,null,null,null,null,null,null,null,null,null,null,null,null,null,null,null,null,null,null,null,null,null,null,null,null,null,null,null,null,"AnimaliaCnidariaAnthozoaAntipathariaAntipathidaeAntipathes","Animalia","Cnidaria","Anthozoa","Antipatharia","Antipathidae","Antipathes",null,null,"Género","Pallas, 1766","ICZN","Aceptado"]
["INVEMAR:CORALINA:SAI2018:MCE:007","Observación humana","Evento","ES","Creative Commons Attribution Non Commercial (CC-BY-NC) 4.0 License","INVEMAR","Sólo para uso no comercial","ColombiaNIT:800250062-0","INV_CoralinaSAI2018_MCE","INVEMAR","INVEMARCORALINASAI2018","Biodiversidad de los ecosistemas de coral mesofóticos en San andrés islas 2018","INVEMAR","INV_CoralinaSAI2018_MCE:007","7","Katherine Mejía",null,"Presente",null,"Censo visual","6 inmersiones con rebreather","2018-04-16/2018-04-19","Ecosistema de coral mesofótico","http://marineregions.org/mrgid/48551","SA | Colombia | Archipiélago se San Andrés, Providencia y Santa Catalina","SA","Mar Caribe","Archipiélago de San Andrés, Providencia y Santa Catalina","Isla de San Andrés","Colombia","CO","Archipiélago de San Andrés, Providencia y Santa Catalina","San Andrés",null,"Nirvana",50,70,"Dato in situ usando GPS","Sitio de buceo en el costado occidental de la Isla de San Andrés","12° 30,142' N","81° 44,038' W","Grados, Minutos decimales - GMS","WGS84",12.502359999999999,-81.733959999999996,"WGS84","Luis Chasqui","2018-04-16","http://www.gbif.org/orc/?doc_id=1288",null,"Verificado por el proveedor de datos","Georreferenciado in situ con GPS","Katherine Mejía","2018-04-22","identificado in situ con base en morfología",null,"urn:lsid:marinespecies.org:taxname:290178","Iciligorgia schrammi",null,null,null,null,null,null,null,null,null,null,null,null,null,null,null,null,null,null,null,null,null,null,null,null,null,null,null,null,null,null,null,null,null,null,null,null,null,null,"AnimaliaCnidariaAnthozoaAlcyonaceaAnthothelidae Iciligorgiaschrammi","Animalia","Cnidaria","Anthozoa","Alcyonacea","Anthothelidae ","Iciligorgia",null,"schrammi","Especie","Duchassaing, 1870","ICZN","Aceptado"]
["INVEMAR:CORALINA:SAI2018:MCE:008","Observación humana","Evento","ES","Creative Commons Attribution Non Commercial (CC-BY-NC) 4.0 License","INVEMAR","Sólo para uso no comercial","ColombiaNIT:800250062-0","INV_CoralinaSAI2018_MCE","INVEMAR","INVEMARCORALINASAI2018","Biodiversidad de los ecosistemas de coral mesofóticos en San andrés islas 2018","INVEMAR","INV_CoralinaSAI2018_MCE:008","8","Katherine Mejía",null,"Presente",null,"Censo visual","6 inmersiones con rebreather","2018-04-16/2018-04-19","Ecosistema de coral mesofótico","http://marineregions.org/mrgid/48551","SA | Colombia | Archipiélago se San Andrés, Providencia y Santa Catalina","SA","Mar Caribe","Archipiélago de San Andrés, Providencia y Santa Catalina","Isla de San Andrés","Colombia","CO","Archipiélago de San Andrés, Providencia y Santa Catalina","San Andrés",null,"Nirvana",40,50,"Dato in situ usando GPS","Sitio de buceo en el costado occidental de la Isla de San Andrés","12° 30,142' N","81° 44,038' W","Grados, Minutos decimales - GMS","WGS84",12.502359999999999,-81.733959999999996,"WGS84","Luis Chasqui","2018-04-16","http://www.gbif.org/orc/?doc_id=1288",null,"Verificado por el proveedor de datos","Georreferenciado in situ con GPS","Katherine Mejía","2018-04-22","identificado in situ con base en morfología",null,"urn:lsid:marinespecies.org:taxname:367981","Antillogorgia",null,null,null,null,null,null,null,null,null,null,null,null,null,null,null,null,null,null,null,null,null,null,null,null,null,null,null,null,null,null,null,null,null,null,null,null,null,null,"AnimaliaCnidariaAnthozoaAlcyonaceaGorgoniidae Antillogorgia","Animalia","Cnidaria","Anthozoa","Alcyonacea","Gorgoniidae ","Antillogorgia",null,null,"Género","Bayer, 1951","ICZN","Aceptado"]
["INVEMAR:CORALINA:SAI2018:MCE:009","Observación humana","Evento","ES","Creative Commons Attribution Non Commercial (CC-BY-NC) 4.0 License","INVEMAR","Sólo para uso no comercial","ColombiaNIT:800250062-0","INV_CoralinaSAI2018_MCE","INVEMAR","INVEMARCORALINASAI2018","Biodiversidad de los ecosistemas de coral mesofóticos en San andrés islas 2018","INVEMAR","INV_CoralinaSAI2018_MCE:009","9","Katherine Mejía",null,"Presente",null,"Censo visual","6 inmersiones con rebreather","2018-04-16/2018-04-19","Ecosistema de coral mesofótico","http://marineregions.org/mrgid/48551","SA | Colombia | Archipiélago se San Andrés, Providencia y Santa Catalina","SA","Mar Caribe","Archipiélago de San Andrés, Providencia y Santa Catalina","Isla de San Andrés","Colombia","CO","Archipiélago de San Andrés, Providencia y Santa Catalina","San Andrés",null,"Nirvana",40,50,"Dato in situ usando GPS","Sitio de buceo en el costado occidental de la Isla de San Andrés","12° 30,142' N","81° 44,038' W","Grados, Minutos decimales - GMS","WGS84",12.502359999999999,-81.733959999999996,"WGS84","Luis Chasqui","2018-04-16","http://www.gbif.org/orc/?doc_id=1288",null,"Verificado por el proveedor de datos","Georreferenciado in situ con GPS","Katherine Mejía","2018-04-22","identificado in situ con base en morfología",null,"urn:lsid:marinespecies.org:taxname:290032","Gorgonia mariae",null,null,null,null,null,null,null,null,null,null,null,null,null,null,null,null,null,null,null,null,null,null,null,null,null,null,null,null,null,null,null,null,null,null,null,null,null,null,"AnimaliaCnidariaAnthozoaAlcyonaceaGorgoniidae Gorgoniamariae","Animalia","Cnidaria","Anthozoa","Alcyonacea","Gorgoniidae ","Gorgonia",null,"mariae","Especie","Bayer, 1961","ICZN","Aceptado"]
["INVEMAR:CORALINA:SAI2018:MCE:010","Observación humana","Evento","ES","Creative Commons Attribution Non Commercial (CC-BY-NC) 4.0 License","INVEMAR","Sólo para uso no comercial","ColombiaNIT:800250062-0","INV_CoralinaSAI2018_MCE","INVEMAR","INVEMARCORALINASAI2018","Biodiversidad de los ecosistemas de coral mesofóticos en San andrés islas 2018","INVEMAR","INV_CoralinaSAI2018_MCE:010","10","Katherine Mejía",null,"Presente",null,"Censo visual","6 inmersiones con rebreather","2018-04-16/2018-04-19","Ecosistema de coral mesofótico","http://marineregions.org/mrgid/48551","SA | Colombia | Archipiélago se San Andrés, Providencia y Santa Catalina","SA","Mar Caribe","Archipiélago de San Andrés, Providencia y Santa Catalina","Isla de San Andrés","Colombia","CO","Archipiélago de San Andrés, Providencia y Santa Catalina","San Andrés",null,"Nirvana",40,50,"Dato in situ usando GPS","Sitio de buceo en el costado occidental de la Isla de San Andrés","12° 30,142' N","81° 44,038' W","Grados, Minutos decimales - GMS","WGS84",12.502359999999999,-81.733959999999996,"WGS84","Luis Chasqui","2018-04-16","http://www.gbif.org/orc/?doc_id=1288",null,"Verificado por el proveedor de datos","Georreferenciado in situ con GPS","Katherine Mejía","2018-04-22","identificado in situ con base en morfología",null,"urn:lsid:marinespecies.org:taxname:290045","Gorgonia ventalina",null,null,null,null,null,null,null,null,null,null,null,null,null,null,null,null,null,null,null,null,null,null,null,null,null,null,null,null,null,null,null,null,null,null,null,null,null,null,"AnimaliaCnidariaAnthozoaAlcyonaceaGorgoniidae Gorgoniaventalina","Animalia","Cnidaria","Anthozoa","Alcyonacea","Gorgoniidae ","Gorgonia",null,"ventalina","Especie","Linnaeus, 1758","ICZN","Aceptado"]
["INVEMAR:CORALINA:SAI2018:MCE:011","Observación humana","Evento","ES","Creative Commons Attribution Non Commercial (CC-BY-NC) 4.0 License","INVEMAR","Sólo para uso no comercial","ColombiaNIT:800250062-0","INV_CoralinaSAI2018_MCE","INVEMAR","INVEMARCORALINASAI2018","Biodiversidad de los ecosistemas de coral mesofóticos en San andrés islas 2018","INVEMAR","INV_CoralinaSAI2018_MCE:011","11","Katherine Mejía",null,"Presente",null,"Censo visual","6 inmersiones con rebreather","2018-04-16/2018-04-19","Ecosistema de coral mesofótico","http://marineregions.org/mrgid/48551","SA | Colombia | Archipiélago se San Andrés, Providencia y Santa Catalina","SA","Mar Caribe","Archipiélago de San Andrés, Providencia y Santa Catalina","Isla de San Andrés","Colombia","CO","Archipiélago de San Andrés, Providencia y Santa Catalina","San Andrés",null,"Nirvana",50,70,"Dato in situ usando GPS","Sitio de buceo en el costado occidental de la Isla de San Andrés","12° 30,142' N","81° 44,038' W","Grados, Minutos decimales - GMS","WGS84",12.502359999999999,-81.733959999999996,"WGS84","Luis Chasqui","2018-04-16","http://www.gbif.org/orc/?doc_id=1288",null,"Verificado por el proveedor de datos","Georreferenciado in situ con GPS","Katherine Mejía","2018-04-22","identificado in situ con base en morfología",null,"urn:lsid:marinespecies.org:taxname:125299","Nicella",null,null,null,null,null,null,null,null,null,null,null,null,null,null,null,null,null,null,null,null,null,null,null,null,null,null,null,null,null,null,null,null,null,null,null,null,null,null,"AnimaliaCnidariaAnthozoaAlcyonaceaEllisellidaeNicella","Animalia","Cnidaria","Anthozoa","Alcyonacea","Ellisellidae","Nicella",null,null,"Género","Gray, 1870","ICZN","Aceptado"]
["INVEMAR:CORALINA:SAI2018:MCE:012","Observación humana","Evento","ES","Creative Commons Attribution Non Commercial (CC-BY-NC) 4.0 License","INVEMAR","Sólo para uso no comercial","ColombiaNIT:800250062-0","INV_CoralinaSAI2018_MCE","INVEMAR","INVEMARCORALINASAI2018","Biodiversidad de los ecosistemas de coral mesofóticos en San andrés islas 2018","INVEMAR","INV_CoralinaSAI2018_MCE:012","12","Katherine Mejía",null,"Presente",null,"Censo visual","6 inmersiones con rebreather","2018-04-16/2018-04-19","Ecosistema de coral mesofótico","http://marineregions.org/mrgid/48551","SA | Colombia | Archipiélago se San Andrés, Providencia y Santa Catalina","SA","Mar Caribe","Archipiélago de San Andrés, Providencia y Santa Catalina","Isla de San Andrés","Colombia","CO","Archipiélago de San Andrés, Providencia y Santa Catalina","San Andrés",null,"Nirvana",40,50,"Dato in situ usando GPS","Sitio de buceo en el costado occidental de la Isla de San Andrés","12° 30,142' N","81° 44,038' W","Grados, Minutos decimales - GMS","WGS84",12.502359999999999,-81.733959999999996,"WGS84","Luis Chasqui","2018-04-16","http://www.gbif.org/orc/?doc_id=1288",null,"Verificado por el proveedor de datos","Georreferenciado in situ con GPS","Katherine Mejía","2018-04-22","identificado in situ con base en morfología",null,"urn:lsid:marinespecies.org:taxname:291322","Eunicea",null,null,null,null,null,null,null,null,null,null,null,null,null,null,null,null,null,null,null,null,null,null,null,null,null,null,null,null,null,null,null,null,null,null,null,null,null,null,"AnimaliaCnidariaAnthozoaAlcyonaceaPlexauridae Eunicea","Animalia","Cnidaria","Anthozoa","Alcyonacea","Plexauridae ","Eunicea",null,null,"Género","Lamouroux, 1816","ICZN","Aceptado"]
["INVEMAR:CORALINA:SAI2018:MCE:013","Observación humana","Evento","ES","Creative Commons Attribution Non Commercial (CC-BY-NC) 4.0 License","INVEMAR","Sólo para uso no comercial","ColombiaNIT:800250062-0","INV_CoralinaSAI2018_MCE","INVEMAR","INVEMARCORALINASAI2018","Biodiversidad de los ecosistemas de coral mesofóticos en San andrés islas 2018","INVEMAR","INV_CoralinaSAI2018_MCE:013","13","Katherine Mejía",null,"Presente",null,"Censo visual","6 inmersiones con rebreather","2018-04-16/2018-04-19","Ecosistema de coral mesofótico","http://marineregions.org/mrgid/48551","SA | Colombia | Archipiélago se San Andrés, Providencia y Santa Catalina","SA","Mar Caribe","Archipiélago de San Andrés, Providencia y Santa Catalina","Isla de San Andrés","Colombia","CO","Archipiélago de San Andrés, Providencia y Santa Catalina","San Andrés",null,"Nirvana",40,50,"Dato in situ usando GPS","Sitio de buceo en el costado occidental de la Isla de San Andrés","12° 30,142' N","81° 44,038' W","Grados, Minutos decimales - GMS","WGS84",12.502359999999999,-81.733959999999996,"WGS84","Luis Chasqui","2018-04-16","http://www.gbif.org/orc/?doc_id=1288",null,"Verificado por el proveedor de datos","Georreferenciado in situ con GPS","Katherine Mejía","2018-04-22","identificado in situ con base en morfología",null,"urn:lsid:marinespecies.org:taxname:267604","Muriceopsis",null,null,null,null,null,null,null,null,null,null,null,null,null,null,null,null,null,null,null,null,null,null,null,null,null,null,null,null,null,null,null,null,null,null,null,null,null,null,"AnimaliaCnidariaAnthozoaAlcyonaceaPlexauridae Muriceopsis","Animalia","Cnidaria","Anthozoa","Alcyonacea","Plexauridae ","Muriceopsis",null,null,"Género","Aurivillius, 1931","ICZN","Aceptado"]
["INVEMAR:CORALINA:SAI2018:MCE:014","Observación humana","Evento","ES","Creative Commons Attribution Non Commercial (CC-BY-NC) 4.0 License","INVEMAR","Sólo para uso no comercial","ColombiaNIT:800250062-0","INV_CoralinaSAI2018_MCE","INVEMAR","INVEMARCORALINASAI2018","Biodiversidad de los ecosistemas de coral mesofóticos en San andrés islas 2018","INVEMAR","INV_CoralinaSAI2018_MCE:014","14","Katherine Mejía y Luis Chasqui",null,"Presente",null,"Censo visual","6 inmersiones con rebreather","2018-04-16/2018-04-19","Ecosistema de coral mesofótico","http://marineregions.org/mrgid/48551","SA | Colombia | Archipiélago se San Andrés, Providencia y Santa Catalina","SA","Mar Caribe","Archipiélago de San Andrés, Providencia y Santa Catalina","Isla de San Andrés","Colombia","CO","Archipiélago de San Andrés, Providencia y Santa Catalina","San Andrés",null,"Nirvana",50,70,"Dato in situ usando GPS","Sitio de buceo en el costado occidental de la Isla de San Andrés","12° 30,142' N","81° 44,038' W","Grados, Minutos decimales - GMS","WGS84",12.502359999999999,-81.733959999999996,"WGS84","Luis Chasqui","2018-04-16","http://www.gbif.org/orc/?doc_id=1288",null,"Verificado por el proveedor de datos","Georreferenciado in situ con GPS","Katherine Mejía y Luis Chasqui","2018-04-16/2018-04-19","identificado in situ con base en morfología",null,"urn:lsid:marinespecies.org:taxname:287917","Agaricia undata",null,null,null,null,null,null,null,null,null,null,null,null,null,null,null,null,null,null,null,null,null,null,null,null,null,null,null,null,null,null,null,null,null,null,null,null,null,null,"AnimaliaCnidariaAnthozoaScleractinia Agariciidae Agariciaundata","Animalia","Cnidaria","Anthozoa","Scleractinia ","Agariciidae ","Agaricia",null,"undata","Especie","(Ellis & Solander, 1786)","ICZN","Aceptado"]
["INVEMAR:CORALINA:SAI2018:MCE:015","Observación humana","Evento","ES","Creative Commons Attribution Non Commercial (CC-BY-NC) 4.0 License","INVEMAR","Sólo para uso no comercial","ColombiaNIT:800250062-0","INV_CoralinaSAI2018_MCE","INVEMAR","INVEMARCORALINASAI2018","Biodiversidad de los ecosistemas de coral mesofóticos en San andrés islas 2018","INVEMAR","INV_CoralinaSAI2018_MCE:015","15","Katherine Mejía y Luis Chasqui",null,"Presente",null,"Censo visual","6 inmersiones con rebreather","2018-04-16/2018-04-19","Ecosistema de coral mesofótico","http://marineregions.org/mrgid/48551","SA | Colombia | Archipiélago se San Andrés, Providencia y Santa Catalina","SA","Mar Caribe","Archipiélago de San Andrés, Providencia y Santa Catalina","Isla de San Andrés","Colombia","CO","Archipiélago de San Andrés, Providencia y Santa Catalina","San Andrés",null,"Nirvana",50,70,"Dato in situ usando GPS","Sitio de buceo en el costado occidental de la Isla de San Andrés","12° 30,142' N","81° 44,038' W","Grados, Minutos decimales - GMS","WGS84",12.502359999999999,-81.733959999999996,"WGS84","Luis Chasqui","2018-04-16","http://www.gbif.org/orc/?doc_id=1288",null,"Verificado por el proveedor de datos","Georreferenciado in situ con GPS","Katherine Mejía y Luis Chasqui","2018-04-16/2018-04-20","identificado in situ con base en morfología",null,"urn:lsid:marinespecies.org:taxname:287915","Agaricia lamarcki",null,null,null,null,null,null,null,null,null,null,null,null,null,null,null,null,null,null,null,null,null,null,null,null,null,null,null,null,null,null,null,null,null,null,null,null,null,null,"AnimaliaCnidariaAnthozoaScleractinia Agariciidae Agaricialamarcki","Animalia","Cnidaria","Anthozoa","Scleractinia ","Agariciidae ","Agaricia",null,"lamarcki","Especie","Milne Edwards & Haime, 1851","ICZN","Aceptado"]
["INVEMAR:CORALINA:SAI2018:MCE:016","Observación humana","Evento","ES","Creative Commons Attribution Non Commercial (CC-BY-NC) 4.0 License","INVEMAR","Sólo para uso no comercial","ColombiaNIT:800250062-0","INV_CoralinaSAI2018_MCE","INVEMAR","INVEMARCORALINASAI2018","Biodiversidad de los ecosistemas de coral mesofóticos en San andrés islas 2018","INVEMAR","INV_CoralinaSAI2018_MCE:016","16","Katherine Mejía y Luis Chasqui",null,"Presente",null,"Censo visual","6 inmersiones con rebreather","2018-04-16/2018-04-19","Ecosistema de coral mesofótico","http://marineregions.org/mrgid/48551","SA | Colombia | Archipiélago se San Andrés, Providencia y Santa Catalina","SA","Mar Caribe","Archipiélago de San Andrés, Providencia y Santa Catalina","Isla de San Andrés","Colombia","CO","Archipiélago de San Andrés, Providencia y Santa Catalina","San Andrés",null,"Nirvana",50,70,"Dato in situ usando GPS","Sitio de buceo en el costado occidental de la Isla de San Andrés","12° 30,142' N","81° 44,038' W","Grados, Minutos decimales - GMS","WGS84",12.502359999999999,-81.733959999999996,"WGS84","Luis Chasqui","2018-04-16","http://www.gbif.org/orc/?doc_id=1288",null,"Verificado por el proveedor de datos","Georreferenciado in situ con GPS","Katherine Mejía y Luis Chasqui","2018-04-16/2018-04-21","identificado in situ con base en morfología",null,"urn:lsid:marinespecies.org:taxname:287913","Agaricia grahamae",null,null,null,null,null,null,null,null,null,null,null,null,null,null,null,null,null,null,null,null,null,null,null,null,null,null,null,null,null,null,null,null,null,null,null,null,null,null,"AnimaliaCnidariaAnthozoaScleractinia Agariciidae Agariciagrahamae","Animalia","Cnidaria","Anthozoa","Scleractinia ","Agariciidae ","Agaricia",null,"grahamae","Especie","Wells, 1973","ICZN","Aceptado"]
["INVEMAR:CORALINA:SAI2018:MCE:017","Observación humana","Evento","ES","Creative Commons Attribution Non Commercial (CC-BY-NC) 4.0 License","INVEMAR","Sólo para uso no comercial","ColombiaNIT:800250062-0","INV_CoralinaSAI2018_MCE","INVEMAR","INVEMARCORALINASAI2018","Biodiversidad de los ecosistemas de coral mesofóticos en San andrés islas 2018","INVEMAR","INV_CoralinaSAI2018_MCE:017","17","Katherine Mejía y Luis Chasqui",null,"Presente",null,"Censo visual","6 inmersiones con rebreather","2018-04-16/2018-04-19","Ecosistema de coral mesofótico","http://marineregions.org/mrgid/48551","SA | Colombia | Archipiélago se San Andrés, Providencia y Santa Catalina","SA","Mar Caribe","Archipiélago de San Andrés, Providencia y Santa Catalina","Isla de San Andrés","Colombia","CO","Archipiélago de San Andrés, Providencia y Santa Catalina","San Andrés",null,"Nirvana",40,50,"Dato in situ usando GPS","Sitio de buceo en el costado occidental de la Isla de San Andrés","12° 30,142' N","81° 44,038' W","Grados, Minutos decimales - GMS","WGS84",12.502359999999999,-81.733959999999996,"WGS84","Luis Chasqui","2018-04-16","http://www.gbif.org/orc/?doc_id=1288",null,"Verificado por el proveedor de datos","Georreferenciado in situ con GPS","Katherine Mejía y Luis Chasqui","2018-04-16/2018-04-19","identificado in situ con base en morfología",null,"urn:lsid:marinespecies.org:taxname:289697","Colpophyllia natans",null,null,null,null,null,null,null,null,null,null,null,null,null,null,null,null,null,null,null,null,null,null,null,null,null,null,null,null,null,null,null,null,null,null,null,null,null,null,"AnimaliaCnidariaAnthozoaScleractinia Faviidae Colpophyllianatans","Animalia","Cnidaria","Anthozoa","Scleractinia ","Faviidae ","Colpophyllia",null,"natans","Especie","(Houttuyn, 1772)","ICZN","Aceptado"]
["INVEMAR:CORALINA:SAI2018:MCE:018","Observación humana","Evento","ES","Creative Commons Attribution Non Commercial (CC-BY-NC) 4.0 License","INVEMAR","Sólo para uso no comercial","ColombiaNIT:800250062-0","INV_CoralinaSAI2018_MCE","INVEMAR","INVEMARCORALINASAI2018","Biodiversidad de los ecosistemas de coral mesofóticos en San andrés islas 2018","INVEMAR","INV_CoralinaSAI2018_MCE:018","18","Katherine Mejía y Luis Chasqui",null,"Presente",null,"Censo visual","6 inmersiones con rebreather","2018-04-16/2018-04-19","Ecosistema de coral mesofótico","http://marineregions.org/mrgid/48551","SA | Colombia | Archipiélago se San Andrés, Providencia y Santa Catalina","SA","Mar Caribe","Archipiélago de San Andrés, Providencia y Santa Catalina","Isla de San Andrés","Colombia","CO","Archipiélago de San Andrés, Providencia y Santa Catalina","San Andrés",null,"Nirvana",40,50,"Dato in situ usando GPS","Sitio de buceo en el costado occidental de la Isla de San Andrés","12° 30,142' N","81° 44,038' W","Grados, Minutos decimales - GMS","WGS84",12.502359999999999,-81.733959999999996,"WGS84","Luis Chasqui","2018-04-16","http://www.gbif.org/orc/?doc_id=1288",null,"Verificado por el proveedor de datos","Georreferenciado in situ con GPS","Katherine Mejía y Luis Chasqui","2018-04-16/2018-04-19","identificado in situ con base en morfología",null,"urn:lsid:marinespecies.org:taxname:1370122","Mycetophyllia lamarckana",null,null,null,null,null,null,null,null,null,null,null,null,null,null,null,null,null,null,null,null,null,null,null,null,null,null,null,null,null,null,null,null,null,null,null,null,null,null,"AnimaliaCnidariaAnthozoaScleractinia Faviidae Mycetophyllialamarckana","Animalia","Cnidaria","Anthozoa","Scleractinia ","Faviidae ","Mycetophyllia",null,"lamarckana","Especie","Milne Edwards & Haime, 1848","ICZN","Aceptado"]
["INVEMAR:CORALINA:SAI2018:MCE:019","Observación humana","Evento","ES","Creative Commons Attribution Non Commercial (CC-BY-NC) 4.0 License","INVEMAR","Sólo para uso no comercial","ColombiaNIT:800250062-0","INV_CoralinaSAI2018_MCE","INVEMAR","INVEMARCORALINASAI2018","Biodiversidad de los ecosistemas de coral mesofóticos en San andrés islas 2018","INVEMAR","INV_CoralinaSAI2018_MCE:019","19","Katherine Mejía y Luis Chasqui",null,"Presente",null,"Censo visual","6 inmersiones con rebreather","2018-04-16/2018-04-19","Ecosistema de coral mesofótico","http://marineregions.org/mrgid/48551","SA | Colombia | Archipiélago se San Andrés, Providencia y Santa Catalina","SA","Mar Caribe","Archipiélago de San Andrés, Providencia y Santa Catalina","Isla de San Andrés","Colombia","CO","Archipiélago de San Andrés, Providencia y Santa Catalina","San Andrés",null,"Nirvana",50,70,"Dato in situ usando GPS","Sitio de buceo en el costado occidental de la Isla de San Andrés","12° 30,142' N","81° 44,038' W","Grados, Minutos decimales - GMS","WGS84",12.502359999999999,-81.733959999999996,"WGS84","Luis Chasqui","2018-04-16","http://www.gbif.org/orc/?doc_id=1288",null,"Verificado por el proveedor de datos","Georreferenciado in situ con GPS","Katherine Mejía y Luis Chasqui","2018-04-16/2018-04-19","identificado in situ con base en morfología",null,"urn:lsid:marinespecies.org:taxname:290428","Mycetophyllia reesi",null,null,null,null,null,null,null,null,null,null,null,null,null,null,null,null,null,null,null,null,null,null,null,null,null,null,null,null,null,null,null,null,null,null,null,null,null,null,"AnimaliaCnidariaAnthozoaScleractinia Faviidae Mycetophylliareesi","Animalia","Cnidaria","Anthozoa","Scleractinia ","Faviidae ","Mycetophyllia",null,"reesi","Especie","Wells, 1973","ICZN","Aceptado"]
["INVEMAR:CORALINA:SAI2018:MCE:020","Observación humana","Evento","ES","Creative Commons Attribution Non Commercial (CC-BY-NC) 4.0 License","INVEMAR","Sólo para uso no comercial","ColombiaNIT:800250062-0","INV_CoralinaSAI2018_MCE","INVEMAR","INVEMARCORALINASAI2018","Biodiversidad de los ecosistemas de coral mesofóticos en San andrés islas 2018","INVEMAR","INV_CoralinaSAI2018_MCE:020","20","Katherine Mejía y Luis Chasqui",null,"Presente",null,"Censo visual","6 inmersiones con rebreather","2018-04-16/2018-04-19","Ecosistema de coral mesofótico","http://marineregions.org/mrgid/48551","SA | Colombia | Archipiélago se San Andrés, Providencia y Santa Catalina","SA","Mar Caribe","Archipiélago de San Andrés, Providencia y Santa Catalina","Isla de San Andrés","Colombia","CO","Archipiélago de San Andrés, Providencia y Santa Catalina","San Andrés",null,"Nirvana",40,50,"Dato in situ usando GPS","Sitio de buceo en el costado occidental de la Isla de San Andrés","12° 30,142' N","81° 44,038' W","Grados, Minutos decimales - GMS","WGS84",12.502359999999999,-81.733959999999996,"WGS84","Luis Chasqui","2018-04-16","http://www.gbif.org/orc/?doc_id=1288",null,"Verificado por el proveedor de datos","Georreferenciado in situ con GPS","Katherine Mejía y Luis Chasqui","2018-04-16/2018-04-19","identificado in situ con base en morfología",null,"urn:lsid:marinespecies.org:taxname:289939","Eusmilia fastigiata",null,null,null,null,null,null,null,null,null,null,null,null,null,null,null,null,null,null,null,null,null,null,null,null,null,null,null,null,null,null,null,null,null,null,null,null,null,null,"AnimaliaCnidariaAnthozoaScleractinia Meandrinidae Eusmiliafastigiata","Animalia","Cnidaria","Anthozoa","Scleractinia ","Meandrinidae ","Eusmilia",null,"fastigiata","Especie","(Pallas, 1766)","ICZN","Aceptado"]
["INVEMAR:CORALINA:SAI2018:MCE:021","Observación humana","Evento","ES","Creative Commons Attribution Non Commercial (CC-BY-NC) 4.0 License","INVEMAR","Sólo para uso no comercial","ColombiaNIT:800250062-0","INV_CoralinaSAI2018_MCE","INVEMAR","INVEMARCORALINASAI2018","Biodiversidad de los ecosistemas de coral mesofóticos en San andrés islas 2018","INVEMAR","INV_CoralinaSAI2018_MCE:021","21","Katherine Mejía y Luis Chasqui",null,"Presente",null,"Censo visual","6 inmersiones con rebreather","2018-04-16/2018-04-19","Ecosistema de coral mesofótico","http://marineregions.org/mrgid/48551","SA | Colombia | Archipiélago se San Andrés, Providencia y Santa Catalina","SA","Mar Caribe","Archipiélago de San Andrés, Providencia y Santa Catalina","Isla de San Andrés","Colombia","CO","Archipiélago de San Andrés, Providencia y Santa Catalina","San Andrés",null,"Nirvana",40,50,"Dato in situ usando GPS","Sitio de buceo en el costado occidental de la Isla de San Andrés","12° 30,142' N","81° 44,038' W","Grados, Minutos decimales - GMS","WGS84",12.502359999999999,-81.733959999999996,"WGS84","Luis Chasqui","2018-04-16","http://www.gbif.org/orc/?doc_id=1288",null,"Verificado por el proveedor de datos","Georreferenciado in situ con GPS","Katherine Mejía y Luis Chasqui","2018-04-16/2018-04-19","identificado in situ con base en morfología",null,"urn:lsid:marinespecies.org:taxname:758262","Orbicella franksi",null,null,null,null,null,null,null,null,null,null,null,null,null,null,null,null,null,null,null,null,null,null,null,null,null,null,null,null,null,null,null,null,null,null,null,null,null,null,"AnimaliaCnidariaAnthozoaScleractinia Merulinidae Orbicellafranksi","Animalia","Cnidaria","Anthozoa","Scleractinia ","Merulinidae ","Orbicella",null,"franksi","Especie","(Gregory, 1895)","ICZN","Aceptado"]
["INVEMAR:CORALINA:SAI2018:MCE:022","Observación humana","Evento","ES","Creative Commons Attribution Non Commercial (CC-BY-NC) 4.0 License","INVEMAR","Sólo para uso no comercial","ColombiaNIT:800250062-0","INV_CoralinaSAI2018_MCE","INVEMAR","INVEMARCORALINASAI2018","Biodiversidad de los ecosistemas de coral mesofóticos en San andrés islas 2018","INVEMAR","INV_CoralinaSAI2018_MCE:022","22","Katherine Mejía y Luis Chasqui",null,"Presente",null,"Censo visual","6 inmersiones con rebreather","2018-04-16/2018-04-19","Ecosistema de coral mesofótico","http://marineregions.org/mrgid/48551","SA | Colombia | Archipiélago se San Andrés, Providencia y Santa Catalina","SA","Mar Caribe","Archipiélago de San Andrés, Providencia y Santa Catalina","Isla de San Andrés","Colombia","CO","Archipiélago de San Andrés, Providencia y Santa Catalina","San Andrés",null,"Nirvana",40,70,"Dato in situ usando GPS","Sitio de buceo en el costado occidental de la Isla de San Andrés","12° 30,142' N","81° 44,038' W","Grados, Minutos decimales - GMS","WGS84",12.502359999999999,-81.733959999999996,"WGS84","Luis Chasqui","2018-04-16","http://www.gbif.org/orc/?doc_id=1288",null,"Verificado por el proveedor de datos","Georreferenciado in situ con GPS","Katherine Mejía y Luis Chasqui","2018-04-16/2018-04-19","identificado in situ con base en morfología",null,"urn:lsid:marinespecies.org:taxname:287962","Montastraea cavernosa",null,null,null,null,null,null,null,null,null,null,null,null,null,null,null,null,null,null,null,null,null,null,null,null,null,null,null,null,null,null,null,null,null,null,null,null,null,null,"AnimaliaCnidariaAnthozoaScleractinia Montastraeidae Montastraeacavernosa","Animalia","Cnidaria","Anthozoa","Scleractinia ","Montastraeidae ","Montastraea",null,"cavernosa","Especie","(Linnaeus, 1767)","ICZN","Aceptado"]
["INVEMAR:CORALINA:SAI2018:MCE:023","Observación humana","Evento","ES","Creative Commons Attribution Non Commercial (CC-BY-NC) 4.0 License","INVEMAR","Sólo para uso no comercial","ColombiaNIT:800250062-0","INV_CoralinaSAI2018_MCE","INVEMAR","INVEMARCORALINASAI2018","Biodiversidad de los ecosistemas de coral mesofóticos en San andrés islas 2018","INVEMAR","INV_CoralinaSAI2018_MCE:023","23","Katherine Mejía y Luis Chasqui",null,"Presente",null,"Censo visual","6 inmersiones con rebreather","2018-04-16/2018-04-19","Ecosistema de coral mesofótico","http://marineregions.org/mrgid/48551","SA | Colombia | Archipiélago se San Andrés, Providencia y Santa Catalina","SA","Mar Caribe","Archipiélago de San Andrés, Providencia y Santa Catalina","Isla de San Andrés","Colombia","CO","Archipiélago de San Andrés, Providencia y Santa Catalina","San Andrés",null,"Nirvana",40,50,"Dato in situ usando GPS","Sitio de buceo en el costado occidental de la Isla de San Andrés","12° 30,142' N","81° 44,038' W","Grados, Minutos decimales - GMS","WGS84",12.502359999999999,-81.733959999999996,"WGS84","Luis Chasqui","2018-04-16","http://www.gbif.org/orc/?doc_id=1288",null,"Verificado por el proveedor de datos","Georreferenciado in situ con GPS","Katherine Mejía y Luis Chasqui","2018-04-16/2018-04-19","identificado in situ con base en morfología",null,"urn:lsid:marinespecies.org:taxname:288889","Porites astreoides",null,null,null,null,null,null,null,null,null,null,null,null,null,null,null,null,null,null,null,null,null,null,null,null,null,null,null,null,null,null,null,null,null,null,null,null,null,null,"AnimaliaCnidariaAnthozoaScleractinia PoritidaePoritesastreoides","Animalia","Cnidaria","Anthozoa","Scleractinia ","Poritidae","Porites",null,"astreoides","Especie","Lamarck, 1816","ICZN","Aceptado"]
["INVEMAR:CORALINA:SAI2018:MCE:024","Observación humana","Evento","ES","Creative Commons Attribution Non Commercial (CC-BY-NC) 4.0 License","INVEMAR","Sólo para uso no comercial","ColombiaNIT:800250062-0","INV_CoralinaSAI2018_MCE","INVEMAR","INVEMARCORALINASAI2018","Biodiversidad de los ecosistemas de coral mesofóticos en San andrés islas 2018","INVEMAR","INV_CoralinaSAI2018_MCE:024","24","Katherine Mejía y Luis Chasqui",null,"Presente",null,"Censo visual","6 inmersiones con rebreather","2018-04-16/2018-04-19","Ecosistema de coral mesofótico","http://marineregions.org/mrgid/48551","SA | Colombia | Archipiélago se San Andrés, Providencia y Santa Catalina","SA","Mar Caribe","Archipiélago de San Andrés, Providencia y Santa Catalina","Isla de San Andrés","Colombia","CO","Archipiélago de San Andrés, Providencia y Santa Catalina","San Andrés",null,"Nirvana",40,70,"Dato in situ usando GPS","Sitio de buceo en el costado occidental de la Isla de San Andrés","12° 30,142' N","81° 44,038' W","Grados, Minutos decimales - GMS","WGS84",12.502359999999999,-81.733959999999996,"WGS84","Luis Chasqui","2018-04-16","http://www.gbif.org/orc/?doc_id=1288",null,"Verificado por el proveedor de datos","Georreferenciado in situ con GPS","Katherine Mejía y Luis Chasqui","2018-04-16/2018-04-19","identificado in situ con base en morfología",null,"urn:lsid:marinespecies.org:taxname:207516","Siderastrea siderea",null,null,null,null,null,null,null,null,null,null,null,null,null,null,null,null,null,null,null,null,null,null,null,null,null,null,null,null,null,null,null,null,null,null,null,null,null,null,"AnimaliaCnidariaAnthozoaScleractinia Siderastreidae Siderastreasiderea","Animalia","Cnidaria","Anthozoa","Scleractinia ","Siderastreidae ","Siderastrea",null,"siderea","Especie","(Ellis & Solander, 1786)","ICZN","Aceptado"]
["INVEMAR:CORALINA:SAI2018:MCE:025","Observación humana","Evento","ES","Creative Commons Attribution Non Commercial (CC-BY-NC) 4.0 License","INVEMAR","Sólo para uso no comercial","ColombiaNIT:800250062-0","INV_CoralinaSAI2018_MCE","INVEMAR","INVEMARCORALINASAI2018","Biodiversidad de los ecosistemas de coral mesofóticos en San andrés islas 2018","INVEMAR","INV_CoralinaSAI2018_MCE:025","25","Katherine Mejía y Luis Chasqui",null,"Presente",null,"Censo visual","6 inmersiones con rebreather","2018-04-16/2018-04-19","Ecosistema de coral mesofótico","http://marineregions.org/mrgid/48551","SA | Colombia | Archipiélago se San Andrés, Providencia y Santa Catalina","SA","Mar Caribe","Archipiélago de San Andrés, Providencia y Santa Catalina","Isla de San Andrés","Colombia","CO","Archipiélago de San Andrés, Providencia y Santa Catalina","San Andrés",null,"Nirvana",40,50,"Dato in situ usando GPS","Sitio de buceo en el costado occidental de la Isla de San Andrés","12° 30,142' N","81° 44,038' W","Grados, Minutos decimales - GMS","WGS84",12.502359999999999,-81.733959999999996,"WGS84","Luis Chasqui","2018-04-16","http://www.gbif.org/orc/?doc_id=1288",null,"Verificado por el proveedor de datos","Georreferenciado in situ con GPS","Katherine Mejía y Luis Chasqui","2018-04-16/2018-04-19","identificado in situ con base en morfología",null,"urn:lsid:marinespecies.org:taxname:210726","Millepora alcicornis",null,null,null,null,null,null,null,null,null,null,null,null,null,null,null,null,null,null,null,null,null,null,null,null,null,null,null,null,null,null,null,null,null,null,null,null,null,null,"AnimaliaCnidariaHydrozoaAnthoathecataMilleporidaeMilleporaalcicornis","Animalia","Cnidaria","Hydrozoa","Anthoathecata","Milleporidae","Millepora",null,"alcicornis","Especie","Linnaeus, 1758","ICZN","Aceptado"]
["INVEMAR:CORALINA:SAI2018:MCE:026","Observación humana","Evento","ES","Creative Commons Attribution Non Commercial (CC-BY-NC) 4.0 License","INVEMAR","Sólo para uso no comercial","ColombiaNIT:800250062-0","INV_CoralinaSAI2018_MCE","INVEMAR","INVEMARCORALINASAI2018","Biodiversidad de los ecosistemas de coral mesofóticos en San andrés islas 2018","INVEMAR","INV_CoralinaSAI2018_MCE:026","26","Katherine Mejía y Luis Chasqui",null,"Presente",null,"Censo visual","6 inmersiones con rebreather","2018-04-16/2018-04-19","Ecosistema de coral mesofótico","http://marineregions.org/mrgid/48551","SA | Colombia | Archipiélago se San Andrés, Providencia y Santa Catalina","SA","Mar Caribe","Archipiélago de San Andrés, Providencia y Santa Catalina","Isla de San Andrés","Colombia","CO","Archipiélago de San Andrés, Providencia y Santa Catalina","San Andrés",null,"Nirvana",40,50,"Dato in situ usando GPS","Sitio de buceo en el costado occidental de la Isla de San Andrés","12° 30,142' N","81° 44,038' W","Grados, Minutos decimales - GMS","WGS84",12.502359999999999,-81.733959999999996,"WGS84","Luis Chasqui","2018-04-16","http://www.gbif.org/orc/?doc_id=1288",null,"Verificado por el proveedor de datos","Georreferenciado in situ con GPS","Katherine Mejía y Luis Chasqui","2018-04-16/2018-04-19","identificado in situ con base en morfología",null,"urn:lsid:marinespecies.org:taxname:285905","Stylaster roseus",null,null,null,null,null,null,null,null,null,null,null,null,null,null,null,null,null,null,null,null,null,null,null,null,null,null,null,null,null,null,null,null,null,null,null,null,null,null,"AnimaliaCnidariaHydrozoaAnthoathecataStylasteridaeStylasterroseus","Animalia","Cnidaria","Hydrozoa","Anthoathecata","Stylasteridae","Stylaster",null,"roseus","Especie","(Pallas, 1766)","ICZN","Aceptado"]
["INVEMAR:CORALINA:SAI2018:MCE:027","Observación humana","Evento","ES","Creative Commons Attribution Non Commercial (CC-BY-NC) 4.0 License","INVEMAR","Sólo para uso no comercial","ColombiaNIT:800250062-0","INV_CoralinaSAI2018_MCE","INVEMAR","INVEMARCORALINASAI2018","Biodiversidad de los ecosistemas de coral mesofóticos en San andrés islas 2018","INVEMAR","INV_CoralinaSAI2018_MCE:027","27","Katherine Mejía y Luis Chasqui",null,"Presente",null,"Censo visual","6 inmersiones con rebreather","2018-04-16/2018-04-19","Ecosistema de coral mesofótico","http://marineregions.org/mrgid/48551","SA | Colombia | Archipiélago se San Andrés, Providencia y Santa Catalina","SA","Mar Caribe","Archipiélago de San Andrés, Providencia y Santa Catalina","Isla de San Andrés","Colombia","CO","Archipiélago de San Andrés, Providencia y Santa Catalina","San Andrés",null,"Nirvana",40,70,"Dato in situ usando GPS","Sitio de buceo en el costado occidental de la Isla de San Andrés","12° 30,142' N","81° 44,038' W","Grados, Minutos decimales - GMS","WGS84",12.502359999999999,-81.733959999999996,"WGS84","Luis Chasqui","2018-04-16","http://www.gbif.org/orc/?doc_id=1288",null,"Verificado por el proveedor de datos","Georreferenciado in situ con GPS","Katherine Mejía y Luis Chasqui","2018-04-16/2018-04-19","identificado in situ con base en morfología",null,"urn:lsid:marinespecies.org:taxname:164823","Agelas clathrodes",null,null,null,null,null,null,null,null,null,null,null,null,null,null,null,null,null,null,null,null,null,null,null,null,null,null,null,null,null,null,null,null,null,null,null,null,null,null,"AnimaliaPoriferaDemospongiaeAgelasidaAgelasidaeAgelasclathrodes","Animalia","Porifera","Demospongiae","Agelasida","Agelasidae","Agelas",null,"clathrodes","Especie","(Schmidt, 1870)","ICZN","Aceptado"]
["INVEMAR:CORALINA:SAI2018:MCE:028","Observación humana","Evento","ES","Creative Commons Attribution Non Commercial (CC-BY-NC) 4.0 License","INVEMAR","Sólo para uso no comercial","ColombiaNIT:800250062-0","INV_CoralinaSAI2018_MCE","INVEMAR","INVEMARCORALINASAI2018","Biodiversidad de los ecosistemas de coral mesofóticos en San andrés islas 2018","INVEMAR","INV_CoralinaSAI2018_MCE:028","28","Katherine Mejía y Luis Chasqui",null,"Presente",null,"Censo visual","6 inmersiones con rebreather","2018-04-16/2018-04-19","Ecosistema de coral mesofótico","http://marineregions.org/mrgid/48551","SA | Colombia | Archipiélago se San Andrés, Providencia y Santa Catalina","SA","Mar Caribe","Archipiélago de San Andrés, Providencia y Santa Catalina","Isla de San Andrés","Colombia","CO","Archipiélago de San Andrés, Providencia y Santa Catalina","San Andrés",null,"Nirvana",50,70,"Dato in situ usando GPS","Sitio de buceo en el costado occidental de la Isla de San Andrés","12° 30,142' N","81° 44,038' W","Grados, Minutos decimales - GMS","WGS84",12.502359999999999,-81.733959999999996,"WGS84","Luis Chasqui","2018-04-16","http://www.gbif.org/orc/?doc_id=1288",null,"Verificado por el proveedor de datos","Georreferenciado in situ con GPS","Katherine Mejía y Luis Chasqui","2018-04-16/2018-04-19","identificado in situ con base en morfología",null,"urn:lsid:marinespecies.org:taxname:164841","Agelas sceptrum",null,null,null,null,null,null,null,null,null,null,null,null,null,null,null,null,null,null,null,null,null,null,null,null,null,null,null,null,null,null,null,null,null,null,null,null,null,null,"AnimaliaPoriferaDemospongiaeAgelasidaAgelasidaeAgelassceptrum","Animalia","Porifera","Demospongiae","Agelasida","Agelasidae","Agelas",null,"sceptrum","Especie","(Lamarck, 1815)","ICZN","Aceptado"]
["INVEMAR:CORALINA:SAI2018:MCE:029","Observación humana","Evento","ES","Creative Commons Attribution Non Commercial (CC-BY-NC) 4.0 License","INVEMAR","Sólo para uso no comercial","ColombiaNIT:800250062-0","INV_CoralinaSAI2018_MCE","INVEMAR","INVEMARCORALINASAI2018","Biodiversidad de los ecosistemas de coral mesofóticos en San andrés islas 2018","INVEMAR","INV_CoralinaSAI2018_MCE:029","29","Katherine Mejía y Luis Chasqui",null,"Presente",null,"Censo visual","6 inmersiones con rebreather","2018-04-16/2018-04-19","Ecosistema de coral mesofótico","http://marineregions.org/mrgid/48551","SA | Colombia | Archipiélago se San Andrés, Providencia y Santa Catalina","SA","Mar Caribe","Archipiélago de San Andrés, Providencia y Santa Catalina","Isla de San Andrés","Colombia","CO","Archipiélago de San Andrés, Providencia y Santa Catalina","San Andrés",null,"Nirvana",50,70,"Dato in situ usando GPS","Sitio de buceo en el costado occidental de la Isla de San Andrés","12° 30,142' N","81° 44,038' W","Grados, Minutos decimales - GMS","WGS84",12.502359999999999,-81.733959999999996,"WGS84","Luis Chasqui","2018-04-16","http://www.gbif.org/orc/?doc_id=1288",null,"Verificado por el proveedor de datos","Georreferenciado in situ con GPS","Katherine Mejía y Luis Chasqui","2018-04-16/2018-04-19","identificado in situ con base en morfología",null,"urn:lsid:marinespecies.org:taxname:164845","Agelas tubulata",null,null,null,null,null,null,null,null,null,null,null,null,null,null,null,null,null,null,null,null,null,null,null,null,null,null,null,null,null,null,null,null,null,null,null,null,null,null,"AnimaliaPoriferaDemospongiaeAgelasidaAgelasidaeAgelastubulata","Animalia","Porifera","Demospongiae","Agelasida","Agelasidae","Agelas",null,"tubulata","Especie","Lehnert & van Soest, 1996","ICZN","Aceptado"]
["INVEMAR:CORALINA:SAI2018:MCE:030","Observación humana","Evento","ES","Creative Commons Attribution Non Commercial (CC-BY-NC) 4.0 License","INVEMAR","Sólo para uso no comercial","ColombiaNIT:800250062-0","INV_CoralinaSAI2018_MCE","INVEMAR","INVEMARCORALINASAI2018","Biodiversidad de los ecosistemas de coral mesofóticos en San andrés islas 2018","INVEMAR","INV_CoralinaSAI2018_MCE:030","30","Katherine Mejía y Luis Chasqui",null,"Presente",null,"Censo visual","6 inmersiones con rebreather","2018-04-16/2018-04-19","Ecosistema de coral mesofótico","http://marineregions.org/mrgid/48551","SA | Colombia | Archipiélago se San Andrés, Providencia y Santa Catalina","SA","Mar Caribe","Archipiélago de San Andrés, Providencia y Santa Catalina","Isla de San Andrés","Colombia","CO","Archipiélago de San Andrés, Providencia y Santa Catalina","San Andrés",null,"Nirvana",40,70,"Dato in situ usando GPS","Sitio de buceo en el costado occidental de la Isla de San Andrés","12° 30,142' N","81° 44,038' W","Grados, Minutos decimales - GMS","WGS84",12.502359999999999,-81.733959999999996,"WGS84","Luis Chasqui","2018-04-16","http://www.gbif.org/orc/?doc_id=1288",null,"Verificado por el proveedor de datos","Georreferenciado in situ con GPS","Katherine Mejía y Luis Chasqui","2018-04-16/2018-04-19","identificado in situ con base en morfología",null,"urn:lsid:marinespecies.org:taxname:169632","Aiolochroia crassa",null,null,null,null,null,null,null,null,null,null,null,null,null,null,null,null,null,null,null,null,null,null,null,null,null,null,null,null,null,null,null,null,null,null,null,null,null,null,"AnimaliaPoriferaDemospongiaeVerongiidaAplysinidaeAiolochroiacrassa","Animalia","Porifera","Demospongiae","Verongiida","Aplysinidae","Aiolochroia",null,"crassa","Especie","(Hyatt, 1875)","ICZN","Aceptado"]
["INVEMAR:CORALINA:SAI2018:MCE:031","Observación humana","Evento","ES","Creative Commons Attribution Non Commercial (CC-BY-NC) 4.0 License","INVEMAR","Sólo para uso no comercial","ColombiaNIT:800250062-0","INV_CoralinaSAI2018_MCE","INVEMAR","INVEMARCORALINASAI2018","Biodiversidad de los ecosistemas de coral mesofóticos en San andrés islas 2018","INVEMAR","INV_CoralinaSAI2018_MCE:031","31","Katherine Mejía y Luis Chasqui",null,"Presente",null,"Censo visual","6 inmersiones con rebreather","2018-04-16/2018-04-19","Ecosistema de coral mesofótico","http://marineregions.org/mrgid/48551","SA | Colombia | Archipiélago se San Andrés, Providencia y Santa Catalina","SA","Mar Caribe","Archipiélago de San Andrés, Providencia y Santa Catalina","Isla de San Andrés","Colombia","CO","Archipiélago de San Andrés, Providencia y Santa Catalina","San Andrés",null,"Nirvana",50,70,"Dato in situ usando GPS","Sitio de buceo en el costado occidental de la Isla de San Andrés","12° 30,142' N","81° 44,038' W","Grados, Minutos decimales - GMS","WGS84",12.502359999999999,-81.733959999999996,"WGS84","Luis Chasqui","2018-04-16","http://www.gbif.org/orc/?doc_id=1288",null,"Verificado por el proveedor de datos","Georreferenciado in situ con GPS","Katherine Mejía y Luis Chasqui","2018-04-16/2018-04-19","identificado in situ con base en morfología",null,"urn:lsid:marinespecies.org:taxname:169636","Aplysina archeri",null,null,null,null,null,null,null,null,null,null,null,null,null,null,null,null,null,null,null,null,null,null,null,null,null,null,null,null,null,null,null,null,null,null,null,null,null,null,"AnimaliaPoriferaDemospongiaeVerongiidaAplysinidaeAplysinaarcheri","Animalia","Porifera","Demospongiae","Verongiida","Aplysinidae","Aplysina",null,"archeri","Especie","(Higgin, 1875)","ICZN","Aceptado"]
["INVEMAR:CORALINA:SAI2018:MCE:032","Observación humana","Evento","ES","Creative Commons Attribution Non Commercial (CC-BY-NC) 4.0 License","INVEMAR","Sólo para uso no comercial","ColombiaNIT:800250062-0","INV_CoralinaSAI2018_MCE","INVEMAR","INVEMARCORALINASAI2018","Biodiversidad de los ecosistemas de coral mesofóticos en San andrés islas 2018","INVEMAR","INV_CoralinaSAI2018_MCE:032","32","Katherine Mejía y Luis Chasqui",null,"Presente",null,"Censo visual","6 inmersiones con rebreather","2018-04-16/2018-04-19","Ecosistema de coral mesofótico","http://marineregions.org/mrgid/48551","SA | Colombia | Archipiélago se San Andrés, Providencia y Santa Catalina","SA","Mar Caribe","Archipiélago de San Andrés, Providencia y Santa Catalina","Isla de San Andrés","Colombia","CO","Archipiélago de San Andrés, Providencia y Santa Catalina","San Andrés",null,"Nirvana",50,70,"Dato in situ usando GPS","Sitio de buceo en el costado occidental de la Isla de San Andrés","12° 30,142' N","81° 44,038' W","Grados, Minutos decimales - GMS","WGS84",12.502359999999999,-81.733959999999996,"WGS84","Luis Chasqui","2018-04-16","http://www.gbif.org/orc/?doc_id=1288",null,"Verificado por el proveedor de datos","Georreferenciado in situ con GPS","Katherine Mejía y Luis Chasqui","2018-04-16/2018-04-19","identificado in situ con base en morfología",null,"urn:lsid:marinespecies.org:taxname:169642","Aplysina cauliformis",null,null,null,null,null,null,null,null,null,null,null,null,null,null,null,null,null,null,null,null,null,null,null,null,null,null,null,null,null,null,null,null,null,null,null,null,null,null,"AnimaliaPoriferaDemospongiaeVerongiidaAplysinidaeAplysinacauliformis","Animalia","Porifera","Demospongiae","Verongiida","Aplysinidae","Aplysina",null,"cauliformis","Especie","(Carter, 1882)","ICZN","Aceptado"]
["INVEMAR:CORALINA:SAI2018:MCE:033","Observación humana","Evento","ES","Creative Commons Attribution Non Commercial (CC-BY-NC) 4.0 License","INVEMAR","Sólo para uso no comercial","ColombiaNIT:800250062-0","INV_CoralinaSAI2018_MCE","INVEMAR","INVEMARCORALINASAI2018","Biodiversidad de los ecosistemas de coral mesofóticos en San andrés islas 2018","INVEMAR","INV_CoralinaSAI2018_MCE:033","33","Katherine Mejía y Luis Chasqui",null,"Presente",null,"Censo visual","6 inmersiones con rebreather","2018-04-16/2018-04-19","Ecosistema de coral mesofótico","http://marineregions.org/mrgid/48551","SA | Colombia | Archipiélago se San Andrés, Providencia y Santa Catalina","SA","Mar Caribe","Archipiélago de San Andrés, Providencia y Santa Catalina","Isla de San Andrés","Colombia","CO","Archipiélago de San Andrés, Providencia y Santa Catalina","San Andrés",null,"Nirvana",40,50,"Dato in situ usando GPS","Sitio de buceo en el costado occidental de la Isla de San Andrés","12° 30,142' N","81° 44,038' W","Grados, Minutos decimales - GMS","WGS84",12.502359999999999,-81.733959999999996,"WGS84","Luis Chasqui","2018-04-16","http://www.gbif.org/orc/?doc_id=1288",null,"Verificado por el proveedor de datos","Georreferenciado in situ con GPS","Katherine Mejía y Luis Chasqui","2018-04-16/2018-04-19","identificado in situ con base en morfología",null,"urn:lsid:marinespecies.org:taxname:169656","Aplysina lacunosa",null,null,null,null,null,null,null,null,null,null,null,null,null,null,null,null,null,null,null,null,null,null,null,null,null,null,null,null,null,null,null,null,null,null,null,null,null,null,"AnimaliaPoriferaDemospongiaeVerongiidaAplysinidaeAplysinalacunosa","Animalia","Porifera","Demospongiae","Verongiida","Aplysinidae","Aplysina",null,"lacunosa","Especie","(Lamarck, 1814)","ICZN","Aceptado"]
["INVEMAR:CORALINA:SAI2018:MCE:034","Observación humana","Evento","ES","Creative Commons Attribution Non Commercial (CC-BY-NC) 4.0 License","INVEMAR","Sólo para uso no comercial","ColombiaNIT:800250062-0","INV_CoralinaSAI2018_MCE","INVEMAR","INVEMARCORALINASAI2018","Biodiversidad de los ecosistemas de coral mesofóticos en San andrés islas 2018","INVEMAR","INV_CoralinaSAI2018_MCE:034","34","Katherine Mejía y Luis Chasqui",null,"Presente",null,"Censo visual","6 inmersiones con rebreather","2018-04-16/2018-04-19","Ecosistema de coral mesofótico","http://marineregions.org/mrgid/48551","SA | Colombia | Archipiélago se San Andrés, Providencia y Santa Catalina","SA","Mar Caribe","Archipiélago de San Andrés, Providencia y Santa Catalina","Isla de San Andrés","Colombia","CO","Archipiélago de San Andrés, Providencia y Santa Catalina","San Andrés",null,"Nirvana",40,50,"Dato in situ usando GPS","Sitio de buceo en el costado occidental de la Isla de San Andrés","12° 30,142' N","81° 44,038' W","Grados, Minutos decimales - GMS","WGS84",12.502359999999999,-81.733959999999996,"WGS84","Luis Chasqui","2018-04-16","http://www.gbif.org/orc/?doc_id=1288",null,"Verificado por el proveedor de datos","Georreferenciado in situ con GPS","Katherine Mejía y Luis Chasqui","2018-04-16/2018-04-19","identificado in situ con base en morfología",null,"urn:lsid:marinespecies.org:taxname:169674","Verongula reiswigi",null,null,null,null,null,null,null,null,null,null,null,null,null,null,null,null,null,null,null,null,null,null,null,null,null,null,null,null,null,null,null,null,null,null,null,null,null,null,"AnimaliaPoriferaDemospongiaeVerongiidaAplysinidaeVerongulareiswigi","Animalia","Porifera","Demospongiae","Verongiida","Aplysinidae","Verongula",null,"reiswigi","Especie","Alcolado, 1984","ICZN","Aceptado"]
["INVEMAR:CORALINA:SAI2018:MCE:035","Observación humana","Evento","ES","Creative Commons Attribution Non Commercial (CC-BY-NC) 4.0 License","INVEMAR","Sólo para uso no comercial","ColombiaNIT:800250062-0","INV_CoralinaSAI2018_MCE","INVEMAR","INVEMARCORALINASAI2018","Biodiversidad de los ecosistemas de coral mesofóticos en San andrés islas 2018","INVEMAR","INV_CoralinaSAI2018_MCE:035","35","Katherine Mejía y Luis Chasqui",null,"Presente",null,"Censo visual","6 inmersiones con rebreather","2018-04-16/2018-04-19","Ecosistema de coral mesofótico","http://marineregions.org/mrgid/48551","SA | Colombia | Archipiélago se San Andrés, Providencia y Santa Catalina","SA","Mar Caribe","Archipiélago de San Andrés, Providencia y Santa Catalina","Isla de San Andrés","Colombia","CO","Archipiélago de San Andrés, Providencia y Santa Catalina","San Andrés",null,"Nirvana",50,70,"Dato in situ usando GPS","Sitio de buceo en el costado occidental de la Isla de San Andrés","12° 30,142' N","81° 44,038' W","Grados, Minutos decimales - GMS","WGS84",12.502359999999999,-81.733959999999996,"WGS84","Luis Chasqui","2018-04-16","http://www.gbif.org/orc/?doc_id=1288",null,"Verificado por el proveedor de datos","Georreferenciado in situ con GPS","Katherine Mejía y Luis Chasqui","2018-04-16/2018-04-19","identificado in situ con base en morfología",null,"urn:lsid:marinespecies.org:taxname:166223","Callyspongia (Cladochalina) plicifera",null,null,null,null,null,null,null,null,null,null,null,null,null,null,null,null,null,null,null,null,null,null,null,null,null,null,null,null,null,null,null,null,null,null,null,null,null,null,"AnimaliaPoriferaDemospongiaeHaploscleridaCallyspongiidaeCallyspongia(Cladochalina)plicifera","Animalia","Porifera","Demospongiae","Haplosclerida","Callyspongiidae","Callyspongia","(Cladochalina)","plicifera","Especie","(Lamarck, 1814)","ICZN","Aceptado"]
["INVEMAR:CORALINA:SAI2018:MCE:036","Observación humana","Evento","ES","Creative Commons Attribution Non Commercial (CC-BY-NC) 4.0 License","INVEMAR","Sólo para uso no comercial","ColombiaNIT:800250062-0","INV_CoralinaSAI2018_MCE","INVEMAR","INVEMARCORALINASAI2018","Biodiversidad de los ecosistemas de coral mesofóticos en San andrés islas 2018","INVEMAR","INV_CoralinaSAI2018_MCE:036","36","Katherine Mejía y Luis Chasqui",null,"Presente",null,"Censo visual","6 inmersiones con rebreather","2018-04-16/2018-04-19","Ecosistema de coral mesofótico","http://marineregions.org/mrgid/48551","SA | Colombia | Archipiélago se San Andrés, Providencia y Santa Catalina","SA","Mar Caribe","Archipiélago de San Andrés, Providencia y Santa Catalina","Isla de San Andrés","Colombia","CO","Archipiélago de San Andrés, Providencia y Santa Catalina","San Andrés",null,"Nirvana",40,70,"Dato in situ usando GPS","Sitio de buceo en el costado occidental de la Isla de San Andrés","12° 30,142' N","81° 44,038' W","Grados, Minutos decimales - GMS","WGS84",12.502359999999999,-81.733959999999996,"WGS84","Luis Chasqui","2018-04-16","http://www.gbif.org/orc/?doc_id=1288",null,"Verificado por el proveedor de datos","Georreferenciado in situ con GPS","Katherine Mejía y Luis Chasqui","2018-04-16/2018-04-19","identificado in situ con base en morfología",null,"urn:lsid:marinespecies.org:taxname:170437","Cliona delitrix",null,null,null,null,null,null,null,null,null,null,null,null,null,null,null,null,null,null,null,null,null,null,null,null,null,null,null,null,null,null,null,null,null,null,null,null,null,null,"AnimaliaPoriferaDemospongiaeClionaidaClionaidaeClionadelitrix","Animalia","Porifera","Demospongiae","Clionaida","Clionaidae","Cliona",null,"delitrix","Especie","Pang, 1973","ICZN","Aceptado"]
["INVEMAR:CORALINA:SAI2018:MCE:037","Observación humana","Evento","ES","Creative Commons Attribution Non Commercial (CC-BY-NC) 4.0 License","INVEMAR","Sólo para uso no comercial","ColombiaNIT:800250062-0","INV_CoralinaSAI2018_MCE","INVEMAR","INVEMARCORALINASAI2018","Biodiversidad de los ecosistemas de coral mesofóticos en San andrés islas 2018","INVEMAR","INV_CoralinaSAI2018_MCE:037","37","Katherine Mejía y Luis Chasqui",null,"Presente",null,"Censo visual","6 inmersiones con rebreather","2018-04-16/2018-04-19","Ecosistema de coral mesofótico","http://marineregions.org/mrgid/48551","SA | Colombia | Archipiélago se San Andrés, Providencia y Santa Catalina","SA","Mar Caribe","Archipiélago de San Andrés, Providencia y Santa Catalina","Isla de San Andrés","Colombia","CO","Archipiélago de San Andrés, Providencia y Santa Catalina","San Andrés",null,"Nirvana",40,70,"Dato in situ usando GPS","Sitio de buceo en el costado occidental de la Isla de San Andrés","12° 30,142' N","81° 44,038' W","Grados, Minutos decimales - GMS","WGS84",12.502359999999999,-81.733959999999996,"WGS84","Luis Chasqui","2018-04-16","http://www.gbif.org/orc/?doc_id=1288",null,"Verificado por el proveedor de datos","Georreferenciado in situ con GPS","Katherine Mejía y Luis Chasqui","2018-04-16/2018-04-19","identificado in situ con base en morfología",null,"urn:lsid:marinespecies.org:taxname:169016","Monanchora arbuscula",null,null,null,null,null,null,null,null,null,null,null,null,null,null,null,null,null,null,null,null,null,null,null,null,null,null,null,null,null,null,null,null,null,null,null,null,null,null,"AnimaliaPoriferaDemospongiaePoeciloscleridaCrambeidaeMonanchoraarbuscula","Animalia","Porifera","Demospongiae","Poecilosclerida","Crambeidae","Monanchora",null,"arbuscula","Especie","(Duchassaing & Michelotti, 1864)","ICZN","Aceptado"]
["INVEMAR:CORALINA:SAI2018:MCE:038","Observación humana","Evento","ES","Creative Commons Attribution Non Commercial (CC-BY-NC) 4.0 License","INVEMAR","Sólo para uso no comercial","ColombiaNIT:800250062-0","INV_CoralinaSAI2018_MCE","INVEMAR","INVEMARCORALINASAI2018","Biodiversidad de los ecosistemas de coral mesofóticos en San andrés islas 2018","INVEMAR","INV_CoralinaSAI2018_MCE:038","38","Katherine Mejía y Luis Chasqui",null,"Presente",null,"Censo visual","6 inmersiones con rebreather","2018-04-16/2018-04-19","Ecosistema de coral mesofótico","http://marineregions.org/mrgid/48551","SA | Colombia | Archipiélago se San Andrés, Providencia y Santa Catalina","SA","Mar Caribe","Archipiélago de San Andrés, Providencia y Santa Catalina","Isla de San Andrés","Colombia","CO","Archipiélago de San Andrés, Providencia y Santa Catalina","San Andrés",null,"Nirvana",40,50,"Dato in situ usando GPS","Sitio de buceo en el costado occidental de la Isla de San Andrés","12° 30,142' N","81° 44,038' W","Grados, Minutos decimales - GMS","WGS84",12.502359999999999,-81.733959999999996,"WGS84","Luis Chasqui","2018-04-16","http://www.gbif.org/orc/?doc_id=1288",null,"Verificado por el proveedor de datos","Georreferenciado in situ con GPS","Katherine Mejía y Luis Chasqui","2018-04-16/2018-04-19","identificado in situ con base en morfología",null,"urn:lsid:marinespecies.org:taxname:164941","Dysidea etheria ",null,null,null,null,null,null,null,null,null,null,null,null,null,null,null,null,null,null,null,null,null,null,null,null,null,null,null,null,null,null,null,null,null,null,null,null,null,null,"AnimaliaPoriferaDemospongiaeDictyoceratidaDysideidaeDysideaetheria","Animalia","Porifera","Demospongiae","Dictyoceratida","Dysideidae","Dysidea",null,"etheria","Especie","Laubenfels, 1936","ICZN","Aceptado"]
["INVEMAR:CORALINA:SAI2018:MCE:039","Observación humana","Evento","ES","Creative Commons Attribution Non Commercial (CC-BY-NC) 4.0 License","INVEMAR","Sólo para uso no comercial","ColombiaNIT:800250062-0","INV_CoralinaSAI2018_MCE","INVEMAR","INVEMARCORALINASAI2018","Biodiversidad de los ecosistemas de coral mesofóticos en San andrés islas 2018","INVEMAR","INV_CoralinaSAI2018_MCE:039","39","Katherine Mejía y Luis Chasqui",null,"Presente",null,"Censo visual","6 inmersiones con rebreather","2018-04-16/2018-04-19","Ecosistema de coral mesofótico","http://marineregions.org/mrgid/48551","SA | Colombia | Archipiélago se San Andrés, Providencia y Santa Catalina","SA","Mar Caribe","Archipiélago de San Andrés, Providencia y Santa Catalina","Isla de San Andrés","Colombia","CO","Archipiélago de San Andrés, Providencia y Santa Catalina","San Andrés",null,"Nirvana",40,70,"Dato in situ usando GPS","Sitio de buceo en el costado occidental de la Isla de San Andrés","12° 30,142' N","81° 44,038' W","Grados, Minutos decimales - GMS","WGS84",12.502359999999999,-81.733959999999996,"WGS84","Luis Chasqui","2018-04-16","http://www.gbif.org/orc/?doc_id=1288",null,"Verificado por el proveedor de datos","Georreferenciado in situ con GPS","Katherine Mejía y Luis Chasqui","2018-04-16/2018-04-19","identificado in situ con base en morfología",null,"urn:lsid:marinespecies.org:taxname:166666","Amphimedon compressa",null,null,null,null,null,null,null,null,null,null,null,null,null,null,null,null,null,null,null,null,null,null,null,null,null,null,null,null,null,null,null,null,null,null,null,null,null,null,"AnimaliaPoriferaDemospongiaeHaploscleridaNiphatidaeAmphimedoncompressa","Animalia","Porifera","Demospongiae","Haplosclerida","Niphatidae","Amphimedon",null,"compressa","Especie","Duchassaing & Michelotti, 1864","ICZN","Aceptado"]
["INVEMAR:CORALINA:SAI2018:MCE:040","Observación humana","Evento","ES","Creative Commons Attribution Non Commercial (CC-BY-NC) 4.0 License","INVEMAR","Sólo para uso no comercial","ColombiaNIT:800250062-0","INV_CoralinaSAI2018_MCE","INVEMAR","INVEMARCORALINASAI2018","Biodiversidad de los ecosistemas de coral mesofóticos en San andrés islas 2018","INVEMAR","INV_CoralinaSAI2018_MCE:040","40","Katherine Mejía y Luis Chasqui",null,"Presente",null,"Censo visual","6 inmersiones con rebreather","2018-04-16/2018-04-19","Ecosistema de coral mesofótico","http://marineregions.org/mrgid/48551","SA | Colombia | Archipiélago se San Andrés, Providencia y Santa Catalina","SA","Mar Caribe","Archipiélago de San Andrés, Providencia y Santa Catalina","Isla de San Andrés","Colombia","CO","Archipiélago de San Andrés, Providencia y Santa Catalina","San Andrés",null,"Nirvana",50,70,"Dato in situ usando GPS","Sitio de buceo en el costado occidental de la Isla de San Andrés","12° 30,142' N","81° 44,038' W","Grados, Minutos decimales - GMS","WGS84",12.502359999999999,-81.733959999999996,"WGS84","Luis Chasqui","2018-04-16","http://www.gbif.org/orc/?doc_id=1288",null,"Verificado por el proveedor de datos","Georreferenciado in situ con GPS","Katherine Mejía y Luis Chasqui","2018-04-16/2018-04-19","identificado in situ con base en morfología",null,"urn:lsid:marinespecies.org:taxname:166708","Cribrochalina vasculum",null,null,null,null,null,null,null,null,null,null,null,null,null,null,null,null,null,null,null,null,null,null,null,null,null,null,null,null,null,null,null,null,null,null,null,null,null,null,"AnimaliaPoriferaDemospongiaeHaploscleridaNiphatidaeCribrochalinavasculum","Animalia","Porifera","Demospongiae","Haplosclerida","Niphatidae","Cribrochalina",null,"vasculum","Especie","(Lamarck, 1814)","ICZN","Aceptado"]
["INVEMAR:CORALINA:SAI2018:MCE:041","Observación humana","Evento","ES","Creative Commons Attribution Non Commercial (CC-BY-NC) 4.0 License","INVEMAR","Sólo para uso no comercial","ColombiaNIT:800250062-0","INV_CoralinaSAI2018_MCE","INVEMAR","INVEMARCORALINASAI2018","Biodiversidad de los ecosistemas de coral mesofóticos en San andrés islas 2018","INVEMAR","INV_CoralinaSAI2018_MCE:041","41","Katherine Mejía y Luis Chasqui",null,"Presente",null,"Censo visual","6 inmersiones con rebreather","2018-04-16/2018-04-19","Ecosistema de coral mesofótico","http://marineregions.org/mrgid/48551","SA | Colombia | Archipiélago se San Andrés, Providencia y Santa Catalina","SA","Mar Caribe","Archipiélago de San Andrés, Providencia y Santa Catalina","Isla de San Andrés","Colombia","CO","Archipiélago de San Andrés, Providencia y Santa Catalina","San Andrés",null,"Nirvana",40,50,"Dato in situ usando GPS","Sitio de buceo en el costado occidental de la Isla de San Andrés","12° 30,142' N","81° 44,038' W","Grados, Minutos decimales - GMS","WGS84",12.502359999999999,-81.733959999999996,"WGS84","Luis Chasqui","2018-04-16","http://www.gbif.org/orc/?doc_id=1288",null,"Verificado por el proveedor de datos","Georreferenciado in situ con GPS","Katherine Mejía y Luis Chasqui","2018-04-16/2018-04-19","identificado in situ con base en morfología",null,"urn:lsid:marinespecies.org:taxname:169379","Iotrochota birotulata",null,null,null,null,null,null,null,null,null,null,null,null,null,null,null,null,null,null,null,null,null,null,null,null,null,null,null,null,null,null,null,null,null,null,null,null,null,null,"AnimaliaPoriferaDemospongiaePoeciloscleridaIotrochotidaeIotrochotabirotulata","Animalia","Porifera","Demospongiae","Poecilosclerida","Iotrochotidae","Iotrochota",null,"birotulata","Especie","(Higgin, 1877)","ICZN","Aceptado"]
["INVEMAR:CORALINA:SAI2018:MCE:042","Observación humana","Evento","ES","Creative Commons Attribution Non Commercial (CC-BY-NC) 4.0 License","INVEMAR","Sólo para uso no comercial","ColombiaNIT:800250062-0","INV_CoralinaSAI2018_MCE","INVEMAR","INVEMARCORALINASAI2018","Biodiversidad de los ecosistemas de coral mesofóticos en San andrés islas 2018","INVEMAR","INV_CoralinaSAI2018_MCE:042","42","Katherine Mejía y Luis Chasqui",null,"Presente",null,"Censo visual","6 inmersiones con rebreather","2018-04-16/2018-04-19","Ecosistema de coral mesofótico","http://marineregions.org/mrgid/48551","SA | Colombia | Archipiélago se San Andrés, Providencia y Santa Catalina","SA","Mar Caribe","Archipiélago de San Andrés, Providencia y Santa Catalina","Isla de San Andrés","Colombia","CO","Archipiélago de San Andrés, Providencia y Santa Catalina","San Andrés",null,"Nirvana",40,50,"Dato in situ usando GPS","Sitio de buceo en el costado occidental de la Isla de San Andrés","12° 30,142' N","81° 44,038' W","Grados, Minutos decimales - GMS","WGS84",12.502359999999999,-81.733959999999996,"WGS84","Luis Chasqui","2018-04-16","http://www.gbif.org/orc/?doc_id=1288",null,"Verificado por el proveedor de datos","Georreferenciado in situ con GPS","Katherine Mejía y Luis Chasqui","2018-04-16/2018-04-19","identificado in situ con base en morfología",null,"urn:lsid:marinespecies.org:taxname:165051","Ircinia strobilina",null,null,null,null,null,null,null,null,null,null,null,null,null,null,null,null,null,null,null,null,null,null,null,null,null,null,null,null,null,null,null,null,null,null,null,null,null,null,"AnimaliaPoriferaDemospongiaeDictyoceratidaIrciniidaeIrciniastrobilina","Animalia","Porifera","Demospongiae","Dictyoceratida","Irciniidae","Ircinia",null,"strobilina","Especie","(Lamarck, 1816)","ICZN","Aceptado"]
["INVEMAR:CORALINA:SAI2018:MCE:043","Observación humana","Evento","ES","Creative Commons Attribution Non Commercial (CC-BY-NC) 4.0 License","INVEMAR","Sólo para uso no comercial","ColombiaNIT:800250062-0","INV_CoralinaSAI2018_MCE","INVEMAR","INVEMARCORALINASAI2018","Biodiversidad de los ecosistemas de coral mesofóticos en San andrés islas 2018","INVEMAR","INV_CoralinaSAI2018_MCE:043","43","Katherine Mejía y Luis Chasqui",null,"Presente",null,"Censo visual","6 inmersiones con rebreather","2018-04-16/2018-04-19","Ecosistema de coral mesofótico","http://marineregions.org/mrgid/48551","SA | Colombia | Archipiélago se San Andrés, Providencia y Santa Catalina","SA","Mar Caribe","Archipiélago de San Andrés, Providencia y Santa Catalina","Isla de San Andrés","Colombia","CO","Archipiélago de San Andrés, Providencia y Santa Catalina","San Andrés",null,"Nirvana",50,70,"Dato in situ usando GPS","Sitio de buceo en el costado occidental de la Isla de San Andrés","12° 30,142' N","81° 44,038' W","Grados, Minutos decimales - GMS","WGS84",12.502359999999999,-81.733959999999996,"WGS84","Luis Chasqui","2018-04-16","http://www.gbif.org/orc/?doc_id=1288",null,"Verificado por el proveedor de datos","Georreferenciado in situ con GPS","Katherine Mejía y Luis Chasqui","2018-04-16/2018-04-19","identificado in situ con base en morfología",null,"urn:lsid:marinespecies.org:taxname:131983","Plakortis",null,null,null,null,null,null,null,null,null,null,null,null,null,null,null,null,null,null,null,null,null,null,null,null,null,null,null,null,null,null,null,null,null,null,null,null,null,null,"AnimaliaPoriferaHomoscleromorphaHomosclerophoridaPlakinidaePlakortis","Animalia","Porifera","Homoscleromorpha","Homosclerophorida","Plakinidae","Plakortis",null,null,"Género","Schulze, 1880","ICZN","Aceptado"]
["INVEMAR:CORALINA:SAI2018:MCE:044","Observación humana","Evento","ES","Creative Commons Attribution Non Commercial (CC-BY-NC) 4.0 License","INVEMAR","Sólo para uso no comercial","ColombiaNIT:800250062-0","INV_CoralinaSAI2018_MCE","INVEMAR","INVEMARCORALINASAI2018","Biodiversidad de los ecosistemas de coral mesofóticos en San andrés islas 2018","INVEMAR","INV_CoralinaSAI2018_MCE:044","44","Katherine Mejía y Luis Chasqui",null,"Presente",null,"Censo visual","6 inmersiones con rebreather","2018-04-16/2018-04-19","Ecosistema de coral mesofótico","http://marineregions.org/mrgid/48551","SA | Colombia | Archipiélago se San Andrés, Providencia y Santa Catalina","SA","Mar Caribe","Archipiélago de San Andrés, Providencia y Santa Catalina","Isla de San Andrés","Colombia","CO","Archipiélago de San Andrés, Providencia y Santa Catalina","San Andrés",null,"Nirvana",40,70,"Dato in situ usando GPS","Sitio de buceo en el costado occidental de la Isla de San Andrés","12° 30,142' N","81° 44,038' W","Grados, Minutos decimales - GMS","WGS84",12.502359999999999,-81.733959999999996,"WGS84","Luis Chasqui","2018-04-16","http://www.gbif.org/orc/?doc_id=1288",null,"Verificado por el proveedor de datos","Georreferenciado in situ con GPS","Katherine Mejía y Luis Chasqui","2018-04-16/2018-04-19","identificado in situ con base en morfología",null,"urn:lsid:marinespecies.org:taxname:165702","Scopalina ruetzleri",null,null,null,null,null,null,null,null,null,null,null,null,null,null,null,null,null,null,null,null,null,null,null,null,null,null,null,null,null,null,null,null,null,null,null,null,null,null,"AnimaliaPoriferaDemospongiaeScopalinidaScopalinidaeScopalinaruetzleri","Animalia","Porifera","Demospongiae","Scopalinida","Scopalinidae","Scopalina",null,"ruetzleri","Especie","(Wiedenmayer, 1977)","ICZN","Aceptado"]
["INVEMAR:CORALINA:SAI2018:MCE:045","Observación humana","Evento","ES","Creative Commons Attribution Non Commercial (CC-BY-NC) 4.0 License","INVEMAR","Sólo para uso no comercial","ColombiaNIT:800250062-0","INV_CoralinaSAI2018_MCE","INVEMAR","INVEMARCORALINASAI2018","Biodiversidad de los ecosistemas de coral mesofóticos en San andrés islas 2018","INVEMAR","INV_CoralinaSAI2018_MCE:045","45","Katherine Mejía y Luis Chasqui",null,"Presente",null,"Censo visual","6 inmersiones con rebreather","2018-04-16/2018-04-19","Ecosistema de coral mesofótico","http://marineregions.org/mrgid/48551","SA | Colombia | Archipiélago se San Andrés, Providencia y Santa Catalina","SA","Mar Caribe","Archipiélago de San Andrés, Providencia y Santa Catalina","Isla de San Andrés","Colombia","CO","Archipiélago de San Andrés, Providencia y Santa Catalina","San Andrés",null,"Nirvana",40,50,"Dato in situ usando GPS","Sitio de buceo en el costado occidental de la Isla de San Andrés","12° 30,142' N","81° 44,038' W","Grados, Minutos decimales - GMS","WGS84",12.502359999999999,-81.733959999999996,"WGS84","Luis Chasqui","2018-04-16","http://www.gbif.org/orc/?doc_id=1288",null,"Verificado por el proveedor de datos","Georreferenciado in situ con GPS","Katherine Mejía y Luis Chasqui","2018-04-16/2018-04-19","identificado in situ con base en morfología",null,"urn:lsid:marinespecies.org:taxname:165717","Svenzea zeai",null,null,null,null,null,null,null,null,null,null,null,null,null,null,null,null,null,null,null,null,null,null,null,null,null,null,null,null,null,null,null,null,null,null,null,null,null,null,"AnimaliaPoriferaDemospongiaeScopalinidaScopalinidaeSvenzeazeai","Animalia","Porifera","Demospongiae","Scopalinida","Scopalinidae","Svenzea",null,"zeai","Especie","(Alvarez, van Soest & Rützler, 1998)","ICZN","Aceptado"]
["INVEMAR:CORALINA:SAI2018:MCE:046","Observación humana","Evento","ES","Creative Commons Attribution Non Commercial (CC-BY-NC) 4.0 License","INVEMAR","Sólo para uso no comercial","ColombiaNIT:800250062-0","INV_CoralinaSAI2018_MCE","INVEMAR","INVEMARCORALINASAI2018","Biodiversidad de los ecosistemas de coral mesofóticos en San andrés islas 2018","INVEMAR","INV_CoralinaSAI2018_MCE:046","46","Katherine Mejía y Luis Chasqui",null,"Presente",null,"Censo visual","6 inmersiones con rebreather","2018-04-16/2018-04-19","Ecosistema de coral mesofótico","http://marineregions.org/mrgid/48551","SA | Colombia | Archipiélago se San Andrés, Providencia y Santa Catalina","SA","Mar Caribe","Archipiélago de San Andrés, Providencia y Santa Catalina","Isla de San Andrés","Colombia","CO","Archipiélago de San Andrés, Providencia y Santa Catalina","San Andrés",null,"Nirvana",40,70,"Dato in situ usando GPS","Sitio de buceo en el costado occidental de la Isla de San Andrés","12° 30,142' N","81° 44,038' W","Grados, Minutos decimales - GMS","WGS84",12.502359999999999,-81.733959999999996,"WGS84","Luis Chasqui","2018-04-16","http://www.gbif.org/orc/?doc_id=1288",null,"Verificado por el proveedor de datos","Georreferenciado in situ con GPS","Katherine Mejía y Luis Chasqui","2018-04-16/2018-04-19","identificado in situ con base en morfología",null,"urn:lsid:marinespecies.org:taxname:166894","Xestospongia muta",null,null,null,null,null,null,null,null,null,null,null,null,null,null,null,null,null,null,null,null,null,null,null,null,null,null,null,null,null,null,null,null,null,null,null,null,null,null,"AnimaliaPoriferaDemospongiaeHaploscleridaPetrosiidaeXestospongiamuta","Animalia","Porifera","Demospongiae","Haplosclerida","Petrosiidae","Xestospongia",null,"muta","Especie","(Schmidt, 1870)","ICZN","Aceptado"]
["INVEMAR:CORALINA:SAI2018:MCE:047","Observación humana","Evento","ES","Creative Commons Attribution Non Commercial (CC-BY-NC) 4.0 License","INVEMAR","Sólo para uso no comercial","ColombiaNIT:800250062-0","INV_CoralinaSAI2018_MCE","INVEMAR","INVEMARCORALINASAI2018","Biodiversidad de los ecosistemas de coral mesofóticos en San andrés islas 2018","INVEMAR","INV_CoralinaSAI2018_MCE:047","47","Luis Chasqui y Juan David Gonzáles",null,"Presente",null,"Censo visual","6 inmersiones con rebreather","2018-04-16/2018-04-19","Ecosistema de coral mesofótico","http://marineregions.org/mrgid/48551","SA | Colombia | Archipiélago se San Andrés, Providencia y Santa Catalina","SA","Mar Caribe","Archipiélago de San Andrés, Providencia y Santa Catalina","Isla de San Andrés","Colombia","CO","Archipiélago de San Andrés, Providencia y Santa Catalina","San Andrés",null,"Nirvana",50,70,"Dato in situ usando GPS","Sitio de buceo en el costado occidental de la Isla de San Andrés","12° 30,142' N","81° 44,038' W","Grados, Minutos decimales - GMS","WGS84",12.502359999999999,-81.733959999999996,"WGS84","Luis Chasqui","2018-04-16","http://www.gbif.org/orc/?doc_id=1288",null,"Verificado por el proveedor de datos","Georreferenciado in situ con GPS","Luis Chasqui y Juan David Gonzáles","2018-04-16/2018-04-19","identificado in situ con base en morfología",null,"urn:lsid:marinespecies.org:taxname:212501","Symplegma viride",null,null,null,null,null,null,null,null,null,null,null,null,null,null,null,null,null,null,null,null,null,null,null,null,null,null,null,null,null,null,null,null,null,null,null,null,null,null,"AnimaliaChordataAscidiaceaStolidobranchiaStyelidaeSymplegmaviride","Animalia","Chordata","Ascidiacea","Stolidobranchia","Styelidae","Symplegma",null,"viride","Especie","Herdman, 1886","ICZN","Aceptado"]
["INVEMAR:CORALINA:SAI2018:MCE:048","Observación humana","Evento","ES","Creative Commons Attribution Non Commercial (CC-BY-NC) 4.0 License","INVEMAR","Sólo para uso no comercial","ColombiaNIT:800250062-0","INV_CoralinaSAI2018_MCE","INVEMAR","INVEMARCORALINASAI2018","Biodiversidad de los ecosistemas de coral mesofóticos en San andrés islas 2018","INVEMAR","INV_CoralinaSAI2018_MCE:048","48","Luis Chasqui y Juan David Gonzáles","Ver: Chasqui et al. 2020 (en prep)","Presente",null,"Censo visual","6 inmersiones con rebreather","2018-04-16/2018-04-19","Ecosistema de coral mesofótico","http://marineregions.org/mrgid/48551","SA | Colombia | Archipiélago se San Andrés, Providencia y Santa Catalina","SA","Mar Caribe","Archipiélago de San Andrés, Providencia y Santa Catalina","Isla de San Andrés","Colombia","CO","Archipiélago de San Andrés, Providencia y Santa Catalina","San Andrés",null,"Nirvana",40,70,"Dato in situ usando GPS","Sitio de buceo en el costado occidental de la Isla de San Andrés","12° 30,142' N","81° 44,038' W","Grados, Minutos decimales - GMS","WGS84",12.502359999999999,-81.733959999999996,"WGS84","Luis Chasqui","2018-04-16","http://www.gbif.org/orc/?doc_id=1288",null,"Verificado por el proveedor de datos","Georreferenciado in situ con GPS","Luis Chasqui y Juan David Gonzáles","2018-04-16/2018-04-19","identificado in situ con base en morfología",null,"urn:lsid:marinespecies.org:taxname:105794","Carcharhinus longimanus",null,null,null,null,null,null,null,null,null,null,null,null,null,null,null,null,null,null,null,null,null,null,null,null,null,null,null,null,null,null,null,null,null,null,null,null,null,null,"AnimaliaChordataElasmobranchiiCarcharhiniformesCarcharhinidaeCarcharhinuslongimanus","Animalia","Chordata","Elasmobranchii","Carcharhiniformes","Carcharhinidae","Carcharhinus",null,"longimanus","Especie","(Poey, 1861)","ICZN","Aceptado"]
["INVEMAR:CORALINA:SAI2018:MCE:049","Observación humana","Evento","ES","Creative Commons Attribution Non Commercial (CC-BY-NC) 4.0 License","INVEMAR","Sólo para uso no comercial","ColombiaNIT:800250062-0","INV_CoralinaSAI2018_MCE","INVEMAR","INVEMARCORALINASAI2018","Biodiversidad de los ecosistemas de coral mesofóticos en San andrés islas 2018","INVEMAR","INV_CoralinaSAI2018_MCE:049","49","Luis Chasqui y Juan David Gonzáles","Ver: Chasqui et al. 2020 (en prep)","Presente",null,"Censo visual","6 inmersiones con rebreather","2018-04-16/2018-04-19","Ecosistema de coral mesofótico","http://marineregions.org/mrgid/48551","SA | Colombia | Archipiélago se San Andrés, Providencia y Santa Catalina","SA","Mar Caribe","Archipiélago de San Andrés, Providencia y Santa Catalina","Isla de San Andrés","Colombia","CO","Archipiélago de San Andrés, Providencia y Santa Catalina","San Andrés",null,"Nirvana",40,70,"Dato in situ usando GPS","Sitio de buceo en el costado occidental de la Isla de San Andrés","12° 30,142' N","81° 44,038' W","Grados, Minutos decimales - GMS","WGS84",12.502359999999999,-81.733959999999996,"WGS84","Luis Chasqui","2018-04-16","http://www.gbif.org/orc/?doc_id=1288",null,"Verificado por el proveedor de datos","Georreferenciado in situ con GPS","Luis Chasqui y Juan David Gonzáles","2018-04-16/2018-04-19","identificado in situ con base en morfología",null,"urn:lsid:marinespecies.org:taxname:271324","Carcharhinus perezii",null,null,null,null,null,null,null,null,null,null,null,null,null,null,null,null,null,null,null,null,null,null,null,null,null,null,null,null,null,null,null,null,null,null,null,null,null,null,"AnimaliaChordataElasmobranchiiCarcharhiniformesCarcharhinidaeCarcharhinusperezii","Animalia","Chordata","Elasmobranchii","Carcharhiniformes","Carcharhinidae","Carcharhinus",null,"perezii","Especie","(Poey, 1876)","ICZN","Aceptado"]
["INVEMAR:CORALINA:SAI2018:MCE:050","Observación humana","Evento","ES","Creative Commons Attribution Non Commercial (CC-BY-NC) 4.0 License","INVEMAR","Sólo para uso no comercial","ColombiaNIT:800250062-0","INV_CoralinaSAI2018_MCE","INVEMAR","INVEMARCORALINASAI2018","Biodiversidad de los ecosistemas de coral mesofóticos en San andrés islas 2018","INVEMAR","INV_CoralinaSAI2018_MCE:050","50","Luis Chasqui y Juan David Gonzáles","Ver: Chasqui et al. 2020 (en prep)","Presente",null,"Censo visual","6 inmersiones con rebreather","2018-04-16/2018-04-19","Ecosistema de coral mesofótico","http://marineregions.org/mrgid/48551","SA | Colombia | Archipiélago se San Andrés, Providencia y Santa Catalina","SA","Mar Caribe","Archipiélago de San Andrés, Providencia y Santa Catalina","Isla de San Andrés","Colombia","CO","Archipiélago de San Andrés, Providencia y Santa Catalina","San Andrés",null,"Nirvana",50,70,"Dato in situ usando GPS","Sitio de buceo en el costado occidental de la Isla de San Andrés","12° 30,142' N","81° 44,038' W","Grados, Minutos decimales - GMS","WGS84",12.502359999999999,-81.733959999999996,"WGS84","Luis Chasqui","2018-04-16","http://www.gbif.org/orc/?doc_id=1288",null,"Verificado por el proveedor de datos","Georreferenciado in situ con GPS","Luis Chasqui y Juan David Gonzáles","2018-04-16/2018-04-19","identificado in situ con base en morfología",null,"urn:lsid:marinespecies.org:taxname:126373","Synodus synodus ",null,null,null,null,null,null,null,null,null,null,null,null,null,null,null,null,null,null,null,null,null,null,null,null,null,null,null,null,null,null,null,null,null,null,null,null,null,null,"AnimaliaChordataActinopterygiiAulopiformesSynodontidaeSynodussynodus","Animalia","Chordata","Actinopterygii","Aulopiformes","Synodontidae","Synodus",null,"synodus","Especie","(Linnaeus, 1758)","ICZN","Aceptado"]
["INVEMAR:CORALINA:SAI2018:MCE:051","Observación humana","Evento","ES","Creative Commons Attribution Non Commercial (CC-BY-NC) 4.0 License","INVEMAR","Sólo para uso no comercial","ColombiaNIT:800250062-0","INV_CoralinaSAI2018_MCE","INVEMAR","INVEMARCORALINASAI2018","Biodiversidad de los ecosistemas de coral mesofóticos en San andrés islas 2018","INVEMAR","INV_CoralinaSAI2018_MCE:051","51","Luis Chasqui y Juan David Gonzáles","Ver: Chasqui et al. 2020 (en prep)","Presente",null,"Censo visual","6 inmersiones con rebreather","2018-04-16/2018-04-19","Ecosistema de coral mesofótico","http://marineregions.org/mrgid/48551","SA | Colombia | Archipiélago se San Andrés, Providencia y Santa Catalina","SA","Mar Caribe","Archipiélago de San Andrés, Providencia y Santa Catalina","Isla de San Andrés","Colombia","CO","Archipiélago de San Andrés, Providencia y Santa Catalina","San Andrés",null,"Nirvana",50,70,"Dato in situ usando GPS","Sitio de buceo en el costado occidental de la Isla de San Andrés","12° 30,142' N","81° 44,038' W","Grados, Minutos decimales - GMS","WGS84",12.502359999999999,-81.733959999999996,"WGS84","Luis Chasqui","2018-04-16","http://www.gbif.org/orc/?doc_id=1288",null,"Verificado por el proveedor de datos","Georreferenciado in situ con GPS","Luis Chasqui y Juan David Gonzáles","2018-04-16/2018-04-19","identificado in situ con base en morfología",null,"urn:lsid:marinespecies.org:taxname:311312","Flammeo marianus ",null,null,null,null,null,null,null,null,null,null,null,null,null,null,null,null,null,null,null,null,null,null,null,null,null,null,null,null,null,null,null,null,null,null,null,null,null,null,"AnimaliaChordataActinopterygiiBeryciformesHolocentridaeFlammeomarianus","Animalia","Chordata","Actinopterygii","Beryciformes","Holocentridae","Flammeo",null,"marianus","Especie","(Cuvier, 1829)","ICZN","Aceptado"]
["INVEMAR:CORALINA:SAI2018:MCE:052","Observación humana","Evento","ES","Creative Commons Attribution Non Commercial (CC-BY-NC) 4.0 License","INVEMAR","Sólo para uso no comercial","ColombiaNIT:800250062-0","INV_CoralinaSAI2018_MCE","INVEMAR","INVEMARCORALINASAI2018","Biodiversidad de los ecosistemas de coral mesofóticos en San andrés islas 2018","INVEMAR","INV_CoralinaSAI2018_MCE:052","52","Luis Chasqui y Juan David Gonzáles","Ver: Chasqui et al. 2020 (en prep)","Presente",null,"Censo visual","6 inmersiones con rebreather","2018-04-16/2018-04-19","Ecosistema de coral mesofótico","http://marineregions.org/mrgid/48551","SA | Colombia | Archipiélago se San Andrés, Providencia y Santa Catalina","SA","Mar Caribe","Archipiélago de San Andrés, Providencia y Santa Catalina","Isla de San Andrés","Colombia","CO","Archipiélago de San Andrés, Providencia y Santa Catalina","San Andrés",null,"Nirvana",40,70,"Dato in situ usando GPS","Sitio de buceo en el costado occidental de la Isla de San Andrés","12° 30,142' N","81° 44,038' W","Grados, Minutos decimales - GMS","WGS84",12.502359999999999,-81.733959999999996,"WGS84","Luis Chasqui","2018-04-16","http://www.gbif.org/orc/?doc_id=1288",null,"Verificado por el proveedor de datos","Georreferenciado in situ con GPS","Luis Chasqui y Juan David Gonzáles","2018-04-16/2018-04-19","identificado in situ con base en morfología",null,"urn:lsid:marinespecies.org:taxname:280601","Elacatinus evelynae ",null,null,null,null,null,null,null,null,null,null,null,null,null,null,null,null,null,null,null,null,null,null,null,null,null,null,null,null,null,null,null,null,null,null,null,null,null,null,"AnimaliaChordataActinopterygiiPerciformesGobiidaeElacatinusevelynae","Animalia","Chordata","Actinopterygii","Perciformes","Gobiidae","Elacatinus",null,"evelynae","Especie","(Böhlke y Robins, 1968)","ICZN","Aceptado"]
["INVEMAR:CORALINA:SAI2018:MCE:053","Observación humana","Evento","ES","Creative Commons Attribution Non Commercial (CC-BY-NC) 4.0 License","INVEMAR","Sólo para uso no comercial","ColombiaNIT:800250062-0","INV_CoralinaSAI2018_MCE","INVEMAR","INVEMARCORALINASAI2018","Biodiversidad de los ecosistemas de coral mesofóticos en San andrés islas 2018","INVEMAR","INV_CoralinaSAI2018_MCE:053","53","Luis Chasqui y Juan David Gonzáles","Ver: Chasqui et al. 2020 (en prep)","Presente",null,"Censo visual","6 inmersiones con rebreather","2018-04-16/2018-04-19","Ecosistema de coral mesofótico","http://marineregions.org/mrgid/48551","SA | Colombia | Archipiélago se San Andrés, Providencia y Santa Catalina","SA","Mar Caribe","Archipiélago de San Andrés, Providencia y Santa Catalina","Isla de San Andrés","Colombia","CO","Archipiélago de San Andrés, Providencia y Santa Catalina","San Andrés",null,"Nirvana",40,50,"Dato in situ usando GPS","Sitio de buceo en el costado occidental de la Isla de San Andrés","12° 30,142' N","81° 44,038' W","Grados, Minutos decimales - GMS","WGS84",12.502359999999999,-81.733959999999996,"WGS84","Luis Chasqui","2018-04-16","http://www.gbif.org/orc/?doc_id=1288",null,"Verificado por el proveedor de datos","Georreferenciado in situ con GPS","Luis Chasqui y Juan David Gonzáles","2018-04-16/2018-04-19","identificado in situ con base en morfología",null,"urn:lsid:marinespecies.org:taxname:280605","Elacatinus horsti ",null,null,null,null,null,null,null,null,null,null,null,null,null,null,null,null,null,null,null,null,null,null,null,null,null,null,null,null,null,null,null,null,null,null,null,null,null,null,"AnimaliaChordataActinopterygiiPerciformesGobiidaeElacatinushorsti","Animalia","Chordata","Actinopterygii","Perciformes","Gobiidae","Elacatinus",null,"horsti","Especie","(Metzelaar, 1922)","ICZN","Aceptado"]
["INVEMAR:CORALINA:SAI2018:MCE:054","Observación humana","Evento","ES","Creative Commons Attribution Non Commercial (CC-BY-NC) 4.0 License","INVEMAR","Sólo para uso no comercial","ColombiaNIT:800250062-0","INV_CoralinaSAI2018_MCE","INVEMAR","INVEMARCORALINASAI2018","Biodiversidad de los ecosistemas de coral mesofóticos en San andrés islas 2018","INVEMAR","INV_CoralinaSAI2018_MCE:054","54","Luis Chasqui y Juan David Gonzáles","Ver: Chasqui et al. 2020 (en prep)","Presente",null,"Censo visual","6 inmersiones con rebreather","2018-04-16/2018-04-19","Ecosistema de coral mesofótico","http://marineregions.org/mrgid/48551","SA | Colombia | Archipiélago se San Andrés, Providencia y Santa Catalina","SA","Mar Caribe","Archipiélago de San Andrés, Providencia y Santa Catalina","Isla de San Andrés","Colombia","CO","Archipiélago de San Andrés, Providencia y Santa Catalina","San Andrés",null,"Nirvana",40,50,"Dato in situ usando GPS","Sitio de buceo en el costado occidental de la Isla de San Andrés","12° 30,142' N","81° 44,038' W","Grados, Minutos decimales - GMS","WGS84",12.502359999999999,-81.733959999999996,"WGS84","Luis Chasqui","2018-04-16","http://www.gbif.org/orc/?doc_id=1288",null,"Verificado por el proveedor de datos","Georreferenciado in situ con GPS","Luis Chasqui y Juan David Gonzáles","2018-04-16/2018-04-19","identificado in situ con base en morfología",null,"urn:lsid:marinespecies.org:taxname:280606","Elacatinus illecebrosus ",null,null,null,null,null,null,null,null,null,null,null,null,null,null,null,null,null,null,null,null,null,null,null,null,null,null,null,null,null,null,null,null,null,null,null,null,null,null,"AnimaliaChordataActinopterygiiPerciformesGobiidaeElacatinusillecebrosus","Animalia","Chordata","Actinopterygii","Perciformes","Gobiidae","Elacatinus",null,"illecebrosus","Especie","(Böhlke y Robins, 1968)","ICZN","Aceptado"]
["INVEMAR:CORALINA:SAI2018:MCE:055","Observación humana","Evento","ES","Creative Commons Attribution Non Commercial (CC-BY-NC) 4.0 License","INVEMAR","Sólo para uso no comercial","ColombiaNIT:800250062-0","INV_CoralinaSAI2018_MCE","INVEMAR","INVEMARCORALINASAI2018","Biodiversidad de los ecosistemas de coral mesofóticos en San andrés islas 2018","INVEMAR","INV_CoralinaSAI2018_MCE:055","55","Luis Chasqui y Juan David Gonzáles","Ver: Chasqui et al. 2020 (en prep)","Presente",null,"Censo visual","6 inmersiones con rebreather","2018-04-16/2018-04-19","Ecosistema de coral mesofótico","http://marineregions.org/mrgid/48551","SA | Colombia | Archipiélago se San Andrés, Providencia y Santa Catalina","SA","Mar Caribe","Archipiélago de San Andrés, Providencia y Santa Catalina","Isla de San Andrés","Colombia","CO","Archipiélago de San Andrés, Providencia y Santa Catalina","San Andrés",null,"Nirvana",40,70,"Dato in situ usando GPS","Sitio de buceo en el costado occidental de la Isla de San Andrés","12° 30,142' N","81° 44,038' W","Grados, Minutos decimales - GMS","WGS84",12.502359999999999,-81.733959999999996,"WGS84","Luis Chasqui","2018-04-16","http://www.gbif.org/orc/?doc_id=1288",null,"Verificado por el proveedor de datos","Georreferenciado in situ con GPS","Luis Chasqui y Juan David Gonzáles","2018-04-16/2018-04-19","identificado in situ con base en morfología",null,"urn:lsid:marinespecies.org:taxname:276432","Coryphopterus personatus ",null,null,null,null,null,null,null,null,null,null,null,null,null,null,null,null,null,null,null,null,null,null,null,null,null,null,null,null,null,null,null,null,null,null,null,null,null,null,"AnimaliaChordataActinopterygiiPerciformesGobiidaeCoryphopteruspersonatus","Animalia","Chordata","Actinopterygii","Perciformes","Gobiidae","Coryphopterus",null,"personatus","Especie","(Jordan y Thompson, 1905)","ICZN","Aceptado"]
["INVEMAR:CORALINA:SAI2018:MCE:056","Observación humana","Evento","ES","Creative Commons Attribution Non Commercial (CC-BY-NC) 4.0 License","INVEMAR","Sólo para uso no comercial","ColombiaNIT:800250062-0","INV_CoralinaSAI2018_MCE","INVEMAR","INVEMARCORALINASAI2018","Biodiversidad de los ecosistemas de coral mesofóticos en San andrés islas 2018","INVEMAR","INV_CoralinaSAI2018_MCE:056","56","Luis Chasqui y Juan David Gonzáles","Ver: Chasqui et al. 2020 (en prep)","Presente",null,"Censo visual","6 inmersiones con rebreather","2018-04-16/2018-04-19","Ecosistema de coral mesofótico","http://marineregions.org/mrgid/48551","SA | Colombia | Archipiélago se San Andrés, Providencia y Santa Catalina","SA","Mar Caribe","Archipiélago de San Andrés, Providencia y Santa Catalina","Isla de San Andrés","Colombia","CO","Archipiélago de San Andrés, Providencia y Santa Catalina","San Andrés",null,"Nirvana",40,70,"Dato in situ usando GPS","Sitio de buceo en el costado occidental de la Isla de San Andrés","12° 30,142' N","81° 44,038' W","Grados, Minutos decimales - GMS","WGS84",12.502359999999999,-81.733959999999996,"WGS84","Luis Chasqui","2018-04-16","http://www.gbif.org/orc/?doc_id=1288",null,"Verificado por el proveedor de datos","Georreferenciado in situ con GPS","Luis Chasqui y Juan David Gonzáles","2018-04-16/2018-04-19","identificado in situ con base en morfología",null,"urn:lsid:marinespecies.org:taxname:159736","Coryphopterus glaucofraenum ",null,null,null,null,null,null,null,null,null,null,null,null,null,null,null,null,null,null,null,null,null,null,null,null,null,null,null,null,null,null,null,null,null,null,null,null,null,null,"AnimaliaChordataActinopterygiiPerciformesGobiidaeCoryphopterusglaucofraenum","Animalia","Chordata","Actinopterygii","Perciformes","Gobiidae","Coryphopterus",null,"glaucofraenum","Especie","Gill, 1863","ICZN","Aceptado"]
["INVEMAR:CORALINA:SAI2018:MCE:057","Observación humana","Evento","ES","Creative Commons Attribution Non Commercial (CC-BY-NC) 4.0 License","INVEMAR","Sólo para uso no comercial","ColombiaNIT:800250062-0","INV_CoralinaSAI2018_MCE","INVEMAR","INVEMARCORALINASAI2018","Biodiversidad de los ecosistemas de coral mesofóticos en San andrés islas 2018","INVEMAR","INV_CoralinaSAI2018_MCE:057","57","Luis Chasqui y Juan David Gonzáles","Ver: Chasqui et al. 2020 (en prep)","Presente",null,"Censo visual","6 inmersiones con rebreather","2018-04-16/2018-04-19","Ecosistema de coral mesofótico","http://marineregions.org/mrgid/48551","SA | Colombia | Archipiélago se San Andrés, Providencia y Santa Catalina","SA","Mar Caribe","Archipiélago de San Andrés, Providencia y Santa Catalina","Isla de San Andrés","Colombia","CO","Archipiélago de San Andrés, Providencia y Santa Catalina","San Andrés",null,"Nirvana",40,50,"Dato in situ usando GPS","Sitio de buceo en el costado occidental de la Isla de San Andrés","12° 30,142' N","81° 44,038' W","Grados, Minutos decimales - GMS","WGS84",12.502359999999999,-81.733959999999996,"WGS84","Luis Chasqui","2018-04-16","http://www.gbif.org/orc/?doc_id=1288",null,"Verificado por el proveedor de datos","Georreferenciado in situ con GPS","Luis Chasqui y Juan David Gonzáles","2018-04-16/2018-04-19","identificado in situ con base en morfología",null,"urn:lsid:marinespecies.org:taxname:276434","Coryphopterus thrix",null,null,null,null,null,null,null,null,null,null,null,null,null,null,null,null,null,null,null,null,null,null,null,null,null,null,null,null,null,null,null,null,null,null,null,null,null,null,"AnimaliaChordataActinopterygiiPerciformesGobiidaeCoryphopterusthrix","Animalia","Chordata","Actinopterygii","Perciformes","Gobiidae","Coryphopterus",null,"thrix","Especie","Böhlke y Robins, 1960","ICZN","Aceptado"]
["INVEMAR:CORALINA:SAI2018:MCE:058","Observación humana","Evento","ES","Creative Commons Attribution Non Commercial (CC-BY-NC) 4.0 License","INVEMAR","Sólo para uso no comercial","ColombiaNIT:800250062-0","INV_CoralinaSAI2018_MCE","INVEMAR","INVEMARCORALINASAI2018","Biodiversidad de los ecosistemas de coral mesofóticos en San andrés islas 2018","INVEMAR","INV_CoralinaSAI2018_MCE:058","58","Luis Chasqui y Juan David Gonzáles","Ver: Chasqui et al. 2020 (en prep)","Presente",null,"Censo visual","6 inmersiones con rebreather","2018-04-16/2018-04-19","Ecosistema de coral mesofótico","http://marineregions.org/mrgid/48551","SA | Colombia | Archipiélago se San Andrés, Providencia y Santa Catalina","SA","Mar Caribe","Archipiélago de San Andrés, Providencia y Santa Catalina","Isla de San Andrés","Colombia","CO","Archipiélago de San Andrés, Providencia y Santa Catalina","San Andrés",null,"Nirvana",40,50,"Dato in situ usando GPS","Sitio de buceo en el costado occidental de la Isla de San Andrés","12° 30,142' N","81° 44,038' W","Grados, Minutos decimales - GMS","WGS84",12.502359999999999,-81.733959999999996,"WGS84","Luis Chasqui","2018-04-16","http://www.gbif.org/orc/?doc_id=1288",null,"Verificado por el proveedor de datos","Georreferenciado in situ con GPS","Luis Chasqui y Juan David Gonzáles","2018-04-16/2018-04-19","identificado in situ con base en morfología",null,"urn:lsid:marinespecies.org:taxname:277493","Gnatholepis thompsoni",null,null,null,null,null,null,null,null,null,null,null,null,null,null,null,null,null,null,null,null,null,null,null,null,null,null,null,null,null,null,null,null,null,null,null,null,null,null,"AnimaliaChordataActinopterygiiPerciformesGobiidaeGnatholepisthompsoni","Animalia","Chordata","Actinopterygii","Perciformes","Gobiidae","Gnatholepis",null,"thompsoni","Especie","Jordan, 1904","ICZN","Aceptado"]
["INVEMAR:CORALINA:SAI2018:MCE:059","Observación humana","Evento","ES","Creative Commons Attribution Non Commercial (CC-BY-NC) 4.0 License","INVEMAR","Sólo para uso no comercial","ColombiaNIT:800250062-0","INV_CoralinaSAI2018_MCE","INVEMAR","INVEMARCORALINASAI2018","Biodiversidad de los ecosistemas de coral mesofóticos en San andrés islas 2018","INVEMAR","INV_CoralinaSAI2018_MCE:059","59","Luis Chasqui y Juan David Gonzáles","Ver: Chasqui et al. 2020 (en prep)","Presente",null,"Censo visual","6 inmersiones con rebreather","2018-04-16/2018-04-19","Ecosistema de coral mesofótico","http://marineregions.org/mrgid/48551","SA | Colombia | Archipiélago se San Andrés, Providencia y Santa Catalina","SA","Mar Caribe","Archipiélago de San Andrés, Providencia y Santa Catalina","Isla de San Andrés","Colombia","CO","Archipiélago de San Andrés, Providencia y Santa Catalina","San Andrés",null,"Nirvana",40,50,"Dato in situ usando GPS","Sitio de buceo en el costado occidental de la Isla de San Andrés","12° 30,142' N","81° 44,038' W","Grados, Minutos decimales - GMS","WGS84",12.502359999999999,-81.733959999999996,"WGS84","Luis Chasqui","2018-04-16","http://www.gbif.org/orc/?doc_id=1288",null,"Verificado por el proveedor de datos","Georreferenciado in situ con GPS","Luis Chasqui y Juan David Gonzáles","2018-04-16/2018-04-19","identificado in situ con base en morfología",null,"urn:lsid:marinespecies.org:taxname:278080","Aulostomus maculatus ",null,null,null,null,null,null,null,null,null,null,null,null,null,null,null,null,null,null,null,null,null,null,null,null,null,null,null,null,null,null,null,null,null,null,null,null,null,null,"AnimaliaChordataActinopterygiiSyngnathiformesAulostomidaeAulostomusmaculatus","Animalia","Chordata","Actinopterygii","Syngnathiformes","Aulostomidae","Aulostomus",null,"maculatus","Especie","Valenciennes, 1841","ICZN","Aceptado"]
["INVEMAR:CORALINA:SAI2018:MCE:060","Observación humana","Evento","ES","Creative Commons Attribution Non Commercial (CC-BY-NC) 4.0 License","INVEMAR","Sólo para uso no comercial","ColombiaNIT:800250062-0","INV_CoralinaSAI2018_MCE","INVEMAR","INVEMARCORALINASAI2018","Biodiversidad de los ecosistemas de coral mesofóticos en San andrés islas 2018","INVEMAR","INV_CoralinaSAI2018_MCE:060","60","Luis Chasqui y Juan David Gonzáles","Ver: Chasqui et al. 2020 (en prep)","Presente",null,"Censo visual","6 inmersiones con rebreather","2018-04-16/2018-04-19","Ecosistema de coral mesofótico","http://marineregions.org/mrgid/48551","SA | Colombia | Archipiélago se San Andrés, Providencia y Santa Catalina","SA","Mar Caribe","Archipiélago de San Andrés, Providencia y Santa Catalina","Isla de San Andrés","Colombia","CO","Archipiélago de San Andrés, Providencia y Santa Catalina","San Andrés",null,"Nirvana",40,70,"Dato in situ usando GPS","Sitio de buceo en el costado occidental de la Isla de San Andrés","12° 30,142' N","81° 44,038' W","Grados, Minutos decimales - GMS","WGS84",12.502359999999999,-81.733959999999996,"WGS84","Luis Chasqui","2018-04-16","http://www.gbif.org/orc/?doc_id=1288",null,"Verificado por el proveedor de datos","Georreferenciado in situ con GPS","Luis Chasqui y Juan David Gonzáles","2018-04-16/2018-04-19","identificado in situ con base en morfología",null,"urn:lsid:marinespecies.org:taxname:277991","Mulloidichthys martinicus",null,null,null,null,null,null,null,null,null,null,null,null,null,null,null,null,null,null,null,null,null,null,null,null,null,null,null,null,null,null,null,null,null,null,null,null,null,null,"AnimaliaChordataActinopterygiiPerciformesMullidaeMulloidichthysmartinicus","Animalia","Chordata","Actinopterygii","Perciformes","Mullidae","Mulloidichthys",null,"martinicus","Especie","(Cuvier, 1829)","ICZN","Aceptado"]
["INVEMAR:CORALINA:SAI2018:MCE:061","Observación humana","Evento","ES","Creative Commons Attribution Non Commercial (CC-BY-NC) 4.0 License","INVEMAR","Sólo para uso no comercial","ColombiaNIT:800250062-0","INV_CoralinaSAI2018_MCE","INVEMAR","INVEMARCORALINASAI2018","Biodiversidad de los ecosistemas de coral mesofóticos en San andrés islas 2018","INVEMAR","INV_CoralinaSAI2018_MCE:061","61","Luis Chasqui y Juan David Gonzáles","Ver: Chasqui et al. 2020 (en prep)","Presente",null,"Censo visual","6 inmersiones con rebreather","2018-04-16/2018-04-19","Ecosistema de coral mesofótico","http://marineregions.org/mrgid/48551","SA | Colombia | Archipiélago se San Andrés, Providencia y Santa Catalina","SA","Mar Caribe","Archipiélago de San Andrés, Providencia y Santa Catalina","Isla de San Andrés","Colombia","CO","Archipiélago de San Andrés, Providencia y Santa Catalina","San Andrés",null,"Nirvana",40,70,"Dato in situ usando GPS","Sitio de buceo en el costado occidental de la Isla de San Andrés","12° 30,142' N","81° 44,038' W","Grados, Minutos decimales - GMS","WGS84",12.502359999999999,-81.733959999999996,"WGS84","Luis Chasqui","2018-04-16","http://www.gbif.org/orc/?doc_id=1288",null,"Verificado por el proveedor de datos","Georreferenciado in situ con GPS","Luis Chasqui y Juan David Gonzáles","2018-04-16/2018-04-19","identificado in situ con base en morfología",null,"urn:lsid:marinespecies.org:taxname:159421","Pseudupenneus maculatus",null,null,null,null,null,null,null,null,null,null,null,null,null,null,null,null,null,null,null,null,null,null,null,null,null,null,null,null,null,null,null,null,null,null,null,null,null,null,"AnimaliaChordataActinopterygiiPerciformesMullidaePseudupenneusmaculatus","Animalia","Chordata","Actinopterygii","Perciformes","Mullidae","Pseudupenneus",null,"maculatus","Especie","(Bloch, 1793)","ICZN","Aceptado"]
["INVEMAR:CORALINA:SAI2018:MCE:062","Observación humana","Evento","ES","Creative Commons Attribution Non Commercial (CC-BY-NC) 4.0 License","INVEMAR","Sólo para uso no comercial","ColombiaNIT:800250062-0","INV_CoralinaSAI2018_MCE","INVEMAR","INVEMARCORALINASAI2018","Biodiversidad de los ecosistemas de coral mesofóticos en San andrés islas 2018","INVEMAR","INV_CoralinaSAI2018_MCE:062","62","Luis Chasqui y Juan David Gonzáles","Ver: Chasqui et al. 2020 (en prep)","Presente",null,"Censo visual","6 inmersiones con rebreather","2018-04-16/2018-04-19","Ecosistema de coral mesofótico","http://marineregions.org/mrgid/48551","SA | Colombia | Archipiélago se San Andrés, Providencia y Santa Catalina","SA","Mar Caribe","Archipiélago de San Andrés, Providencia y Santa Catalina","Isla de San Andrés","Colombia","CO","Archipiélago de San Andrés, Providencia y Santa Catalina","San Andrés",null,"Nirvana",40,70,"Dato in situ usando GPS","Sitio de buceo en el costado occidental de la Isla de San Andrés","12° 30,142' N","81° 44,038' W","Grados, Minutos decimales - GMS","WGS84",12.502359999999999,-81.733959999999996,"WGS84","Luis Chasqui","2018-04-16","http://www.gbif.org/orc/?doc_id=1288",null,"Verificado por el proveedor de datos","Georreferenciado in situ con GPS","Luis Chasqui y Juan David Gonzáles","2018-04-16/2018-04-19","identificado in situ con base en morfología",null,"urn:lsid:marinespecies.org:taxname:127027","Thunnus albacares ",null,null,null,null,null,null,null,null,null,null,null,null,null,null,null,null,null,null,null,null,null,null,null,null,null,null,null,null,null,null,null,null,null,null,null,null,null,null,"AnimaliaChordataActinopterygiiPerciformesScombridaeThunnusalbacares","Animalia","Chordata","Actinopterygii","Perciformes","Scombridae","Thunnus",null,"albacares","Especie","(Bonnaterre, 1788)","ICZN","Aceptado"]
["INVEMAR:CORALINA:SAI2018:MCE:063","Observación humana","Evento","ES","Creative Commons Attribution Non Commercial (CC-BY-NC) 4.0 License","INVEMAR","Sólo para uso no comercial","ColombiaNIT:800250062-0","INV_CoralinaSAI2018_MCE","INVEMAR","INVEMARCORALINASAI2018","Biodiversidad de los ecosistemas de coral mesofóticos en San andrés islas 2018","INVEMAR","INV_CoralinaSAI2018_MCE:063","63","Luis Chasqui y Juan David Gonzáles","Ver: Chasqui et al. 2020 (en prep)","Presente",null,"Censo visual","6 inmersiones con rebreather","2018-04-16/2018-04-19","Ecosistema de coral mesofótico","http://marineregions.org/mrgid/48551","SA | Colombia | Archipiélago se San Andrés, Providencia y Santa Catalina","SA","Mar Caribe","Archipiélago de San Andrés, Providencia y Santa Catalina","Isla de San Andrés","Colombia","CO","Archipiélago de San Andrés, Providencia y Santa Catalina","San Andrés",null,"Nirvana",40,70,"Dato in situ usando GPS","Sitio de buceo en el costado occidental de la Isla de San Andrés","12° 30,142' N","81° 44,038' W","Grados, Minutos decimales - GMS","WGS84",12.502359999999999,-81.733959999999996,"WGS84","Luis Chasqui","2018-04-16","http://www.gbif.org/orc/?doc_id=1288",null,"Verificado por el proveedor de datos","Georreferenciado in situ con GPS","Luis Chasqui y Juan David Gonzáles","2018-04-16/2018-04-19","identificado in situ con base en morfología",null,"urn:lsid:marinespecies.org:taxname:126802","Caranx crysos ",null,null,null,null,null,null,null,null,null,null,null,null,null,null,null,null,null,null,null,null,null,null,null,null,null,null,null,null,null,null,null,null,null,null,null,null,null,null,"AnimaliaChordataActinopterygiiPerciformesCarangidaeCaranxcrysos","Animalia","Chordata","Actinopterygii","Perciformes","Carangidae","Caranx",null,"crysos","Especie","(Mitchill, 1815)","ICZN","Aceptado"]
["INVEMAR:CORALINA:SAI2018:MCE:064","Observación humana","Evento","ES","Creative Commons Attribution Non Commercial (CC-BY-NC) 4.0 License","INVEMAR","Sólo para uso no comercial","ColombiaNIT:800250062-0","INV_CoralinaSAI2018_MCE","INVEMAR","INVEMARCORALINASAI2018","Biodiversidad de los ecosistemas de coral mesofóticos en San andrés islas 2018","INVEMAR","INV_CoralinaSAI2018_MCE:064","64","Luis Chasqui y Juan David Gonzáles","Ver: Chasqui et al. 2020 (en prep)","Presente",null,"Censo visual","6 inmersiones con rebreather","2018-04-16/2018-04-19","Ecosistema de coral mesofótico","http://marineregions.org/mrgid/48551","SA | Colombia | Archipiélago se San Andrés, Providencia y Santa Catalina","SA","Mar Caribe","Archipiélago de San Andrés, Providencia y Santa Catalina","Isla de San Andrés","Colombia","CO","Archipiélago de San Andrés, Providencia y Santa Catalina","San Andrés",null,"Nirvana",40,70,"Dato in situ usando GPS","Sitio de buceo en el costado occidental de la Isla de San Andrés","12° 30,142' N","81° 44,038' W","Grados, Minutos decimales - GMS","WGS84",12.502359999999999,-81.733959999999996,"WGS84","Luis Chasqui","2018-04-16","http://www.gbif.org/orc/?doc_id=1288",null,"Verificado por el proveedor de datos","Georreferenciado in situ con GPS","Luis Chasqui y Juan David Gonzáles","2018-04-16/2018-04-19","identificado in situ con base en morfología",null,"urn:lsid:marinespecies.org:taxname:126805","Caranx lugubris ",null,null,null,null,null,null,null,null,null,null,null,null,null,null,null,null,null,null,null,null,null,null,null,null,null,null,null,null,null,null,null,null,null,null,null,null,null,null,"AnimaliaChordataActinopterygiiPerciformesCarangidaeCaranxlugubris","Animalia","Chordata","Actinopterygii","Perciformes","Carangidae","Caranx",null,"lugubris","Especie","Poey, 1860","ICZN","Aceptado"]
["INVEMAR:CORALINA:SAI2018:MCE:065","Observación humana","Evento","ES","Creative Commons Attribution Non Commercial (CC-BY-NC) 4.0 License","INVEMAR","Sólo para uso no comercial","ColombiaNIT:800250062-0","INV_CoralinaSAI2018_MCE","INVEMAR","INVEMARCORALINASAI2018","Biodiversidad de los ecosistemas de coral mesofóticos en San andrés islas 2018","INVEMAR","INV_CoralinaSAI2018_MCE:065","65","Luis Chasqui y Juan David Gonzáles","Ver: Chasqui et al. 2020 (en prep)","Presente",null,"Censo visual","6 inmersiones con rebreather","2018-04-16/2018-04-19","Ecosistema de coral mesofótico","http://marineregions.org/mrgid/48551","SA | Colombia | Archipiélago se San Andrés, Providencia y Santa Catalina","SA","Mar Caribe","Archipiélago de San Andrés, Providencia y Santa Catalina","Isla de San Andrés","Colombia","CO","Archipiélago de San Andrés, Providencia y Santa Catalina","San Andrés",null,"Nirvana",40,70,"Dato in situ usando GPS","Sitio de buceo en el costado occidental de la Isla de San Andrés","12° 30,142' N","81° 44,038' W","Grados, Minutos decimales - GMS","WGS84",12.502359999999999,-81.733959999999996,"WGS84","Luis Chasqui","2018-04-16","http://www.gbif.org/orc/?doc_id=1288",null,"Verificado por el proveedor de datos","Georreferenciado in situ con GPS","Luis Chasqui y Juan David Gonzáles","2018-04-16/2018-04-19","identificado in situ con base en morfología",null,"urn:lsid:marinespecies.org:taxname:302432","Caranx ruber ",null,null,null,null,null,null,null,null,null,null,null,null,null,null,null,null,null,null,null,null,null,null,null,null,null,null,null,null,null,null,null,null,null,null,null,null,null,null,"AnimaliaChordataActinopterygiiPerciformesCarangidaeCaranxruber","Animalia","Chordata","Actinopterygii","Perciformes","Carangidae","Caranx",null,"ruber","Especie","(Bloch, 1793)","ICZN","Aceptado"]
["INVEMAR:CORALINA:SAI2018:MCE:066","Observación humana","Evento","ES","Creative Commons Attribution Non Commercial (CC-BY-NC) 4.0 License","INVEMAR","Sólo para uso no comercial","ColombiaNIT:800250062-0","INV_CoralinaSAI2018_MCE","INVEMAR","INVEMARCORALINASAI2018","Biodiversidad de los ecosistemas de coral mesofóticos en San andrés islas 2018","INVEMAR","INV_CoralinaSAI2018_MCE:066","66","Luis Chasqui y Juan David Gonzáles","Ver: Chasqui et al. 2020 (en prep)","Presente",null,"Censo visual","6 inmersiones con rebreather","2018-04-16/2018-04-19","Ecosistema de coral mesofótico","http://marineregions.org/mrgid/48551","SA | Colombia | Archipiélago se San Andrés, Providencia y Santa Catalina","SA","Mar Caribe","Archipiélago de San Andrés, Providencia y Santa Catalina","Isla de San Andrés","Colombia","CO","Archipiélago de San Andrés, Providencia y Santa Catalina","San Andrés",null,"Nirvana",40,70,"Dato in situ usando GPS","Sitio de buceo en el costado occidental de la Isla de San Andrés","12° 30,142' N","81° 44,038' W","Grados, Minutos decimales - GMS","WGS84",12.502359999999999,-81.733959999999996,"WGS84","Luis Chasqui","2018-04-16","http://www.gbif.org/orc/?doc_id=1288",null,"Verificado por el proveedor de datos","Georreferenciado in situ con GPS","Luis Chasqui y Juan David Gonzáles","2018-04-16/2018-04-19","identificado in situ con base en morfología",null,"urn:lsid:marinespecies.org:taxname:126807","Decapterus macarellus ",null,null,null,null,null,null,null,null,null,null,null,null,null,null,null,null,null,null,null,null,null,null,null,null,null,null,null,null,null,null,null,null,null,null,null,null,null,null,"AnimaliaChordataActinopterygiiPerciformesCarangidaeDecapterusmacarellus","Animalia","Chordata","Actinopterygii","Perciformes","Carangidae","Decapterus",null,"macarellus","Especie","(Cuvier, 1833)","ICZN","Aceptado"]
["INVEMAR:CORALINA:SAI2018:MCE:067","Observación humana","Evento","ES","Creative Commons Attribution Non Commercial (CC-BY-NC) 4.0 License","INVEMAR","Sólo para uso no comercial","ColombiaNIT:800250062-0","INV_CoralinaSAI2018_MCE","INVEMAR","INVEMARCORALINASAI2018","Biodiversidad de los ecosistemas de coral mesofóticos en San andrés islas 2018","INVEMAR","INV_CoralinaSAI2018_MCE:067","67","Luis Chasqui y Juan David Gonzáles","Ver: Chasqui et al. 2020 (en prep)","Presente",null,"Censo visual","6 inmersiones con rebreather","2018-04-16/2018-04-19","Ecosistema de coral mesofótico","http://marineregions.org/mrgid/48551","SA | Colombia | Archipiélago se San Andrés, Providencia y Santa Catalina","SA","Mar Caribe","Archipiélago de San Andrés, Providencia y Santa Catalina","Isla de San Andrés","Colombia","CO","Archipiélago de San Andrés, Providencia y Santa Catalina","San Andrés",null,"Nirvana",40,70,"Dato in situ usando GPS","Sitio de buceo en el costado occidental de la Isla de San Andrés","12° 30,142' N","81° 44,038' W","Grados, Minutos decimales - GMS","WGS84",12.502359999999999,-81.733959999999996,"WGS84","Luis Chasqui","2018-04-16","http://www.gbif.org/orc/?doc_id=1288",null,"Verificado por el proveedor de datos","Georreferenciado in situ con GPS","Luis Chasqui y Juan David Gonzáles","2018-04-16/2018-04-19","identificado in situ con base en morfología",null,"urn:lsid:marinespecies.org:taxname:126818","Seriola rivoliana ",null,null,null,null,null,null,null,null,null,null,null,null,null,null,null,null,null,null,null,null,null,null,null,null,null,null,null,null,null,null,null,null,null,null,null,null,null,null,{"$f":" CONCATENATE(CT69,CU69,CV69,CW69,CX69,CY69,CZ69,DA69)","v":"AnimaliaChordataActinopterygiiPerciformesCarangidaeSeriolarivoliana"},"Animalia","Chordata","Actinopterygii","Perciformes","Carangidae","Seriola",null,"rivoliana","Especie","Valenciennes, 1833","ICZN","Aceptado"]
["INVEMAR:CORALINA:SAI2018:MCE:068","Observación humana","Evento","ES","Creative Commons Attribution Non Commercial (CC-BY-NC) 4.0 License","INVEMAR","Sólo para uso no comercial","ColombiaNIT:800250062-0","INV_CoralinaSAI2018_MCE","INVEMAR","INVEMARCORALINASAI2018","Biodiversidad de los ecosistemas de coral mesofóticos en San andrés islas 2018","INVEMAR","INV_CoralinaSAI2018_MCE:068","68","Luis Chasqui y Juan David Gonzáles","Ver: Chasqui et al. 2020 (en prep)","Presente",null,"Censo visual","6 inmersiones con rebreather","2018-04-16/2018-04-19","Ecosistema de coral mesofótico","http://marineregions.org/mrgid/48551","SA | Colombia | Archipiélago se San Andrés, Providencia y Santa Catalina","SA","Mar Caribe","Archipiélago de San Andrés, Providencia y Santa Catalina","Isla de San Andrés","Colombia","CO","Archipiélago de San Andrés, Providencia y Santa Catalina","San Andrés",null,"Nirvana",40,70,"Dato in situ usando GPS","Sitio de buceo en el costado occidental de la Isla de San Andrés","12° 30,142' N","81° 44,038' W","Grados, Minutos decimales - GMS","WGS84",12.502359999999999,-81.733959999999996,"WGS84","Luis Chasqui","2018-04-16","http://www.gbif.org/orc/?doc_id=1288",null,"Verificado por el proveedor de datos","Georreferenciado in situ con GPS","Luis Chasqui y Juan David Gonzáles","2018-04-16/2018-04-19","identificado in situ con base en morfología",null,"urn:lsid:marinespecies.org:taxname:280933","Gramma melacara ",null,null,null,null,null,null,null,null,null,null,null,null,null,null,null,null,null,null,null,null,null,null,null,null,null,null,null,null,null,null,null,null,null,null,null,null,null,null,"AnimaliaChordataActinopterygiiPerciformesGrammatidaeGrammamelacara","Animalia","Chordata","Actinopterygii","Perciformes","Grammatidae","Gramma",null,"melacara","Especie","Böhlke y Randall, 1963","ICZN","Aceptado"]
["INVEMAR:CORALINA:SAI2018:MCE:069","Observación humana","Evento","ES","Creative Commons Attribution Non Commercial (CC-BY-NC) 4.0 License","INVEMAR","Sólo para uso no comercial","ColombiaNIT:800250062-0","INV_CoralinaSAI2018_MCE","INVEMAR","INVEMARCORALINASAI2018","Biodiversidad de los ecosistemas de coral mesofóticos en San andrés islas 2018","INVEMAR","INV_CoralinaSAI2018_MCE:069","69","Luis Chasqui y Juan David Gonzáles","Ver: Chasqui et al. 2020 (en prep)","Presente",null,"Censo visual","6 inmersiones con rebreather","2018-04-16/2018-04-19","Ecosistema de coral mesofótico","http://marineregions.org/mrgid/48551","SA | Colombia | Archipiélago se San Andrés, Providencia y Santa Catalina","SA","Mar Caribe","Archipiélago de San Andrés, Providencia y Santa Catalina","Isla de San Andrés","Colombia","CO","Archipiélago de San Andrés, Providencia y Santa Catalina","San Andrés",null,"Nirvana",40,70,"Dato in situ usando GPS","Sitio de buceo en el costado occidental de la Isla de San Andrés","12° 30,142' N","81° 44,038' W","Grados, Minutos decimales - GMS","WGS84",12.502359999999999,-81.733959999999996,"WGS84","Luis Chasqui","2018-04-16","http://www.gbif.org/orc/?doc_id=1288",null,"Verificado por el proveedor de datos","Georreferenciado in situ con GPS","Luis Chasqui y Juan David Gonzáles","2018-04-16/2018-04-19","identificado in situ con base en morfología",null,"urn:lsid:marinespecies.org:taxname:280932","Gramma loreto ",null,null,null,null,null,null,null,null,null,null,null,null,null,null,null,null,null,null,null,null,null,null,null,null,null,null,null,null,null,null,null,null,null,null,null,null,null,null,"AnimaliaChordataActinopterygiiPerciformesGrammatidaeGrammaloreto","Animalia","Chordata","Actinopterygii","Perciformes","Grammatidae","Gramma",null,"loreto","Especie","Poey, 1868","ICZN","Aceptado"]
["INVEMAR:CORALINA:SAI2018:MCE:070","Observación humana","Evento","ES","Creative Commons Attribution Non Commercial (CC-BY-NC) 4.0 License","INVEMAR","Sólo para uso no comercial","ColombiaNIT:800250062-0","INV_CoralinaSAI2018_MCE","INVEMAR","INVEMARCORALINASAI2018","Biodiversidad de los ecosistemas de coral mesofóticos en San andrés islas 2018","INVEMAR","INV_CoralinaSAI2018_MCE:070","70","Luis Chasqui y Juan David Gonzáles","Ver: Chasqui et al. 2020 (en prep)","Presente",null,"Censo visual","6 inmersiones con rebreather","2018-04-16/2018-04-19","Ecosistema de coral mesofótico","http://marineregions.org/mrgid/48551","SA | Colombia | Archipiélago se San Andrés, Providencia y Santa Catalina","SA","Mar Caribe","Archipiélago de San Andrés, Providencia y Santa Catalina","Isla de San Andrés","Colombia","CO","Archipiélago de San Andrés, Providencia y Santa Catalina","San Andrés",null,"Nirvana",40,70,"Dato in situ usando GPS","Sitio de buceo en el costado occidental de la Isla de San Andrés","12° 30,142' N","81° 44,038' W","Grados, Minutos decimales - GMS","WGS84",12.502359999999999,-81.733959999999996,"WGS84","Luis Chasqui","2018-04-16","http://www.gbif.org/orc/?doc_id=1288",null,"Verificado por el proveedor de datos","Georreferenciado in situ con GPS","Luis Chasqui y Juan David Gonzáles","2018-04-16/2018-04-19","identificado in situ con base en morfología",null,"urn:lsid:marinespecies.org:taxname:273718","Chromis cyanea ",null,null,null,null,null,null,null,null,null,null,null,null,null,null,null,null,null,null,null,null,null,null,null,null,null,null,null,null,null,null,null,null,null,null,null,null,null,null,"AnimaliaChordataActinopterygiiPerciformesPomacentridaeChromiscyanea","Animalia","Chordata","Actinopterygii","Perciformes","Pomacentridae","Chromis",null,"cyanea","Especie","(Poey, 1860)","ICZN","Aceptado"]
["INVEMAR:CORALINA:SAI2018:MCE:071","Observación humana","Evento","ES","Creative Commons Attribution Non Commercial (CC-BY-NC) 4.0 License","INVEMAR","Sólo para uso no comercial","ColombiaNIT:800250062-0","INV_CoralinaSAI2018_MCE","INVEMAR","INVEMARCORALINASAI2018","Biodiversidad de los ecosistemas de coral mesofóticos en San andrés islas 2018","INVEMAR","INV_CoralinaSAI2018_MCE:071","71","Luis Chasqui y Juan David Gonzáles","Ver: Chasqui et al. 2020 (en prep)","Presente",null,"Censo visual","6 inmersiones con rebreather","2018-04-16/2018-04-19","Ecosistema de coral mesofótico","http://marineregions.org/mrgid/48551","SA | Colombia | Archipiélago se San Andrés, Providencia y Santa Catalina","SA","Mar Caribe","Archipiélago de San Andrés, Providencia y Santa Catalina","Isla de San Andrés","Colombia","CO","Archipiélago de San Andrés, Providencia y Santa Catalina","San Andrés",null,"Nirvana",40,70,"Dato in situ usando GPS","Sitio de buceo en el costado occidental de la Isla de San Andrés","12° 30,142' N","81° 44,038' W","Grados, Minutos decimales - GMS","WGS84",12.502359999999999,-81.733959999999996,"WGS84","Luis Chasqui","2018-04-16","http://www.gbif.org/orc/?doc_id=1288",null,"Verificado por el proveedor de datos","Georreferenciado in situ con GPS","Luis Chasqui y Juan David Gonzáles","2018-04-16/2018-04-19","identificado in situ con base en morfología",null,"urn:lsid:marinespecies.org:taxname:273731","Chromis insolata ",null,null,null,null,null,null,null,null,null,null,null,null,null,null,null,null,null,null,null,null,null,null,null,null,null,null,null,null,null,null,null,null,null,null,null,null,null,null,"AnimaliaChordataActinopterygiiPerciformesPomacentridaeChromisinsolata","Animalia","Chordata","Actinopterygii","Perciformes","Pomacentridae","Chromis",null,"insolata","Especie","(Cuvier, 1830)","ICZN","Aceptado"]
["INVEMAR:CORALINA:SAI2018:MCE:072","Observación humana","Evento","ES","Creative Commons Attribution Non Commercial (CC-BY-NC) 4.0 License","INVEMAR","Sólo para uso no comercial","ColombiaNIT:800250062-0","INV_CoralinaSAI2018_MCE","INVEMAR","INVEMARCORALINASAI2018","Biodiversidad de los ecosistemas de coral mesofóticos en San andrés islas 2018","INVEMAR","INV_CoralinaSAI2018_MCE:072","72","Luis Chasqui y Juan David Gonzáles","Ver: Chasqui et al. 2020 (en prep)","Presente",null,"Censo visual","6 inmersiones con rebreather","2018-04-16/2018-04-19","Ecosistema de coral mesofótico","http://marineregions.org/mrgid/48551","SA | Colombia | Archipiélago se San Andrés, Providencia y Santa Catalina","SA","Mar Caribe","Archipiélago de San Andrés, Providencia y Santa Catalina","Isla de San Andrés","Colombia","CO","Archipiélago de San Andrés, Providencia y Santa Catalina","San Andrés",null,"Nirvana",40,50,"Dato in situ usando GPS","Sitio de buceo en el costado occidental de la Isla de San Andrés","12° 30,142' N","81° 44,038' W","Grados, Minutos decimales - GMS","WGS84",12.502359999999999,-81.733959999999996,"WGS84","Luis Chasqui","2018-04-16","http://www.gbif.org/orc/?doc_id=1288",null,"Verificado por el proveedor de datos","Georreferenciado in situ con GPS","Luis Chasqui y Juan David Gonzáles","2018-04-16/2018-04-19","identificado in situ con base en morfología",null,"urn:lsid:marinespecies.org:taxname:276677","Stegastes partitus ",null,null,null,null,null,null,null,null,null,null,null,null,null,null,null,null,null,null,null,null,null,null,null,null,null,null,null,null,null,null,null,null,null,null,null,null,null,null,"AnimaliaChordataActinopterygiiPerciformesPomacentridaeStegastespartitus","Animalia","Chordata","Actinopterygii","Perciformes","Pomacentridae","Stegastes",null,"partitus","Especie","(Poey, 1868)","ICZN","Aceptado"]
["INVEMAR:CORALINA:SAI2018:MCE:073","Observación humana","Evento","ES","Creative Commons Attribution Non Commercial (CC-BY-NC) 4.0 License","INVEMAR","Sólo para uso no comercial","ColombiaNIT:800250062-0","INV_CoralinaSAI2018_MCE","INVEMAR","INVEMARCORALINASAI2018","Biodiversidad de los ecosistemas de coral mesofóticos en San andrés islas 2018","INVEMAR","INV_CoralinaSAI2018_MCE:073","73","Luis Chasqui y Juan David Gonzáles","Ver: Chasqui et al. 2020 (en prep)","Presente",null,"Censo visual","6 inmersiones con rebreather","2018-04-16/2018-04-19","Ecosistema de coral mesofótico","http://marineregions.org/mrgid/48551","SA | Colombia | Archipiélago se San Andrés, Providencia y Santa Catalina","SA","Mar Caribe","Archipiélago de San Andrés, Providencia y Santa Catalina","Isla de San Andrés","Colombia","CO","Archipiélago de San Andrés, Providencia y Santa Catalina","San Andrés",null,"Nirvana",50,70,"Dato in situ usando GPS","Sitio de buceo en el costado occidental de la Isla de San Andrés","12° 30,142' N","81° 44,038' W","Grados, Minutos decimales - GMS","WGS84",12.502359999999999,-81.733959999999996,"WGS84","Luis Chasqui","2018-04-16","http://www.gbif.org/orc/?doc_id=1288",null,"Verificado por el proveedor de datos","Georreferenciado in situ con GPS","Luis Chasqui y Juan David Gonzáles","2018-04-16/2018-04-19","identificado in situ con base en morfología",null,"urn:lsid:marinespecies.org:taxname:158808","Haemulon plumieri ",null,null,null,null,null,null,null,null,null,null,null,null,null,null,null,null,null,null,null,null,null,null,null,null,null,null,null,null,null,null,null,null,null,null,null,null,null,null,"AnimaliaChordataActinopterygiiPerciformesHaemulidaeHaemulonplumieri","Animalia","Chordata","Actinopterygii","Perciformes","Haemulidae","Haemulon",null,"plumieri","Especie","(Lacepede, 1801)","ICZN","Aceptado"]
["INVEMAR:CORALINA:SAI2018:MCE:074","Observación humana","Evento","ES","Creative Commons Attribution Non Commercial (CC-BY-NC) 4.0 License","INVEMAR","Sólo para uso no comercial","ColombiaNIT:800250062-0","INV_CoralinaSAI2018_MCE","INVEMAR","INVEMARCORALINASAI2018","Biodiversidad de los ecosistemas de coral mesofóticos en San andrés islas 2018","INVEMAR","INV_CoralinaSAI2018_MCE:074","74","Luis Chasqui y Juan David Gonzáles","Ver: Chasqui et al. 2020 (en prep)","Presente",null,"Censo visual","6 inmersiones con rebreather","2018-04-16/2018-04-19","Ecosistema de coral mesofótico","http://marineregions.org/mrgid/48551","SA | Colombia | Archipiélago se San Andrés, Providencia y Santa Catalina","SA","Mar Caribe","Archipiélago de San Andrés, Providencia y Santa Catalina","Isla de San Andrés","Colombia","CO","Archipiélago de San Andrés, Providencia y Santa Catalina","San Andrés",null,"Nirvana",50,70,"Dato in situ usando GPS","Sitio de buceo en el costado occidental de la Isla de San Andrés","12° 30,142' N","81° 44,038' W","Grados, Minutos decimales - GMS","WGS84",12.502359999999999,-81.733959999999996,"WGS84","Luis Chasqui","2018-04-16","http://www.gbif.org/orc/?doc_id=1288",null,"Verificado por el proveedor de datos","Georreferenciado in situ con GPS","Luis Chasqui y Juan David Gonzáles","2018-04-16/2018-04-19","identificado in situ con base en morfología",null,"urn:lsid:marinespecies.org:taxname:275727","Haemulon flavolineatum ",null,null,null,null,null,null,null,null,null,null,null,null,null,null,null,null,null,null,null,null,null,null,null,null,null,null,null,null,null,null,null,null,null,null,null,null,null,null,"AnimaliaChordataActinopterygiiPerciformesHaemulidaeHaemulonflavolineatum","Animalia","Chordata","Actinopterygii","Perciformes","Haemulidae","Haemulon",null,"flavolineatum","Especie","(Desmarest, 1823)","ICZN","Aceptado"]
["INVEMAR:CORALINA:SAI2018:MCE:075","Observación humana","Evento","ES","Creative Commons Attribution Non Commercial (CC-BY-NC) 4.0 License","INVEMAR","Sólo para uso no comercial","ColombiaNIT:800250062-0","INV_CoralinaSAI2018_MCE","INVEMAR","INVEMARCORALINASAI2018","Biodiversidad de los ecosistemas de coral mesofóticos en San andrés islas 2018","INVEMAR","INV_CoralinaSAI2018_MCE:075","75","Luis Chasqui y Juan David Gonzáles","Ver: Chasqui et al. 2020 (en prep)","Presente",null,"Censo visual","6 inmersiones con rebreather","2018-04-16/2018-04-19","Ecosistema de coral mesofótico","http://marineregions.org/mrgid/48551","SA | Colombia | Archipiélago se San Andrés, Providencia y Santa Catalina","SA","Mar Caribe","Archipiélago de San Andrés, Providencia y Santa Catalina","Isla de San Andrés","Colombia","CO","Archipiélago de San Andrés, Providencia y Santa Catalina","San Andrés",null,"Nirvana",40,70,"Dato in situ usando GPS","Sitio de buceo en el costado occidental de la Isla de San Andrés","12° 30,142' N","81° 44,038' W","Grados, Minutos decimales - GMS","WGS84",12.502359999999999,-81.733959999999996,"WGS84","Luis Chasqui","2018-04-16","http://www.gbif.org/orc/?doc_id=1288",null,"Verificado por el proveedor de datos","Georreferenciado in situ con GPS","Luis Chasqui y Juan David Gonzáles","2018-04-16/2018-04-19","identificado in situ con base en morfología",null,"urn:lsid:marinespecies.org:taxname:159793","Lutjanus apodus",null,null,null,null,null,null,null,null,null,null,null,null,null,null,null,null,null,null,null,null,null,null,null,null,null,null,null,null,null,null,null,null,null,null,null,null,null,null,"AnimaliaChordataActinopterygiiPerciformesLutjanidaeLutjanusapodus","Animalia","Chordata","Actinopterygii","Perciformes","Lutjanidae","Lutjanus",null,"apodus","Especie","(Walbaum, 1792)","ICZN","Aceptado"]
["INVEMAR:CORALINA:SAI2018:MCE:076","Observación humana","Evento","ES","Creative Commons Attribution Non Commercial (CC-BY-NC) 4.0 License","INVEMAR","Sólo para uso no comercial","ColombiaNIT:800250062-0","INV_CoralinaSAI2018_MCE","INVEMAR","INVEMARCORALINASAI2018","Biodiversidad de los ecosistemas de coral mesofóticos en San andrés islas 2018","INVEMAR","INV_CoralinaSAI2018_MCE:076","76","Luis Chasqui y Juan David Gonzáles","Ver: Chasqui et al. 2020 (en prep)","Presente",null,"Censo visual","6 inmersiones con rebreather","2018-04-16/2018-04-19","Ecosistema de coral mesofótico","http://marineregions.org/mrgid/48551","SA | Colombia | Archipiélago se San Andrés, Providencia y Santa Catalina","SA","Mar Caribe","Archipiélago de San Andrés, Providencia y Santa Catalina","Isla de San Andrés","Colombia","CO","Archipiélago de San Andrés, Providencia y Santa Catalina","San Andrés",null,"Nirvana",40,70,"Dato in situ usando GPS","Sitio de buceo en el costado occidental de la Isla de San Andrés","12° 30,142' N","81° 44,038' W","Grados, Minutos decimales - GMS","WGS84",12.502359999999999,-81.733959999999996,"WGS84","Luis Chasqui","2018-04-16","http://www.gbif.org/orc/?doc_id=1288",null,"Verificado por el proveedor de datos","Georreferenciado in situ con GPS","Luis Chasqui y Juan David Gonzáles","2018-04-16/2018-04-19","identificado in situ con base en morfología",null,"urn:lsid:marinespecies.org:taxname:159798","Lutjanus jocu",null,null,null,null,null,null,null,null,null,null,null,null,null,null,null,null,null,null,null,null,null,null,null,null,null,null,null,null,null,null,null,null,null,null,null,null,null,null,"AnimaliaChordataActinopterygiiPerciformesLutjanidaeLutjanusjocu","Animalia","Chordata","Actinopterygii","Perciformes","Lutjanidae","Lutjanus",null,"jocu","Especie","(Bloch & Schneider, 1801)","ICZN","Aceptado"]
["INVEMAR:CORALINA:SAI2018:MCE:077","Observación humana","Evento","ES","Creative Commons Attribution Non Commercial (CC-BY-NC) 4.0 License","INVEMAR","Sólo para uso no comercial","ColombiaNIT:800250062-0","INV_CoralinaSAI2018_MCE","INVEMAR","INVEMARCORALINASAI2018","Biodiversidad de los ecosistemas de coral mesofóticos en San andrés islas 2018","INVEMAR","INV_CoralinaSAI2018_MCE:077","77","Luis Chasqui y Juan David Gonzáles","Ver: Chasqui et al. 2020 (en prep)","Presente",null,"Censo visual","6 inmersiones con rebreather","2018-04-16/2018-04-19","Ecosistema de coral mesofótico","http://marineregions.org/mrgid/48551","SA | Colombia | Archipiélago se San Andrés, Providencia y Santa Catalina","SA","Mar Caribe","Archipiélago de San Andrés, Providencia y Santa Catalina","Isla de San Andrés","Colombia","CO","Archipiélago de San Andrés, Providencia y Santa Catalina","San Andrés",null,"Nirvana",40,70,"Dato in situ usando GPS","Sitio de buceo en el costado occidental de la Isla de San Andrés","12° 30,142' N","81° 44,038' W","Grados, Minutos decimales - GMS","WGS84",12.502359999999999,-81.733959999999996,"WGS84","Luis Chasqui","2018-04-16","http://www.gbif.org/orc/?doc_id=1288",null,"Verificado por el proveedor de datos","Georreferenciado in situ con GPS","Luis Chasqui y Juan David Gonzáles","2018-04-16/2018-04-19","identificado in situ con base en morfología",null,"urn:lsid:marinespecies.org:taxname:159799","Lutjanus mahogoni ",null,null,null,null,null,null,null,null,null,null,null,null,null,null,null,null,null,null,null,null,null,null,null,null,null,null,null,null,null,null,null,null,null,null,null,null,null,null,"AnimaliaChordataActinopterygiiPerciformesLutjanidaeLutjanusmahogoni","Animalia","Chordata","Actinopterygii","Perciformes","Lutjanidae","Lutjanus",null,"mahogoni","Especie","(Cuvier, 1828)","ICZN","Aceptado"]
["INVEMAR:CORALINA:SAI2018:MCE:078","Observación humana","Evento","ES","Creative Commons Attribution Non Commercial (CC-BY-NC) 4.0 License","INVEMAR","Sólo para uso no comercial","ColombiaNIT:800250062-0","INV_CoralinaSAI2018_MCE","INVEMAR","INVEMARCORALINASAI2018","Biodiversidad de los ecosistemas de coral mesofóticos en San andrés islas 2018","INVEMAR","INV_CoralinaSAI2018_MCE:078","78","Luis Chasqui y Juan David Gonzáles","Ver: Chasqui et al. 2020 (en prep)","Presente",null,"Censo visual","6 inmersiones con rebreather","2018-04-16/2018-04-19","Ecosistema de coral mesofótico","http://marineregions.org/mrgid/48551","SA | Colombia | Archipiélago se San Andrés, Providencia y Santa Catalina","SA","Mar Caribe","Archipiélago de San Andrés, Providencia y Santa Catalina","Isla de San Andrés","Colombia","CO","Archipiélago de San Andrés, Providencia y Santa Catalina","San Andrés",null,"Nirvana",40,70,"Dato in situ usando GPS","Sitio de buceo en el costado occidental de la Isla de San Andrés","12° 30,142' N","81° 44,038' W","Grados, Minutos decimales - GMS","WGS84",12.502359999999999,-81.733959999999996,"WGS84","Luis Chasqui","2018-04-16","http://www.gbif.org/orc/?doc_id=1288",null,"Verificado por el proveedor de datos","Georreferenciado in situ con GPS","Luis Chasqui y Juan David Gonzáles","2018-04-16/2018-04-19","identificado in situ con base en morfología",null,"urn:lsid:marinespecies.org:taxname:159803","Ocyurus chrysurus ",null,null,null,null,null,null,null,null,null,null,null,null,null,null,null,null,null,null,null,null,null,null,null,null,null,null,null,null,null,null,null,null,null,null,null,null,null,null,"AnimaliaChordataActinopterygiiPerciformesLutjanidaeOcyuruschrysurus","Animalia","Chordata","Actinopterygii","Perciformes","Lutjanidae","Ocyurus",null,"chrysurus","Especie","(Bloch, 1791)","ICZN","Aceptado"]
["INVEMAR:CORALINA:SAI2018:MCE:079","Observación humana","Evento","ES","Creative Commons Attribution Non Commercial (CC-BY-NC) 4.0 License","INVEMAR","Sólo para uso no comercial","ColombiaNIT:800250062-0","INV_CoralinaSAI2018_MCE","INVEMAR","INVEMARCORALINASAI2018","Biodiversidad de los ecosistemas de coral mesofóticos en San andrés islas 2018","INVEMAR","INV_CoralinaSAI2018_MCE:079","79","Luis Chasqui y Juan David Gonzáles","Ver: Chasqui et al. 2020 (en prep)","Presente",null,"Censo visual","6 inmersiones con rebreather","2018-04-16/2018-04-19","Ecosistema de coral mesofótico","http://marineregions.org/mrgid/48551","SA | Colombia | Archipiélago se San Andrés, Providencia y Santa Catalina","SA","Mar Caribe","Archipiélago de San Andrés, Providencia y Santa Catalina","Isla de San Andrés","Colombia","CO","Archipiélago de San Andrés, Providencia y Santa Catalina","San Andrés",null,"Nirvana",50,70,"Dato in situ usando GPS","Sitio de buceo en el costado occidental de la Isla de San Andrés","12° 30,142' N","81° 44,038' W","Grados, Minutos decimales - GMS","WGS84",12.502359999999999,-81.733959999999996,"WGS84","Luis Chasqui","2018-04-16","http://www.gbif.org/orc/?doc_id=1288",null,"Verificado por el proveedor de datos","Georreferenciado in situ con GPS","Luis Chasqui y Juan David Gonzáles","2018-04-16/2018-04-19","identificado in situ con base en morfología",null,"urn:lsid:marinespecies.org:taxname:276012","Holacanthus ciliaris",null,null,null,null,null,null,null,null,null,null,null,null,null,null,null,null,null,null,null,null,null,null,null,null,null,null,null,null,null,null,null,null,null,null,null,null,null,null,"AnimaliaChordataActinopterygiiPerciformesPomacanthidaeHolacanthusciliaris","Animalia","Chordata","Actinopterygii","Perciformes","Pomacanthidae","Holacanthus",null,"ciliaris","Especie","(Linnaeus, 1758)","ICZN","Aceptado"]
["INVEMAR:CORALINA:SAI2018:MCE:080","Observación humana","Evento","ES","Creative Commons Attribution Non Commercial (CC-BY-NC) 4.0 License","INVEMAR","Sólo para uso no comercial","ColombiaNIT:800250062-0","INV_CoralinaSAI2018_MCE","INVEMAR","INVEMARCORALINASAI2018","Biodiversidad de los ecosistemas de coral mesofóticos en San andrés islas 2018","INVEMAR","INV_CoralinaSAI2018_MCE:080","80","Luis Chasqui y Juan David Gonzáles","Ver: Chasqui et al. 2020 (en prep)","Presente",null,"Censo visual","6 inmersiones con rebreather","2018-04-16/2018-04-19","Ecosistema de coral mesofótico","http://marineregions.org/mrgid/48551","SA | Colombia | Archipiélago se San Andrés, Providencia y Santa Catalina","SA","Mar Caribe","Archipiélago de San Andrés, Providencia y Santa Catalina","Isla de San Andrés","Colombia","CO","Archipiélago de San Andrés, Providencia y Santa Catalina","San Andrés",null,"Nirvana",40,70,"Dato in situ usando GPS","Sitio de buceo en el costado occidental de la Isla de San Andrés","12° 30,142' N","81° 44,038' W","Grados, Minutos decimales - GMS","WGS84",12.502359999999999,-81.733959999999996,"WGS84","Luis Chasqui","2018-04-16","http://www.gbif.org/orc/?doc_id=1288",null,"Verificado por el proveedor de datos","Georreferenciado in situ con GPS","Luis Chasqui y Juan David Gonzáles","2018-04-16/2018-04-19","identificado in situ con base en morfología",null,"urn:lsid:marinespecies.org:taxname:276017","Holacanthus tricolor ",null,null,null,null,null,null,null,null,null,null,null,null,null,null,null,null,null,null,null,null,null,null,null,null,null,null,null,null,null,null,null,null,null,null,null,null,null,null,"AnimaliaChordataActinopterygiiPerciformesPomacanthidaeHolacanthustricolor","Animalia","Chordata","Actinopterygii","Perciformes","Pomacanthidae","Holacanthus",null,"tricolor","Especie","(Bloch, 1795)","ICZN","Aceptado"]
["INVEMAR:CORALINA:SAI2018:MCE:081","Observación humana","Evento","ES","Creative Commons Attribution Non Commercial (CC-BY-NC) 4.0 License","INVEMAR","Sólo para uso no comercial","ColombiaNIT:800250062-0","INV_CoralinaSAI2018_MCE","INVEMAR","INVEMARCORALINASAI2018","Biodiversidad de los ecosistemas de coral mesofóticos en San andrés islas 2018","INVEMAR","INV_CoralinaSAI2018_MCE:081","81","Luis Chasqui y Juan David Gonzáles","Ver: Chasqui et al. 2020 (en prep)","Presente",null,"Censo visual","6 inmersiones con rebreather","2018-04-16/2018-04-19","Ecosistema de coral mesofótico","http://marineregions.org/mrgid/48551","SA | Colombia | Archipiélago se San Andrés, Providencia y Santa Catalina","SA","Mar Caribe","Archipiélago de San Andrés, Providencia y Santa Catalina","Isla de San Andrés","Colombia","CO","Archipiélago de San Andrés, Providencia y Santa Catalina","San Andrés",null,"Nirvana",50,70,"Dato in situ usando GPS","Sitio de buceo en el costado occidental de la Isla de San Andrés","12° 30,142' N","81° 44,038' W","Grados, Minutos decimales - GMS","WGS84",12.502359999999999,-81.733959999999996,"WGS84","Luis Chasqui","2018-04-16","http://www.gbif.org/orc/?doc_id=1288",null,"Verificado por el proveedor de datos","Georreferenciado in situ con GPS","Luis Chasqui y Juan David Gonzáles","2018-04-16/2018-04-19","identificado in situ con base en morfología",null,"urn:lsid:marinespecies.org:taxname:159287","Pomacantus arcuatus ",null,null,null,null,null,null,null,null,null,null,null,null,null,null,null,null,null,null,null,null,null,null,null,null,null,null,null,null,null,null,null,null,null,null,null,null,null,null,"AnimaliaChordataActinopterygiiPerciformesPomacanthidaePomacanthusarcuatus","Animalia","Chordata","Actinopterygii","Perciformes","Pomacanthidae","Pomacanthus",null,"arcuatus","Especie","(Linnaeus, 1758)","ICZN","Aceptado"]
["INVEMAR:CORALINA:SAI2018:MCE:082","Observación humana","Evento","ES","Creative Commons Attribution Non Commercial (CC-BY-NC) 4.0 License","INVEMAR","Sólo para uso no comercial","ColombiaNIT:800250062-0","INV_CoralinaSAI2018_MCE","INVEMAR","INVEMARCORALINASAI2018","Biodiversidad de los ecosistemas de coral mesofóticos en San andrés islas 2018","INVEMAR","INV_CoralinaSAI2018_MCE:082","82","Luis Chasqui y Juan David Gonzáles","Ver: Chasqui et al. 2020 (en prep)","Presente",null,"Censo visual","6 inmersiones con rebreather","2018-04-16/2018-04-19","Ecosistema de coral mesofótico","http://marineregions.org/mrgid/48551","SA | Colombia | Archipiélago se San Andrés, Providencia y Santa Catalina","SA","Mar Caribe","Archipiélago de San Andrés, Providencia y Santa Catalina","Isla de San Andrés","Colombia","CO","Archipiélago de San Andrés, Providencia y Santa Catalina","San Andrés",null,"Nirvana",50,70,"Dato in situ usando GPS","Sitio de buceo en el costado occidental de la Isla de San Andrés","12° 30,142' N","81° 44,038' W","Grados, Minutos decimales - GMS","WGS84",12.502359999999999,-81.733959999999996,"WGS84","Luis Chasqui","2018-04-16","http://www.gbif.org/orc/?doc_id=1288",null,"Verificado por el proveedor de datos","Georreferenciado in situ con GPS","Luis Chasqui y Juan David Gonzáles","2018-04-16/2018-04-19","identificado in situ con base en morfología",null,"urn:lsid:marinespecies.org:taxname:276025","Pomacanthus paru ",null,null,null,null,null,null,null,null,null,null,null,null,null,null,null,null,null,null,null,null,null,null,null,null,null,null,null,null,null,null,null,null,null,null,null,null,null,null,"AnimaliaChordataActinopterygiiPerciformesPomacanthidaePomacanthusparu","Animalia","Chordata","Actinopterygii","Perciformes","Pomacanthidae","Pomacanthus",null,"paru","Especie","(Bloch, 1787)","ICZN","Aceptado"]
["INVEMAR:CORALINA:SAI2018:MCE:083","Observación humana","Evento","ES","Creative Commons Attribution Non Commercial (CC-BY-NC) 4.0 License","INVEMAR","Sólo para uso no comercial","ColombiaNIT:800250062-0","INV_CoralinaSAI2018_MCE","INVEMAR","INVEMARCORALINASAI2018","Biodiversidad de los ecosistemas de coral mesofóticos en San andrés islas 2018","INVEMAR","INV_CoralinaSAI2018_MCE:083","83","Luis Chasqui y Juan David Gonzáles","Ver: Chasqui et al. 2020 (en prep)","Presente",null,"Censo visual","6 inmersiones con rebreather","2018-04-16/2018-04-19","Ecosistema de coral mesofótico","http://marineregions.org/mrgid/48551","SA | Colombia | Archipiélago se San Andrés, Providencia y Santa Catalina","SA","Mar Caribe","Archipiélago de San Andrés, Providencia y Santa Catalina","Isla de San Andrés","Colombia","CO","Archipiélago de San Andrés, Providencia y Santa Catalina","San Andrés",null,"Nirvana",50,70,"Dato in situ usando GPS","Sitio de buceo en el costado occidental de la Isla de San Andrés","12° 30,142' N","81° 44,038' W","Grados, Minutos decimales - GMS","WGS84",12.502359999999999,-81.733959999999996,"WGS84","Luis Chasqui","2018-04-16","http://www.gbif.org/orc/?doc_id=1288",null,"Verificado por el proveedor de datos","Georreferenciado in situ con GPS","Luis Chasqui y Juan David Gonzáles","2018-04-16/2018-04-19","identificado in situ con base en morfología",null,"urn:lsid:marinespecies.org:taxname:273541","Bodianus rufus ",null,null,null,null,null,null,null,null,null,null,null,null,null,null,null,null,null,null,null,null,null,null,null,null,null,null,null,null,null,null,null,null,null,null,null,null,null,null,"AnimaliaChordataActinopterygiiPerciformesLabridaeBodianusrufus","Animalia","Chordata","Actinopterygii","Perciformes","Labridae","Bodianus",null,"rufus","Especie","(Linnaeus, 1758)","ICZN","Aceptado"]
["INVEMAR:CORALINA:SAI2018:MCE:084","Observación humana","Evento","ES","Creative Commons Attribution Non Commercial (CC-BY-NC) 4.0 License","INVEMAR","Sólo para uso no comercial","ColombiaNIT:800250062-0","INV_CoralinaSAI2018_MCE","INVEMAR","INVEMARCORALINASAI2018","Biodiversidad de los ecosistemas de coral mesofóticos en San andrés islas 2018","INVEMAR","INV_CoralinaSAI2018_MCE:084","84","Luis Chasqui y Juan David Gonzáles","Ver: Chasqui et al. 2020 (en prep)","Presente",null,"Censo visual","6 inmersiones con rebreather","2018-04-16/2018-04-19","Ecosistema de coral mesofótico","http://marineregions.org/mrgid/48551","SA | Colombia | Archipiélago se San Andrés, Providencia y Santa Catalina","SA","Mar Caribe","Archipiélago de San Andrés, Providencia y Santa Catalina","Isla de San Andrés","Colombia","CO","Archipiélago de San Andrés, Providencia y Santa Catalina","San Andrés",null,"Nirvana",40,70,"Dato in situ usando GPS","Sitio de buceo en el costado occidental de la Isla de San Andrés","12° 30,142' N","81° 44,038' W","Grados, Minutos decimales - GMS","WGS84",12.502359999999999,-81.733959999999996,"WGS84","Luis Chasqui","2018-04-16","http://www.gbif.org/orc/?doc_id=1288",null,"Verificado por el proveedor de datos","Georreferenciado in situ con GPS","Luis Chasqui y Juan David Gonzáles","2018-04-16/2018-04-19","identificado in situ con base en morfología",null,"urn:lsid:marinespecies.org:taxname:280214","Clepticus parrae",null,null,null,null,null,null,null,null,null,null,null,null,null,null,null,null,null,null,null,null,null,null,null,null,null,null,null,null,null,null,null,null,null,null,null,null,null,null,"AnimaliaChordataActinopterygiiPerciformesLabridaeClepticusparrae","Animalia","Chordata","Actinopterygii","Perciformes","Labridae","Clepticus",null,"parrae","Especie","(Bloch & Schneider, 1801)","ICZN","Aceptado"]
["INVEMAR:CORALINA:SAI2018:MCE:085","Observación humana","Evento","ES","Creative Commons Attribution Non Commercial (CC-BY-NC) 4.0 License","INVEMAR","Sólo para uso no comercial","ColombiaNIT:800250062-0","INV_CoralinaSAI2018_MCE","INVEMAR","INVEMARCORALINASAI2018","Biodiversidad de los ecosistemas de coral mesofóticos en San andrés islas 2018","INVEMAR","INV_CoralinaSAI2018_MCE:085","85","Luis Chasqui y Juan David Gonzáles","Ver: Chasqui et al. 2020 (en prep)","Presente",null,"Censo visual","6 inmersiones con rebreather","2018-04-16/2018-04-19","Ecosistema de coral mesofótico","http://marineregions.org/mrgid/48551","SA | Colombia | Archipiélago se San Andrés, Providencia y Santa Catalina","SA","Mar Caribe","Archipiélago de San Andrés, Providencia y Santa Catalina","Isla de San Andrés","Colombia","CO","Archipiélago de San Andrés, Providencia y Santa Catalina","San Andrés",null,"Nirvana",40,70,"Dato in situ usando GPS","Sitio de buceo en el costado occidental de la Isla de San Andrés","12° 30,142' N","81° 44,038' W","Grados, Minutos decimales - GMS","WGS84",12.502359999999999,-81.733959999999996,"WGS84","Luis Chasqui","2018-04-16","http://www.gbif.org/orc/?doc_id=1288",null,"Verificado por el proveedor de datos","Georreferenciado in situ con GPS","Luis Chasqui y Juan David Gonzáles","2018-04-16/2018-04-19","identificado in situ con base en morfología",null,"urn:lsid:marinespecies.org:taxname:275764","Halichoeres garnoti ",null,null,null,null,null,null,null,null,null,null,null,null,null,null,null,null,null,null,null,null,null,null,null,null,null,null,null,null,null,null,null,null,null,null,null,null,null,null,"AnimaliaChordataActinopterygiiPerciformesLabridaeHalichoeresgarnoti","Animalia","Chordata","Actinopterygii","Perciformes","Labridae","Halichoeres",null,"garnoti","Especie","(Valenciennes, 1839)","ICZN","Aceptado"]
["INVEMAR:CORALINA:SAI2018:MCE:086","Observación humana","Evento","ES","Creative Commons Attribution Non Commercial (CC-BY-NC) 4.0 License","INVEMAR","Sólo para uso no comercial","ColombiaNIT:800250062-0","INV_CoralinaSAI2018_MCE","INVEMAR","INVEMARCORALINASAI2018","Biodiversidad de los ecosistemas de coral mesofóticos en San andrés islas 2018","INVEMAR","INV_CoralinaSAI2018_MCE:086","86","Luis Chasqui y Juan David Gonzáles","Ver: Chasqui et al. 2020 (en prep)","Presente",null,"Censo visual","6 inmersiones con rebreather","2018-04-16/2018-04-19","Ecosistema de coral mesofótico","http://marineregions.org/mrgid/48551","SA | Colombia | Archipiélago se San Andrés, Providencia y Santa Catalina","SA","Mar Caribe","Archipiélago de San Andrés, Providencia y Santa Catalina","Isla de San Andrés","Colombia","CO","Archipiélago de San Andrés, Providencia y Santa Catalina","San Andrés",null,"Nirvana",40,50,"Dato in situ usando GPS","Sitio de buceo en el costado occidental de la Isla de San Andrés","12° 30,142' N","81° 44,038' W","Grados, Minutos decimales - GMS","WGS84",12.502359999999999,-81.733959999999996,"WGS84","Luis Chasqui","2018-04-16","http://www.gbif.org/orc/?doc_id=1288",null,"Verificado por el proveedor de datos","Georreferenciado in situ con GPS","Luis Chasqui y Juan David Gonzáles","2018-04-16/2018-04-19","identificado in situ con base en morfología",null,"urn:lsid:marinespecies.org:taxname:126971","Xyrichtys novacula ",null,null,null,null,null,null,null,null,null,null,null,null,null,null,null,null,null,null,null,null,null,null,null,null,null,null,null,null,null,null,null,null,null,null,null,null,null,null,"AnimaliaChordataActinopterygiiPerciformesLabridaeXyrichtysnovacula","Animalia","Chordata","Actinopterygii","Perciformes","Labridae","Xyrichtys",null,"novacula","Especie","(Linnaeus, 1758)","ICZN","Aceptado"]
["INVEMAR:CORALINA:SAI2018:MCE:087","Observación humana","Evento","ES","Creative Commons Attribution Non Commercial (CC-BY-NC) 4.0 License","INVEMAR","Sólo para uso no comercial","ColombiaNIT:800250062-0","INV_CoralinaSAI2018_MCE","INVEMAR","INVEMARCORALINASAI2018","Biodiversidad de los ecosistemas de coral mesofóticos en San andrés islas 2018","INVEMAR","INV_CoralinaSAI2018_MCE:087","87","Luis Chasqui y Juan David Gonzáles","Ver: Chasqui et al. 2020 (en prep)","Presente",null,"Censo visual","6 inmersiones con rebreather","2018-04-16/2018-04-19","Ecosistema de coral mesofótico","http://marineregions.org/mrgid/48551","SA | Colombia | Archipiélago se San Andrés, Providencia y Santa Catalina","SA","Mar Caribe","Archipiélago de San Andrés, Providencia y Santa Catalina","Isla de San Andrés","Colombia","CO","Archipiélago de San Andrés, Providencia y Santa Catalina","San Andrés",null,"Nirvana",40,50,"Dato in situ usando GPS","Sitio de buceo en el costado occidental de la Isla de San Andrés","12° 30,142' N","81° 44,038' W","Grados, Minutos decimales - GMS","WGS84",12.502359999999999,-81.733959999999996,"WGS84","Luis Chasqui","2018-04-16","http://www.gbif.org/orc/?doc_id=1288",null,"Verificado por el proveedor de datos","Georreferenciado in situ con GPS","Luis Chasqui y Juan David Gonzáles","2018-04-16/2018-04-19","identificado in situ con base en morfología",null,"urn:lsid:marinespecies.org:taxname:273772","Sparisoma aurofrenatum ",null,null,null,null,null,null,null,null,null,null,null,null,null,null,null,null,null,null,null,null,null,null,null,null,null,null,null,null,null,null,null,null,null,null,null,null,null,null,"AnimaliaChordataActinopterygiiPerciformesScaridaeSparisomaaurofrenatum","Animalia","Chordata","Actinopterygii","Perciformes","Scaridae","Sparisoma",null,"aurofrenatum","Especie","(Valenciennes, 1840)","ICZN","Aceptado"]
["INVEMAR:CORALINA:SAI2018:MCE:088","Observación humana","Evento","ES","Creative Commons Attribution Non Commercial (CC-BY-NC) 4.0 License","INVEMAR","Sólo para uso no comercial","ColombiaNIT:800250062-0","INV_CoralinaSAI2018_MCE","INVEMAR","INVEMARCORALINASAI2018","Biodiversidad de los ecosistemas de coral mesofóticos en San andrés islas 2018","INVEMAR","INV_CoralinaSAI2018_MCE:088","88","Luis Chasqui y Juan David Gonzáles","Ver: Chasqui et al. 2020 (en prep)","Presente",null,"Censo visual","6 inmersiones con rebreather","2018-04-16/2018-04-19","Ecosistema de coral mesofótico","http://marineregions.org/mrgid/48551","SA | Colombia | Archipiélago se San Andrés, Providencia y Santa Catalina","SA","Mar Caribe","Archipiélago de San Andrés, Providencia y Santa Catalina","Isla de San Andrés","Colombia","CO","Archipiélago de San Andrés, Providencia y Santa Catalina","San Andrés",null,"Nirvana",40,50,"Dato in situ usando GPS","Sitio de buceo en el costado occidental de la Isla de San Andrés","12° 30,142' N","81° 44,038' W","Grados, Minutos decimales - GMS","WGS84",12.502359999999999,-81.733959999999996,"WGS84","Luis Chasqui","2018-04-16","http://www.gbif.org/orc/?doc_id=1288",null,"Verificado por el proveedor de datos","Georreferenciado in situ con GPS","Luis Chasqui y Juan David Gonzáles","2018-04-16/2018-04-19","identificado in situ con base en morfología",null,"urn:lsid:marinespecies.org:taxname:276052","Scarus iseri ",null,null,null,null,null,null,null,null,null,null,null,null,null,null,null,null,null,null,null,null,null,null,null,null,null,null,null,null,null,null,null,null,null,null,null,null,null,null,"AnimaliaChordataActinopterygiiPerciformesScaridaeScarusiseri","Animalia","Chordata","Actinopterygii","Perciformes","Scaridae","Scarus",null,"iseri","Especie","(Bloch, 1789)","ICZN","Aceptado"]
["INVEMAR:CORALINA:SAI2018:MCE:089","Observación humana","Evento","ES","Creative Commons Attribution Non Commercial (CC-BY-NC) 4.0 License","INVEMAR","Sólo para uso no comercial","ColombiaNIT:800250062-0","INV_CoralinaSAI2018_MCE","INVEMAR","INVEMARCORALINASAI2018","Biodiversidad de los ecosistemas de coral mesofóticos en San andrés islas 2018","INVEMAR","INV_CoralinaSAI2018_MCE:089","89","Luis Chasqui y Juan David Gonzáles","Ver: Chasqui et al. 2020 (en prep)","Presente",null,"Censo visual","6 inmersiones con rebreather","2018-04-16/2018-04-19","Ecosistema de coral mesofótico","http://marineregions.org/mrgid/48551","SA | Colombia | Archipiélago se San Andrés, Providencia y Santa Catalina","SA","Mar Caribe","Archipiélago de San Andrés, Providencia y Santa Catalina","Isla de San Andrés","Colombia","CO","Archipiélago de San Andrés, Providencia y Santa Catalina","San Andrés",null,"Nirvana",40,50,"Dato in situ usando GPS","Sitio de buceo en el costado occidental de la Isla de San Andrés","12° 30,142' N","81° 44,038' W","Grados, Minutos decimales - GMS","WGS84",12.502359999999999,-81.733959999999996,"WGS84","Luis Chasqui","2018-04-16","http://www.gbif.org/orc/?doc_id=1288",null,"Verificado por el proveedor de datos","Georreferenciado in situ con GPS","Luis Chasqui y Juan David Gonzáles","2018-04-16/2018-04-19","identificado in situ con base en morfología",null,"urn:lsid:marinespecies.org:taxname:276062","Scarus taeniopterus ",null,null,null,null,null,null,null,null,null,null,null,null,null,null,null,null,null,null,null,null,null,null,null,null,null,null,null,null,null,null,null,null,null,null,null,null,null,null,"AnimaliaChordataActinopterygiiPerciformesScaridaeScarustaeniopterus","Animalia","Chordata","Actinopterygii","Perciformes","Scaridae","Scarus",null,"taeniopterus","Especie","(Desmarest, 1831)","ICZN","Aceptado"]
["INVEMAR:CORALINA:SAI2018:MCE:090","Observación humana","Evento","ES","Creative Commons Attribution Non Commercial (CC-BY-NC) 4.0 License","INVEMAR","Sólo para uso no comercial","ColombiaNIT:800250062-0","INV_CoralinaSAI2018_MCE","INVEMAR","INVEMARCORALINASAI2018","Biodiversidad de los ecosistemas de coral mesofóticos en San andrés islas 2018","INVEMAR","INV_CoralinaSAI2018_MCE:090","90","Luis Chasqui y Juan David Gonzáles","Ver: Chasqui et al. 2020 (en prep)","Presente",null,"Censo visual","6 inmersiones con rebreather","2018-04-16/2018-04-19","Ecosistema de coral mesofótico","http://marineregions.org/mrgid/48551","SA | Colombia | Archipiélago se San Andrés, Providencia y Santa Catalina","SA","Mar Caribe","Archipiélago de San Andrés, Providencia y Santa Catalina","Isla de San Andrés","Colombia","CO","Archipiélago de San Andrés, Providencia y Santa Catalina","San Andrés",null,"Nirvana",40,50,"Dato in situ usando GPS","Sitio de buceo en el costado occidental de la Isla de San Andrés","12° 30,142' N","81° 44,038' W","Grados, Minutos decimales - GMS","WGS84",12.502359999999999,-81.733959999999996,"WGS84","Luis Chasqui","2018-04-16","http://www.gbif.org/orc/?doc_id=1288",null,"Verificado por el proveedor de datos","Georreferenciado in situ con GPS","Luis Chasqui y Juan David Gonzáles","2018-04-16/2018-04-19","identificado in situ con base en morfología",null,"urn:lsid:marinespecies.org:taxname:273780","Sparisoma viride ",null,null,null,null,null,null,null,null,null,null,null,null,null,null,null,null,null,null,null,null,null,null,null,null,null,null,null,null,null,null,null,null,null,null,null,null,null,null,"AnimaliaChordataActinopterygiiPerciformesScaridaeSparisomaviride","Animalia","Chordata","Actinopterygii","Perciformes","Scaridae","Sparisoma",null,"viride","Especie","(Bonnaterre, 1788)","ICZN","Aceptado"]
["INVEMAR:CORALINA:SAI2018:MCE:091","Observación humana","Evento","ES","Creative Commons Attribution Non Commercial (CC-BY-NC) 4.0 License","INVEMAR","Sólo para uso no comercial","ColombiaNIT:800250062-0","INV_CoralinaSAI2018_MCE","INVEMAR","INVEMARCORALINASAI2018","Biodiversidad de los ecosistemas de coral mesofóticos en San andrés islas 2018","INVEMAR","INV_CoralinaSAI2018_MCE:091","91","Luis Chasqui y Juan David Gonzáles","Ver: Chasqui et al. 2020 (en prep)","Presente",null,"Censo visual","6 inmersiones con rebreather","2018-04-16/2018-04-19","Ecosistema de coral mesofótico","http://marineregions.org/mrgid/48551","SA | Colombia | Archipiélago se San Andrés, Providencia y Santa Catalina","SA","Mar Caribe","Archipiélago de San Andrés, Providencia y Santa Catalina","Isla de San Andrés","Colombia","CO","Archipiélago de San Andrés, Providencia y Santa Catalina","San Andrés",null,"Nirvana",40,50,"Dato in situ usando GPS","Sitio de buceo en el costado occidental de la Isla de San Andrés","12° 30,142' N","81° 44,038' W","Grados, Minutos decimales - GMS","WGS84",12.502359999999999,-81.733959999999996,"WGS84","Luis Chasqui","2018-04-16","http://www.gbif.org/orc/?doc_id=1288",null,"Verificado por el proveedor de datos","Georreferenciado in situ con GPS","Luis Chasqui y Juan David Gonzáles","2018-04-16/2018-04-19","identificado in situ con base en morfología",null,"urn:lsid:marinespecies.org:taxname:159241","Calamus bajonado ",null,null,null,null,null,null,null,null,null,null,null,null,null,null,null,null,null,null,null,null,null,null,null,null,null,null,null,null,null,null,null,null,null,null,null,null,null,null,"AnimaliaChordataActinopterygiiPerciformesSparidaeCalamusbajonado","Animalia","Chordata","Actinopterygii","Perciformes","Sparidae","Calamus",null,"bajonado","Especie","(Bloch y Schneider, 1861)","ICZN","Aceptado"]
["INVEMAR:CORALINA:SAI2018:MCE:092","Observación humana","Evento","ES","Creative Commons Attribution Non Commercial (CC-BY-NC) 4.0 License","INVEMAR","Sólo para uso no comercial","ColombiaNIT:800250062-0","INV_CoralinaSAI2018_MCE","INVEMAR","INVEMARCORALINASAI2018","Biodiversidad de los ecosistemas de coral mesofóticos en San andrés islas 2018","INVEMAR","INV_CoralinaSAI2018_MCE:092","92","Luis Chasqui y Juan David Gonzáles","Ver: Chasqui et al. 2020 (en prep)","Presente",null,"Censo visual","6 inmersiones con rebreather","2018-04-16/2018-04-19","Ecosistema de coral mesofótico","http://marineregions.org/mrgid/48551","SA | Colombia | Archipiélago se San Andrés, Providencia y Santa Catalina","SA","Mar Caribe","Archipiélago de San Andrés, Providencia y Santa Catalina","Isla de San Andrés","Colombia","CO","Archipiélago de San Andrés, Providencia y Santa Catalina","San Andrés",null,"Nirvana",40,50,"Dato in situ usando GPS","Sitio de buceo en el costado occidental de la Isla de San Andrés","12° 30,142' N","81° 44,038' W","Grados, Minutos decimales - GMS","WGS84",12.502359999999999,-81.733959999999996,"WGS84","Luis Chasqui","2018-04-16","http://www.gbif.org/orc/?doc_id=1288",null,"Verificado por el proveedor de datos","Georreferenciado in situ con GPS","Luis Chasqui y Juan David Gonzáles","2018-04-16/2018-04-19","identificado in situ con base en morfología",null,"urn:lsid:marinespecies.org:taxname:159663","Chaetodon striatus",null,null,null,null,null,null,null,null,null,null,null,null,null,null,null,null,null,null,null,null,null,null,null,null,null,null,null,null,null,null,null,null,null,null,null,null,null,null,"AnimaliaChordataActinopterygiiPerciformesChaetodontidaeChaetodonstriatus","Animalia","Chordata","Actinopterygii","Perciformes","Chaetodontidae","Chaetodon",null,"striatus","Especie","Linnaeus, 1758","ICZN","Aceptado"]
["INVEMAR:CORALINA:SAI2018:MCE:093","Observación humana","Evento","ES","Creative Commons Attribution Non Commercial (CC-BY-NC) 4.0 License","INVEMAR","Sólo para uso no comercial","ColombiaNIT:800250062-0","INV_CoralinaSAI2018_MCE","INVEMAR","INVEMARCORALINASAI2018","Biodiversidad de los ecosistemas de coral mesofóticos en San andrés islas 2018","INVEMAR","INV_CoralinaSAI2018_MCE:093","93","Luis Chasqui y Juan David Gonzáles","Ver: Chasqui et al. 2020 (en prep)","Presente",null,"Censo visual","6 inmersiones con rebreather","2018-04-16/2018-04-19","Ecosistema de coral mesofótico","http://marineregions.org/mrgid/48551","SA | Colombia | Archipiélago se San Andrés, Providencia y Santa Catalina","SA","Mar Caribe","Archipiélago de San Andrés, Providencia y Santa Catalina","Isla de San Andrés","Colombia","CO","Archipiélago de San Andrés, Providencia y Santa Catalina","San Andrés",null,"Nirvana",40,70,"Dato in situ usando GPS","Sitio de buceo en el costado occidental de la Isla de San Andrés","12° 30,142' N","81° 44,038' W","Grados, Minutos decimales - GMS","WGS84",12.502359999999999,-81.733959999999996,"WGS84","Luis Chasqui","2018-04-16","http://www.gbif.org/orc/?doc_id=1288",null,"Verificado por el proveedor de datos","Georreferenciado in situ con GPS","Luis Chasqui y Juan David Gonzáles","2018-04-16/2018-04-19","identificado in situ con base en morfología",null,"urn:lsid:marinespecies.org:taxname:159661","Chaetodon capistratus ",null,null,null,null,null,null,null,null,null,null,null,null,null,null,null,null,null,null,null,null,null,null,null,null,null,null,null,null,null,null,null,null,null,null,null,null,null,null,"AnimaliaChordataActinopterygiiPerciformesChaetodontidaeChaetodoncapistratus","Animalia","Chordata","Actinopterygii","Perciformes","Chaetodontidae","Chaetodon",null,"capistratus","Especie","Linnaeus, 1758","ICZN","Aceptado"]
["INVEMAR:CORALINA:SAI2018:MCE:094","Observación humana","Evento","ES","Creative Commons Attribution Non Commercial (CC-BY-NC) 4.0 License","INVEMAR","Sólo para uso no comercial","ColombiaNIT:800250062-0","INV_CoralinaSAI2018_MCE","INVEMAR","INVEMARCORALINASAI2018","Biodiversidad de los ecosistemas de coral mesofóticos en San andrés islas 2018","INVEMAR","INV_CoralinaSAI2018_MCE:094","94","Luis Chasqui y Juan David Gonzáles","Ver: Chasqui et al. 2020 (en prep)","Presente",null,"Censo visual","6 inmersiones con rebreather","2018-04-16/2018-04-19","Ecosistema de coral mesofótico","http://marineregions.org/mrgid/48551","SA | Colombia | Archipiélago se San Andrés, Providencia y Santa Catalina","SA","Mar Caribe","Archipiélago de San Andrés, Providencia y Santa Catalina","Isla de San Andrés","Colombia","CO","Archipiélago de San Andrés, Providencia y Santa Catalina","San Andrés",null,"Nirvana",40,70,"Dato in situ usando GPS","Sitio de buceo en el costado occidental de la Isla de San Andrés","12° 30,142' N","81° 44,038' W","Grados, Minutos decimales - GMS","WGS84",12.502359999999999,-81.733959999999996,"WGS84","Luis Chasqui","2018-04-16","http://www.gbif.org/orc/?doc_id=1288",null,"Verificado por el proveedor de datos","Georreferenciado in situ con GPS","Luis Chasqui y Juan David Gonzáles","2018-04-16/2018-04-19","identificado in situ con base en morfología",null,"urn:lsid:marinespecies.org:taxname:234107","Chaetodon sedentarius ",null,null,null,null,null,null,null,null,null,null,null,null,null,null,null,null,null,null,null,null,null,null,null,null,null,null,null,null,null,null,null,null,null,null,null,null,null,null,"AnimaliaChordataActinopterygiiPerciformesChaetodontidaeChaetodonsedentarius","Animalia","Chordata","Actinopterygii","Perciformes","Chaetodontidae","Chaetodon",null,"sedentarius","Especie","Poey, 1860","ICZN","Aceptado"]
["INVEMAR:CORALINA:SAI2018:MCE:095","Observación humana","Evento","ES","Creative Commons Attribution Non Commercial (CC-BY-NC) 4.0 License","INVEMAR","Sólo para uso no comercial","ColombiaNIT:800250062-0","INV_CoralinaSAI2018_MCE","INVEMAR","INVEMARCORALINASAI2018","Biodiversidad de los ecosistemas de coral mesofóticos en San andrés islas 2018","INVEMAR","INV_CoralinaSAI2018_MCE:095","95","Luis Chasqui y Juan David Gonzáles","Ver: Chasqui et al. 2020 (en prep)","Presente",null,"Censo visual","6 inmersiones con rebreather","2018-04-16/2018-04-19","Ecosistema de coral mesofótico","http://marineregions.org/mrgid/48551","SA | Colombia | Archipiélago se San Andrés, Providencia y Santa Catalina","SA","Mar Caribe","Archipiélago de San Andrés, Providencia y Santa Catalina","Isla de San Andrés","Colombia","CO","Archipiélago de San Andrés, Providencia y Santa Catalina","San Andrés",null,"Nirvana",50,70,"Dato in situ usando GPS","Sitio de buceo en el costado occidental de la Isla de San Andrés","12° 30,142' N","81° 44,038' W","Grados, Minutos decimales - GMS","WGS84",12.502359999999999,-81.733959999999996,"WGS84","Luis Chasqui","2018-04-16","http://www.gbif.org/orc/?doc_id=1288",null,"Verificado por el proveedor de datos","Georreferenciado in situ con GPS","Luis Chasqui y Juan David Gonzáles","2018-04-16/2018-04-19","identificado in situ con base en morfología",null,"urn:lsid:marinespecies.org:taxname:273369","Prognathodes aculeatus ",null,null,null,null,null,null,null,null,null,null,null,null,null,null,null,null,null,null,null,null,null,null,null,null,null,null,null,null,null,null,null,null,null,null,null,null,null,null,"AnimaliaChordataActinopterygiiPerciformesChaetodontidaePrognathodesaculeatus","Animalia","Chordata","Actinopterygii","Perciformes","Chaetodontidae","Prognathodes",null,"aculeatus","Especie","(Poey, 1860)","ICZN","Aceptado"]
["INVEMAR:CORALINA:SAI2018:MCE:096","Observación humana","Evento","ES","Creative Commons Attribution Non Commercial (CC-BY-NC) 4.0 License","INVEMAR","Sólo para uso no comercial","ColombiaNIT:800250062-0","INV_CoralinaSAI2018_MCE","INVEMAR","INVEMARCORALINASAI2018","Biodiversidad de los ecosistemas de coral mesofóticos en San andrés islas 2018","INVEMAR","INV_CoralinaSAI2018_MCE:096","96","Luis Chasqui y Juan David Gonzáles","Ver: Chasqui et al. 2020 (en prep)","Presente",null,"Censo visual","6 inmersiones con rebreather","2018-04-16/2018-04-19","Ecosistema de coral mesofótico","http://marineregions.org/mrgid/48551","SA | Colombia | Archipiélago se San Andrés, Providencia y Santa Catalina","SA","Mar Caribe","Archipiélago de San Andrés, Providencia y Santa Catalina","Isla de San Andrés","Colombia","CO","Archipiélago de San Andrés, Providencia y Santa Catalina","San Andrés",null,"Nirvana",40,70,"Dato in situ usando GPS","Sitio de buceo en el costado occidental de la Isla de San Andrés","12° 30,142' N","81° 44,038' W","Grados, Minutos decimales - GMS","WGS84",12.502359999999999,-81.733959999999996,"WGS84","Luis Chasqui","2018-04-16","http://www.gbif.org/orc/?doc_id=1288",null,"Verificado por el proveedor de datos","Georreferenciado in situ con GPS","Luis Chasqui y Juan David Gonzáles","2018-04-16/2018-04-19","identificado in situ con base en morfología",null,"urn:lsid:marinespecies.org:taxname:127411","Canthigaster rostrata ",null,null,null,null,null,null,null,null,null,null,null,null,null,null,null,null,null,null,null,null,null,null,null,null,null,null,null,null,null,null,null,null,null,null,null,null,null,null,"AnimaliaChordataActinopterygiiTetraodontiformesTetraodontidaeCanthigasterrostrata","Animalia","Chordata","Actinopterygii","Tetraodontiformes","Tetraodontidae","Canthigaster",null,"rostrata","Especie","(Bloch, 1786)","ICZN","Aceptado"]
["INVEMAR:CORALINA:SAI2018:MCE:097","Observación humana","Evento","ES","Creative Commons Attribution Non Commercial (CC-BY-NC) 4.0 License","INVEMAR","Sólo para uso no comercial","ColombiaNIT:800250062-0","INV_CoralinaSAI2018_MCE","INVEMAR","INVEMARCORALINASAI2018","Biodiversidad de los ecosistemas de coral mesofóticos en San andrés islas 2018","INVEMAR","INV_CoralinaSAI2018_MCE:097","97","Luis Chasqui y Juan David Gonzáles","Ver: Chasqui et al. 2020 (en prep)","Presente",null,"Censo visual","6 inmersiones con rebreather","2018-04-16/2018-04-19","Ecosistema de coral mesofótico","http://marineregions.org/mrgid/48551","SA | Colombia | Archipiélago se San Andrés, Providencia y Santa Catalina","SA","Mar Caribe","Archipiélago de San Andrés, Providencia y Santa Catalina","Isla de San Andrés","Colombia","CO","Archipiélago de San Andrés, Providencia y Santa Catalina","San Andrés",null,"Nirvana",40,70,"Dato in situ usando GPS","Sitio de buceo en el costado occidental de la Isla de San Andrés","12° 30,142' N","81° 44,038' W","Grados, Minutos decimales - GMS","WGS84",12.502359999999999,-81.733959999999996,"WGS84","Luis Chasqui","2018-04-16","http://www.gbif.org/orc/?doc_id=1288",null,"Verificado por el proveedor de datos","Georreferenciado in situ con GPS","Luis Chasqui y Juan David Gonzáles","2018-04-16/2018-04-19","identificado in situ con base en morfología",null,"urn:lsid:marinespecies.org:taxname:159491","Aluterus scriptus ",null,null,null,null,null,null,null,null,null,null,null,null,null,null,null,null,null,null,null,null,null,null,null,null,null,null,null,null,null,null,null,null,null,null,null,null,null,null,"AnimaliaChordataActinopterygiiTetraodontiformesMonacanthidaeAluterusscriptus","Animalia","Chordata","Actinopterygii","Tetraodontiformes","Monacanthidae","Aluterus",null,"scriptus","Especie","(Osbeck, 1765)","ICZN","Aceptado"]
["INVEMAR:CORALINA:SAI2018:MCE:098","Observación humana","Evento","ES","Creative Commons Attribution Non Commercial (CC-BY-NC) 4.0 License","INVEMAR","Sólo para uso no comercial","ColombiaNIT:800250062-0","INV_CoralinaSAI2018_MCE","INVEMAR","INVEMARCORALINASAI2018","Biodiversidad de los ecosistemas de coral mesofóticos en San andrés islas 2018","INVEMAR","INV_CoralinaSAI2018_MCE:098","98","Luis Chasqui y Juan David Gonzáles","Ver: Chasqui et al. 2020 (en prep)","Presente",null,"Censo visual","6 inmersiones con rebreather","2018-04-16/2018-04-19","Ecosistema de coral mesofótico","http://marineregions.org/mrgid/48551","SA | Colombia | Archipiélago se San Andrés, Providencia y Santa Catalina","SA","Mar Caribe","Archipiélago de San Andrés, Providencia y Santa Catalina","Isla de San Andrés","Colombia","CO","Archipiélago de San Andrés, Providencia y Santa Catalina","San Andrés",null,"Nirvana",40,70,"Dato in situ usando GPS","Sitio de buceo en el costado occidental de la Isla de San Andrés","12° 30,142' N","81° 44,038' W","Grados, Minutos decimales - GMS","WGS84",12.502359999999999,-81.733959999999996,"WGS84","Luis Chasqui","2018-04-16","http://www.gbif.org/orc/?doc_id=1288",null,"Verificado por el proveedor de datos","Georreferenciado in situ con GPS","Luis Chasqui y Juan David Gonzáles","2018-04-16/2018-04-19","identificado in situ con base en morfología",null,"urn:lsid:marinespecies.org:taxname:127407","Aluterus monocerus ",null,null,null,null,null,null,null,null,null,null,null,null,null,null,null,null,null,null,null,null,null,null,null,null,null,null,null,null,null,null,null,null,null,null,null,null,null,null,"AnimaliaChordataActinopterygiiTetraodontiformesMonacanthidaeAluterusmonocerus","Animalia","Chordata","Actinopterygii","Tetraodontiformes","Monacanthidae","Aluterus",null,"monocerus","Especie","(Linnaeus, 1758)","ICZN","Aceptado"]
["INVEMAR:CORALINA:SAI2018:MCE:099","Observación humana","Evento","ES","Creative Commons Attribution Non Commercial (CC-BY-NC) 4.0 License","INVEMAR","Sólo para uso no comercial","ColombiaNIT:800250062-0","INV_CoralinaSAI2018_MCE","INVEMAR","INVEMARCORALINASAI2018","Biodiversidad de los ecosistemas de coral mesofóticos en San andrés islas 2018","INVEMAR","INV_CoralinaSAI2018_MCE:099","99","Luis Chasqui y Juan David Gonzáles","Ver: Chasqui et al. 2020 (en prep)","Presente",null,"Censo visual","6 inmersiones con rebreather","2018-04-16/2018-04-19","Ecosistema de coral mesofótico","http://marineregions.org/mrgid/48551","SA | Colombia | Archipiélago se San Andrés, Providencia y Santa Catalina","SA","Mar Caribe","Archipiélago de San Andrés, Providencia y Santa Catalina","Isla de San Andrés","Colombia","CO","Archipiélago de San Andrés, Providencia y Santa Catalina","San Andrés",null,"Nirvana",40,50,"Dato in situ usando GPS","Sitio de buceo en el costado occidental de la Isla de San Andrés","12° 30,142' N","81° 44,038' W","Grados, Minutos decimales - GMS","WGS84",12.502359999999999,-81.733959999999996,"WGS84","Luis Chasqui","2018-04-16","http://www.gbif.org/orc/?doc_id=1288",null,"Verificado por el proveedor de datos","Georreferenciado in situ con GPS","Luis Chasqui y Juan David Gonzáles","2018-04-16/2018-04-19","identificado in situ con base en morfología",null,"urn:lsid:marinespecies.org:taxname:276250","Cantherhines macrocerus ",null,null,null,null,null,null,null,null,null,null,null,null,null,null,null,null,null,null,null,null,null,null,null,null,null,null,null,null,null,null,null,null,null,null,null,null,null,null,"AnimaliaChordataActinopterygiiTetraodontiformesMonacanthidaeCantherhinesmacrocerus","Animalia","Chordata","Actinopterygii","Tetraodontiformes","Monacanthidae","Cantherhines",null,"macrocerus","Especie","(Hollard, 1853)","ICZN","Aceptado"]
["INVEMAR:CORALINA:SAI2018:MCE:100","Observación humana","Evento","ES","Creative Commons Attribution Non Commercial (CC-BY-NC) 4.0 License","INVEMAR","Sólo para uso no comercial","ColombiaNIT:800250062-0","INV_CoralinaSAI2018_MCE","INVEMAR","INVEMARCORALINASAI2018","Biodiversidad de los ecosistemas de coral mesofóticos en San andrés islas 2018","INVEMAR","INV_CoralinaSAI2018_MCE:100","100","Luis Chasqui y Juan David Gonzáles","Ver: Chasqui et al. 2020 (en prep)","Presente",null,"Censo visual","6 inmersiones con rebreather","2018-04-16/2018-04-19","Ecosistema de coral mesofótico","http://marineregions.org/mrgid/48551","SA | Colombia | Archipiélago se San Andrés, Providencia y Santa Catalina","SA","Mar Caribe","Archipiélago de San Andrés, Providencia y Santa Catalina","Isla de San Andrés","Colombia","CO","Archipiélago de San Andrés, Providencia y Santa Catalina","San Andrés",null,"Nirvana",40,70,"Dato in situ usando GPS","Sitio de buceo en el costado occidental de la Isla de San Andrés","12° 30,142' N","81° 44,038' W","Grados, Minutos decimales - GMS","WGS84",12.502359999999999,-81.733959999999996,"WGS84","Luis Chasqui","2018-04-16","http://www.gbif.org/orc/?doc_id=1288",null,"Verificado por el proveedor de datos","Georreferenciado in situ con GPS","Luis Chasqui y Juan David Gonzáles","2018-04-16/2018-04-19","identificado in situ con base en morfología",null,"urn:lsid:marinespecies.org:taxname:127399","Canthidermis sufflamen ",null,null,null,null,null,null,null,null,null,null,null,null,null,null,null,null,null,null,null,null,null,null,null,null,null,null,null,null,null,null,null,null,null,null,null,null,null,null,"AnimaliaChordataActinopterygiiTetraodontiformesBalistidaeCanthidermissufflamen","Animalia","Chordata","Actinopterygii","Tetraodontiformes","Balistidae","Canthidermis",null,"sufflamen","Especie","(Mitchill, 1815)","ICZN","Aceptado"]
["INVEMAR:CORALINA:SAI2018:MCE:101","Observación humana","Evento","ES","Creative Commons Attribution Non Commercial (CC-BY-NC) 4.0 License","INVEMAR","Sólo para uso no comercial","ColombiaNIT:800250062-0","INV_CoralinaSAI2018_MCE","INVEMAR","INVEMARCORALINASAI2018","Biodiversidad de los ecosistemas de coral mesofóticos en San andrés islas 2018","INVEMAR","INV_CoralinaSAI2018_MCE:101","101","Luis Chasqui y Juan David Gonzáles","Ver: Chasqui et al. 2020 (en prep)","Presente",null,"Censo visual","6 inmersiones con rebreather","2018-04-16/2018-04-19","Ecosistema de coral mesofótico","http://marineregions.org/mrgid/48551","SA | Colombia | Archipiélago se San Andrés, Providencia y Santa Catalina","SA","Mar Caribe","Archipiélago de San Andrés, Providencia y Santa Catalina","Isla de San Andrés","Colombia","CO","Archipiélago de San Andrés, Providencia y Santa Catalina","San Andrés",null,"Nirvana",40,50,"Dato in situ usando GPS","Sitio de buceo en el costado occidental de la Isla de San Andrés","12° 30,142' N","81° 44,038' W","Grados, Minutos decimales - GMS","WGS84",12.502359999999999,-81.733959999999996,"WGS84","Luis Chasqui","2018-04-16","http://www.gbif.org/orc/?doc_id=1288",null,"Verificado por el proveedor de datos","Georreferenciado in situ con GPS","Luis Chasqui y Juan David Gonzáles","2018-04-16/2018-04-19","identificado in situ con base en morfología",null,"urn:lsid:marinespecies.org:taxname:158932","Lactophrys triqueter",null,null,null,null,null,null,null,null,null,null,null,null,null,null,null,null,null,null,null,null,null,null,null,null,null,null,null,null,null,null,null,null,null,null,null,null,null,null,"AnimaliaChordataActinopterygiiTetraodontiformesOstraciidaeLactophrystriqueter","Animalia","Chordata","Actinopterygii","Tetraodontiformes","Ostraciidae","Lactophrys",null,"triqueter","Especie","(Linnaeus, 1758)","ICZN","Aceptado"]
["INVEMAR:CORALINA:SAI2018:MCE:102","Observación humana","Evento","ES","Creative Commons Attribution Non Commercial (CC-BY-NC) 4.0 License","INVEMAR","Sólo para uso no comercial","ColombiaNIT:800250062-0","INV_CoralinaSAI2018_MCE","INVEMAR","INVEMARCORALINASAI2018","Biodiversidad de los ecosistemas de coral mesofóticos en San andrés islas 2018","INVEMAR","INV_CoralinaSAI2018_MCE:102","102","Luis Chasqui y Juan David Gonzáles","Ver: Chasqui et al. 2020 (en prep)","Presente",null,"Censo visual","6 inmersiones con rebreather","2018-04-16/2018-04-19","Ecosistema de coral mesofótico","http://marineregions.org/mrgid/48551","SA | Colombia | Archipiélago se San Andrés, Providencia y Santa Catalina","SA","Mar Caribe","Archipiélago de San Andrés, Providencia y Santa Catalina","Isla de San Andrés","Colombia","CO","Archipiélago de San Andrés, Providencia y Santa Catalina","San Andrés",null,"Nirvana",40,70,"Dato in situ usando GPS","Sitio de buceo en el costado occidental de la Isla de San Andrés","12° 30,142' N","81° 44,038' W","Grados, Minutos decimales - GMS","WGS84",12.502359999999999,-81.733959999999996,"WGS84","Luis Chasqui","2018-04-16","http://www.gbif.org/orc/?doc_id=1288",null,"Verificado por el proveedor de datos","Georreferenciado in situ con GPS","Luis Chasqui y Juan David Gonzáles","2018-04-16/2018-04-19","identificado in situ con base en morfología",null,"urn:lsid:marinespecies.org:taxname:159581","Acanthurus coeruleus",null,null,null,null,null,null,null,null,null,null,null,null,null,null,null,null,null,null,null,null,null,null,null,null,null,null,null,null,null,null,null,null,null,null,null,null,null,null,"AnimaliaChordataActinopterygiiPerciformesAcanthuridaeAcanthuruscoeruleus","Animalia","Chordata","Actinopterygii","Perciformes","Acanthuridae","Acanthurus",null,"coeruleus","Especie","Bloch & Schneider, 1801","ICZN","Aceptado"]
["INVEMAR:CORALINA:SAI2018:MCE:103","Observación humana","Evento","ES","Creative Commons Attribution Non Commercial (CC-BY-NC) 4.0 License","INVEMAR","Sólo para uso no comercial","ColombiaNIT:800250062-0","INV_CoralinaSAI2018_MCE","INVEMAR","INVEMARCORALINASAI2018","Biodiversidad de los ecosistemas de coral mesofóticos en San andrés islas 2018","INVEMAR","INV_CoralinaSAI2018_MCE:103","103","Luis Chasqui y Juan David Gonzáles","Ver: Chasqui et al. 2020 (en prep)","Presente",null,"Censo visual","6 inmersiones con rebreather","2018-04-16/2018-04-19","Ecosistema de coral mesofótico","http://marineregions.org/mrgid/48551","SA | Colombia | Archipiélago se San Andrés, Providencia y Santa Catalina","SA","Mar Caribe","Archipiélago de San Andrés, Providencia y Santa Catalina","Isla de San Andrés","Colombia","CO","Archipiélago de San Andrés, Providencia y Santa Catalina","San Andrés",null,"Nirvana",40,50,"Dato in situ usando GPS","Sitio de buceo en el costado occidental de la Isla de San Andrés","12° 30,142' N","81° 44,038' W","Grados, Minutos decimales - GMS","WGS84",12.502359999999999,-81.733959999999996,"WGS84","Luis Chasqui","2018-04-16","http://www.gbif.org/orc/?doc_id=1288",null,"Verificado por el proveedor de datos","Georreferenciado in situ con GPS","Luis Chasqui y Juan David Gonzáles","2018-04-16/2018-04-19","identificado in situ con base en morfología",null,"urn:lsid:marinespecies.org:taxname:301914","Acanthurus tractus ",null,null,null,null,null,null,null,null,null,null,null,null,null,null,null,null,null,null,null,null,null,null,null,null,null,null,null,null,null,null,null,null,null,null,null,null,null,null,"AnimaliaChordataActinopterygiiPerciformesAcanthuridaeAcanthurustractus","Animalia","Chordata","Actinopterygii","Perciformes","Acanthuridae","Acanthurus",null,"tractus","Especie","Poey, 1860","ICZN","Aceptado"]
["INVEMAR:CORALINA:SAI2018:MCE:104","Observación humana","Evento","ES","Creative Commons Attribution Non Commercial (CC-BY-NC) 4.0 License","INVEMAR","Sólo para uso no comercial","ColombiaNIT:800250062-0","INV_CoralinaSAI2018_MCE","INVEMAR","INVEMARCORALINASAI2018","Biodiversidad de los ecosistemas de coral mesofóticos en San andrés islas 2018","INVEMAR","INV_CoralinaSAI2018_MCE:104","104","Luis Chasqui y Juan David Gonzáles","Ver: Chasqui et al. 2020 (en prep)","Presente",null,"Censo visual","6 inmersiones con rebreather","2018-04-16/2018-04-19","Ecosistema de coral mesofótico","http://marineregions.org/mrgid/48551","SA | Colombia | Archipiélago se San Andrés, Providencia y Santa Catalina","SA","Mar Caribe","Archipiélago de San Andrés, Providencia y Santa Catalina","Isla de San Andrés","Colombia","CO","Archipiélago de San Andrés, Providencia y Santa Catalina","San Andrés",null,"Nirvana",50,70,"Dato in situ usando GPS","Sitio de buceo en el costado occidental de la Isla de San Andrés","12° 30,142' N","81° 44,038' W","Grados, Minutos decimales - GMS","WGS84",12.502359999999999,-81.733959999999996,"WGS84","Luis Chasqui","2018-04-16","http://www.gbif.org/orc/?doc_id=1288",null,"Verificado por el proveedor de datos","Georreferenciado in situ con GPS","Luis Chasqui y Juan David Gonzáles","2018-04-16/2018-04-19","identificado in situ con base en morfología",null,"urn:lsid:marinespecies.org:taxname:159231","Mycteroperca bonaci ",null,null,null,null,null,null,null,null,null,null,null,null,null,null,null,null,null,null,null,null,null,null,null,null,null,null,null,null,null,null,null,null,null,null,null,null,null,null,"AnimaliaChordataActinopterygiiPerciformesSerranidaeMycteropercabonaci","Animalia","Chordata","Actinopterygii","Perciformes","Serranidae","Mycteroperca",null,"bonaci","Especie","(Poey, 1860)","ICZN","Aceptado"]
["INVEMAR:CORALINA:SAI2018:MCE:105","Observación humana","Evento","ES","Creative Commons Attribution Non Commercial (CC-BY-NC) 4.0 License","INVEMAR","Sólo para uso no comercial","ColombiaNIT:800250062-0","INV_CoralinaSAI2018_MCE","INVEMAR","INVEMARCORALINASAI2018","Biodiversidad de los ecosistemas de coral mesofóticos en San andrés islas 2018","INVEMAR","INV_CoralinaSAI2018_MCE:105","105","Luis Chasqui y Juan David Gonzáles","Ver: Chasqui et al. 2020 (en prep)","Presente",null,"Censo visual","6 inmersiones con rebreather","2018-04-16/2018-04-19","Ecosistema de coral mesofótico","http://marineregions.org/mrgid/48551","SA | Colombia | Archipiélago se San Andrés, Providencia y Santa Catalina","SA","Mar Caribe","Archipiélago de San Andrés, Providencia y Santa Catalina","Isla de San Andrés","Colombia","CO","Archipiélago de San Andrés, Providencia y Santa Catalina","San Andrés",null,"Nirvana",40,70,"Dato in situ usando GPS","Sitio de buceo en el costado occidental de la Isla de San Andrés","12° 30,142' N","81° 44,038' W","Grados, Minutos decimales - GMS","WGS84",12.502359999999999,-81.733959999999996,"WGS84","Luis Chasqui","2018-04-16","http://www.gbif.org/orc/?doc_id=1288",null,"Verificado por el proveedor de datos","Georreferenciado in situ con GPS","Luis Chasqui y Juan David Gonzáles","2018-04-16/2018-04-19","identificado in situ con base en morfología",null,"urn:lsid:marinespecies.org:taxname:273878","Mycteroperca interstitialis ",null,null,null,null,null,null,null,null,null,null,null,null,null,null,null,null,null,null,null,null,null,null,null,null,null,null,null,null,null,null,null,null,null,null,null,null,null,null,"AnimaliaChordataActinopterygiiPerciformesSerranidaeMycteropercainterstitialis","Animalia","Chordata","Actinopterygii","Perciformes","Serranidae","Mycteroperca",null,"interstitialis","Especie","(Poey, 1860)","ICZN","Aceptado"]
["INVEMAR:CORALINA:SAI2018:MCE:106","Observación humana","Evento","ES","Creative Commons Attribution Non Commercial (CC-BY-NC) 4.0 License","INVEMAR","Sólo para uso no comercial","ColombiaNIT:800250062-0","INV_CoralinaSAI2018_MCE","INVEMAR","INVEMARCORALINASAI2018","Biodiversidad de los ecosistemas de coral mesofóticos en San andrés islas 2018","INVEMAR","INV_CoralinaSAI2018_MCE:106","106","Luis Chasqui y Juan David Gonzáles","Ver: Chasqui et al. 2020 (en prep)","Presente",null,"Censo visual","6 inmersiones con rebreather","2018-04-16/2018-04-19","Ecosistema de coral mesofótico","http://marineregions.org/mrgid/48551","SA | Colombia | Archipiélago se San Andrés, Providencia y Santa Catalina","SA","Mar Caribe","Archipiélago de San Andrés, Providencia y Santa Catalina","Isla de San Andrés","Colombia","CO","Archipiélago de San Andrés, Providencia y Santa Catalina","San Andrés",null,"Nirvana",40,70,"Dato in situ usando GPS","Sitio de buceo en el costado occidental de la Isla de San Andrés","12° 30,142' N","81° 44,038' W","Grados, Minutos decimales - GMS","WGS84",12.502359999999999,-81.733959999999996,"WGS84","Luis Chasqui","2018-04-16","http://www.gbif.org/orc/?doc_id=1288",null,"Verificado por el proveedor de datos","Georreferenciado in situ con GPS","Luis Chasqui y Juan David Gonzáles","2018-04-16/2018-04-19","identificado in situ con base en morfología",null,"urn:lsid:marinespecies.org:taxname:279146","Cephalopholis cruentata ",null,null,null,null,null,null,null,null,null,null,null,null,null,null,null,null,null,null,null,null,null,null,null,null,null,null,null,null,null,null,null,null,null,null,null,null,null,null,"AnimaliaChordataActinopterygiiPerciformesSerranidaeCephalopholiscruentata","Animalia","Chordata","Actinopterygii","Perciformes","Serranidae","Cephalopholis",null,"cruentata","Especie","(Lacepède, 1802)","ICZN","Aceptado"]
["INVEMAR:CORALINA:SAI2018:MCE:107","Observación humana","Evento","ES","Creative Commons Attribution Non Commercial (CC-BY-NC) 4.0 License","INVEMAR","Sólo para uso no comercial","ColombiaNIT:800250062-0","INV_CoralinaSAI2018_MCE","INVEMAR","INVEMARCORALINASAI2018","Biodiversidad de los ecosistemas de coral mesofóticos en San andrés islas 2018","INVEMAR","INV_CoralinaSAI2018_MCE:107","107","Luis Chasqui y Juan David Gonzáles","Ver: Chasqui et al. 2020 (en prep)","Presente",null,"Censo visual","6 inmersiones con rebreather","2018-04-16/2018-04-19","Ecosistema de coral mesofótico","http://marineregions.org/mrgid/48551","SA | Colombia | Archipiélago se San Andrés, Providencia y Santa Catalina","SA","Mar Caribe","Archipiélago de San Andrés, Providencia y Santa Catalina","Isla de San Andrés","Colombia","CO","Archipiélago de San Andrés, Providencia y Santa Catalina","San Andrés",null,"Nirvana",40,50,"Dato in situ usando GPS","Sitio de buceo en el costado occidental de la Isla de San Andrés","12° 30,142' N","81° 44,038' W","Grados, Minutos decimales - GMS","WGS84",12.502359999999999,-81.733959999999996,"WGS84","Luis Chasqui","2018-04-16","http://www.gbif.org/orc/?doc_id=1288",null,"Verificado por el proveedor de datos","Georreferenciado in situ con GPS","Luis Chasqui y Juan David Gonzáles","2018-04-16/2018-04-19","identificado in situ con base en morfología",null,"urn:lsid:marinespecies.org:taxname:281121","Hypoplectrus unicolor",null,null,null,null,null,null,null,null,null,null,null,null,null,null,null,null,null,null,null,null,null,null,null,null,null,null,null,null,null,null,null,null,null,null,null,null,null,null,"AnimaliaChordataActinopterygiiPerciformesSerranidaeHypoplectrusunicolor","Animalia","Chordata","Actinopterygii","Perciformes","Serranidae","Hypoplectrus",null,"unicolor","Especie","(Walbaum, 1792)","ICZN","Aceptado"]
["INVEMAR:CORALINA:SAI2018:MCE:108","Observación humana","Evento","ES","Creative Commons Attribution Non Commercial (CC-BY-NC) 4.0 License","INVEMAR","Sólo para uso no comercial","ColombiaNIT:800250062-0","INV_CoralinaSAI2018_MCE","INVEMAR","INVEMARCORALINASAI2018","Biodiversidad de los ecosistemas de coral mesofóticos en San andrés islas 2018","INVEMAR","INV_CoralinaSAI2018_MCE:108","108","Luis Chasqui y Juan David Gonzáles","Ver: Chasqui et al. 2020 (en prep)","Presente",null,"Censo visual","6 inmersiones con rebreather","2018-04-16/2018-04-19","Ecosistema de coral mesofótico","http://marineregions.org/mrgid/48551","SA | Colombia | Archipiélago se San Andrés, Providencia y Santa Catalina","SA","Mar Caribe","Archipiélago de San Andrés, Providencia y Santa Catalina","Isla de San Andrés","Colombia","CO","Archipiélago de San Andrés, Providencia y Santa Catalina","San Andrés",null,"Nirvana",40,50,"Dato in situ usando GPS","Sitio de buceo en el costado occidental de la Isla de San Andrés","12° 30,142' N","81° 44,038' W","Grados, Minutos decimales - GMS","WGS84",12.502359999999999,-81.733959999999996,"WGS84","Luis Chasqui","2018-04-16","http://www.gbif.org/orc/?doc_id=1288",null,"Verificado por el proveedor de datos","Georreferenciado in situ con GPS","Luis Chasqui y Juan David Gonzáles","2018-04-16/2018-04-19","identificado in situ con base en morfología",null,"urn:lsid:marinespecies.org:taxname:273893","Serranus baldwini ",null,null,null,null,null,null,null,null,null,null,null,null,null,null,null,null,null,null,null,null,null,null,null,null,null,null,null,null,null,null,null,null,null,null,null,null,null,null,"AnimaliaChordataActinopterygiiPerciformesSerranidaeSerranusbaldwini","Animalia","Chordata","Actinopterygii","Perciformes","Serranidae","Serranus",null,"baldwini","Especie","(Evermann & Marsh, 1899)","ICZN","Aceptado"]
["INVEMAR:CORALINA:SAI2018:MCE:109","Observación humana","Evento","ES","Creative Commons Attribution Non Commercial (CC-BY-NC) 4.0 License","INVEMAR","Sólo para uso no comercial","ColombiaNIT:800250062-0","INV_CoralinaSAI2018_MCE","INVEMAR","INVEMARCORALINASAI2018","Biodiversidad de los ecosistemas de coral mesofóticos en San andrés islas 2018","INVEMAR","INV_CoralinaSAI2018_MCE:109","109","Luis Chasqui y Juan David Gonzáles","Ver: Chasqui et al. 2020 (en prep)","Presente",null,"Censo visual","6 inmersiones con rebreather","2018-04-16/2018-04-19","Ecosistema de coral mesofótico","http://marineregions.org/mrgid/48551","SA | Colombia | Archipiélago se San Andrés, Providencia y Santa Catalina","SA","Mar Caribe","Archipiélago de San Andrés, Providencia y Santa Catalina","Isla de San Andrés","Colombia","CO","Archipiélago de San Andrés, Providencia y Santa Catalina","San Andrés",null,"Nirvana",40,50,"Dato in situ usando GPS","Sitio de buceo en el costado occidental de la Isla de San Andrés","12° 30,142' N","81° 44,038' W","Grados, Minutos decimales - GMS","WGS84",12.502359999999999,-81.733959999999996,"WGS84","Luis Chasqui","2018-04-16","http://www.gbif.org/orc/?doc_id=1288",null,"Verificado por el proveedor de datos","Georreferenciado in situ con GPS","Luis Chasqui y Juan David Gonzáles","2018-04-16/2018-04-19","identificado in situ con base en morfología",null,"urn:lsid:marinespecies.org:taxname:273909","Serranus tigrinus ",null,null,null,null,null,null,null,null,null,null,null,null,null,null,null,null,null,null,null,null,null,null,null,null,null,null,null,null,null,null,null,null,null,null,null,null,null,null,"AnimaliaChordataActinopterygiiPerciformesSerranidaeSerranustigrinus","Animalia","Chordata","Actinopterygii","Perciformes","Serranidae","Serranus",null,"tigrinus","Especie","(Bloch, 1790)","ICZN","Aceptado"]
["INVEMAR:CORALINA:SAI2018:MCE:110","Observación humana","Evento","ES","Creative Commons Attribution Non Commercial (CC-BY-NC) 4.0 License","INVEMAR","Sólo para uso no comercial","ColombiaNIT:800250062-0","INV_CoralinaSAI2018_MCE","INVEMAR","INVEMARCORALINASAI2018","Biodiversidad de los ecosistemas de coral mesofóticos en San andrés islas 2018","INVEMAR","INV_CoralinaSAI2018_MCE:110","110","Luis Chasqui y Juan David Gonzáles","Ver: Chasqui et al. 2020 (en prep)","Presente",null,"Censo visual","6 inmersiones con rebreather","2018-04-16/2018-04-19","Ecosistema de coral mesofótico","http://marineregions.org/mrgid/48551","SA | Colombia | Archipiélago se San Andrés, Providencia y Santa Catalina","SA","Mar Caribe","Archipiélago de San Andrés, Providencia y Santa Catalina","Isla de San Andrés","Colombia","CO","Archipiélago de San Andrés, Providencia y Santa Catalina","San Andrés",null,"Nirvana",40,70,"Dato in situ usando GPS","Sitio de buceo en el costado occidental de la Isla de San Andrés","12° 30,142' N","81° 44,038' W","Grados, Minutos decimales - GMS","WGS84",12.502359999999999,-81.733959999999996,"WGS84","Luis Chasqui","2018-04-16","http://www.gbif.org/orc/?doc_id=1288",null,"Verificado por el proveedor de datos","Georreferenciado in situ con GPS","Luis Chasqui y Juan David Gonzáles","2018-04-16/2018-04-19","identificado in situ con base en morfología",null,"urn:lsid:marinespecies.org:taxname:159559","Pterois volitans",null,null,null,null,null,null,null,null,null,null,null,null,null,null,null,null,null,null,null,null,null,null,null,null,null,null,null,null,null,null,null,null,null,null,null,null,null,null,"AnimaliaChordataActinopterygiiScorpaeniformesScorpaenidaePteroisvolitans","Animalia","Chordata","Actinopterygii","Scorpaeniformes","Scorpaenidae","Pterois",null,"volitans","Especie","(Linnaeus, 1758)","ICZN","Aceptado"]

{"sheet":"Clave Taxomonica ","index":1,"n_rows":3,"n_cols":3,"rows_kept":3,"cut":false,"hidden":false,"merged":[]}
[null,null,"DOCUMENTACION CLAVES TAXONOMICAS EMPLEADAS"]
[]
[null,"McGill et al., 2007","Mcgill, B.J., R.S. Etienne, J.S. Gray., D. Alonso, M.J. Anderson, H.K. Benecha, M. Dornelas, B. J. Enquist, J.L. Green, A.H. Hurlbert, A.E. Magurran, P.A. Marquet, B.A. Maurer, A. Ostling,  C.U. Soykan, K.I. Ugland y E.P. White., 2007. Species abundance distributions: moving beyond single prediction theories to integration within an ecological framework. Ecology Letters, 10: 995–1015."]

{"sheet":"Definiciones","index":2,"n_rows":320,"n_cols":6,"rows_kept":320,"cut":false,"hidden":false,"merged":[]}
[]
[null,null,"Definiciones"]
[]
[null,"REGISTRO\n BIOLÓGICO","ID del registro \nbiológico","Es un identificador del registro biológico (observación, evento, etc.). En ausencia de un identificador único global persistente, se recomienda construir uno a partir de la combinación de [código de la institución] : [código de la  colección] : [número de catálogo]\n\nEjemplos: \"urn:lsid:nhm.ku.edu:Herps:32\", \"2005:FMNH:Mammal:145732\"","«"]
[]
[null,"ELEMENTOS DE\n REGISTRO","Base del \nregistro","Es la naturaleza específica del dato del registro, un subtipo del Tipo. Se recomienda el uso del vocabulario controlado disponible para este elemento\n\nEjemplos: \"Espécimen Preservado\", \"Espécimen Fósil\", \"Espécimen Vivo\", \"Observación Humana\"\n","«","α"]
[]
[null,"ELEMENTOS DE\n REGISTRO","Código de \nla institución","El nombre (o acrónimo) en uso por la institución que tenga la custodia del espécimen o de la información mencionada en el registro\n\nEjemplo: \"IAVH\", \"Ministerio de Ambiente y Desarrollo Sostenible (MADS)\", \"SDA\"","«"]
[]
[null,"ELEMENTOS DE\n REGISTRO","Código de \nla colección","Es el nombre, acrónimo, código alfanumérico, o iniciales que identifican la colección o conjunto de datos del que procede el registro dentro de la institución\n\nEjemplos: \"COL\", \"ANDES\", \"FMB\", \"Mamíferos\", \"eBird\"","«"]
[]
[null,"REGISTRO\n BIOLÓGICO","Número \nde catálogo","Es un identificador para el registro dentro del conjunto de datos o colección. Puede ser un número de catálogo como tal o en el caso de no se trate de ejemplares de colección un identificador único numérico o alfanumérico dentro del conjunto de datos\n\nEjemplos: \"2008.1334\", \"145732a\", \"145732\", \"COL5033\"","«"]
[]
[null,"ELEMENTOS DE\n REGISTRO","Tipo","La naturaleza o género del recurso. Se recomienda el uso del vocabulario controlado disponible para este elemento\n\nEjemplos: \"Imagen estática\", \"Imagen en movimiento\", \"Sonido\", \"Objeto físico\", \"Evento\"","«","α"]
[]
[null,"ELEMENTOS DE\n REGISTRO","Modificado","La fecha más reciente en la que se haya cambiado el recurso. La práctica recomendada es utilizar la norma ISO 8601\n\nEjemplo: AAAA-MM-DD","«"]
[]
[null,"ELEMENTOS DE\n REGISTRO","Idioma","El idioma del recurso. La práctica recomendada es el uso de un lenguaje controlado, como la norma ISO 639-1\n\nEjemplos: \"en\" para el idioma inglés, \"es\" para el idioma español","«"]
[]
[null,"ELEMENTOS DE\n REGISTRO","Derechos","Información acerca de los derechos sobre el recurso. Generalmente, la información de derechos incluye una declaración sobre los distintos derechos de propiedad asociados con el recurso, incluidos los derechos de propiedad intelectual\n\nEjemplo: “http://creativecommons.org/licenses/by-sa/3.0/deed.es_ES”, \"Contenido licenciado bajo Creative Commons Attribution 3.0\"","«"]
[]
[null,"ELEMENTOS DE\n REGISTRO","Titular de los \nderechos","Una persona u organización propietaria o administradora de los derechos sobre el recurso\n\nEjemplo: \"Secretaria de Agricultura\", \"Ministerio de Medio Ambiente\"","«"]
[]
[null,"ELEMENTOS DE\n REGISTRO","Derechos \nde acceso","Información acerca de quién puede acceder al recurso, o una indicación de su estado de seguridad. Los Derechos de acceso pueden incluir información acerca del acceso, o restricciones basadas en políticas de privacidad, seguridad, u otras\n\nEjemplo: \"Sólo para uso no comercial\"","«"]
[]
[null,"ELEMENTOS DE\n REGISTRO","Citación \nbibliográfica","Una referencia bibliográfica para el recurso que indique la manera en que el registro debería citarse cuando sea utilizado. La práctica recomendada es incluir suficientes detalles bibliográficos para identificar el recurso tan claramente como sea posible\n\nEjemplos: \"Ctenomys sociabilis (MVZ 165861)\" para un espécimen. \"Oliver P. Pearson. 1985. Los tuco-tucos (género Ctenomys) de los Parques Nacionales Lanin y Nahuel Huapi, Argentina Historia Natural, 5(37):337-343.\" para un taxón","«"]
[]
[null,"ELEMENTOS DE\n REGISTRO","Referencias","Una URL a un recurso asociado, el cual es de alguna forma referenciado o citado por el recurso descrito. Frecuentemente es una pagina web mostrando lo mismo, pero en un formato visual mas elaborado\n\nEjemplos: \"http://mvzarctos.berkeley.edu/guid/MVZ:Mamm:165861\", \"http://www.catalogueoflife.org/show_species_details.php?record_id=6197868\"","«"]
[]
[null,"ELEMENTOS DE\n REGISTRO","ID de la \ninstitución","Un identificador de la institución que custodia el espécimen o información mencionada en el registro. La práctica recomendada es incluir el NIT de la institución\n\nEjemplo: “586.697.465-1”","«"]
[]
[null,"ELEMENTOS DE\n REGISTRO","ID de \nla colección","Un identificador de la colección o conjunto de datos del que procede el registro. Para especímenes, la práctica recomendada es utilizar el identificador de un índice de colección tal como el Índice de Colecciones de Biodiversidad (http://www.biodiversitycollectionsindex.org/)\n\nEjemplo: \"urn:lsid:biocol.org:col:34818\"","«"]
[]
[null,"ELEMENTOS DE\n REGISTRO","ID del conjunto \nde datos","Un identificador para el conjunto de datos. Puede ser un identificador único global o un identificador específico de una colección o institución\n\nEjemplo: \"AVES-AMNH\"","«"]
[]
[null,"ELEMENTOS DE\n REGISTRO","Nombre del \nconjunto de datos","El nombre que identifica el conjunto de datos del cual se derivó el registro\n\nEjemplo: “Muestreo de Mamíferos de la Cuenca”","«"]
[]
[null,"ELEMENTOS DE\n REGISTRO","Código de la \ninstitución propietaria","El nombre (o acrónimo) en uso por la institución que tiene la propiedad del objeto(s) o de la información consignada en el registro\n\nEjemplos: \"NPS\", \"APN\", \"InBio\"","«"]
[]
[null,"ELEMENTOS DE\n REGISTRO","Información \nretenida","Información adicional que existe, pero que no ha sido compartida en el registro dado\n\nEjemplos: \"La ubicación no es provista para especies amenazadas\", \"La identidad de los colectores es retenida\", \"Pregunte acerca de muestras de tejido\"","«"]
[]
[null,"ELEMENTOS DE\n REGISTRO","Generalización \nde los datos","Las medidas adoptadas para que los datos compartidos sean menos específicos o completos que en su forma original. Sugiere que datos alternativos de mayor calidad pueden estar disponibles bajo petición\n\nEjemplo: \"Coordenadas generalizadas a partir de las coordenadas originales del GPS a la celda más cercana de la grilla\"","«"]
[]
[null,"ELEMENTOS DE\n REGISTRO","Propiedades \ndinámicas","Una lista (en una fila continua y separada por \";\") de las medidas, hechos, características, o aseveraciones adicionales sobre el registro. Su intención es proporcionar un mecanismo para contenido estructurado como representación de los datos\n\nEjemplos: \"peso en gramos =120\", \"altura en metros =1,5\", \"naturaleza del ID =identificación de experto; \"evidencia de la identificación=secuencia de citocromo B\", \"humedad relativa =28; temperatura del aire en grados ºC=22; tamaño de la muestra en kilogramos=10\", \"estado según UICN=vulnerable\"","«"]
[]
[null,"REGISTRO\n BIOLÓGICO","Comentarios del\n registro biológico","Comentarios o anotaciones sobre el Registro biológico\n\nEjemplo: \"Muerto en la vía\"","«"]
[]
[null,"REGISTRO\n BIOLÓGICO","Número de registro","Es equivalente al numero de colector, un identificador dado al registro biológico en el momento en que fue registrado, sirve como un vínculo entre las anotaciones de campo y la elaboración del registro. La misma idea aplica para una observación o muestreo en campo. No es el mismo Número de catalogo, el cual es usualmente asignado una vez el espécimen ingresa a la colección\n\nEjemplo: \"OPP 7101\"","«"]
[]
[null,"REGISTRO\n BIOLÓGICO","Registrado por","Una lista (en una fila continua y separada por \";\") de los nombres de las personas, grupos u organizaciones responsables de realizar el registro, observadores o recolectores. El colector u observador principal, especialmente si aplica un identificador personal (Número del registro), se debe listar en primer lugar\n\nEjemplos: \"Oliver P. Pearson; Anita K. Pearson\" donde el valor en Número del Registro \"OPP 7101\" corresponde al número para el espécimen en el catálogo de campo (número de colector) de Oliver P. Pearson","«"]
[]
[null,"REGISTRO\n BIOLÓGICO","ID del individuo","Es el ID para identificar cualquier individuo o grupo de individuos.  Aves anilladas, fotos de mamíferos acuáticos, arboles remuestreados, biopsias periódicas, etc. Pretende facilitar el remuestreo del mismo individuo o grupo con fines de monitoreo\n\nEjemplos: \"U.amer. 44\", \"Smedley\", \"Orca J 23\"\n\n\nEjemplos: \"U.amer. 44\", \"Smedley\", \"Orca J 23\"","«"]
[]
[null,"REGISTRO\n BIOLÓGICO","Número \nde individuos","El número de individuos representados presente en el momento del Registro Biológico\n\nEjemplos: \"1\", \"25\"","«"]
[]
[null,"REGISTRO\n BIOLÓGICO","Sexo","El sexo de la(s) entidad(es) biológica(s) representada(s) en el Registro biológico. Se recomienda el uso del vocabulario disponible para este elemento \n\nEjemplos: \"hembra\", \"hermafrodita\", \"8 machos, 4 hembras\".","«","α"]
[]
[null,"REGISTRO\n BIOLÓGICO","Etapa de vida","La edad o etapa de vida de la(s) entidad(es) biológica(s) en el momento del Registro biológico. Se recomienda el uso de un vocabulario controlado. Se recomienda el uso del vocabulario disponible para este elemento \n\nEjemplos: \"Huevo\", \"Juvenil\", \"Adulto\", \"2 adultos 4 juveniles\"","«","α"]
[]
[null,"REGISTRO\n BIOLÓGICO","Condición \nreproductiva","La condición reproductiva de la(s) entidad(es) biológica(s) representada(s) en el Registro biológico. Se recomienda el uso de un vocabulario controlado\n\nEjemplos: \"No reproductiva\", \"En gestación\", \"Floración\", \"Fructificación\"","«"]
[]
[null,"REGISTRO\n BIOLÓGICO","Comportamiento","Una descripción del comportamiento mostrado por el sujeto en el momento del Registro biológico. Se recomienda el uso de un vocabulario controlado\n\nEjemplos: \"Posando\", \"Alimentándose\", \"Corriendo\"","«"]
[]
[null,"REGISTRO\n BIOLÓGICO","Medios de \nestablecimiento","El proceso por el cual el individuo(s) se estableció en el lugar. Se recomienda el uso de un vocabulario controlado\n\nEjemplos: \"Cultivado\", \"Invasor\", \"Fugado de cautiverio\", \"Silvestre\", \"Nativo\"","«"]
[]
[null,"REGISTRO\n BIOLÓGICO","Estado del \nregistro biológico","Un estado sobre la presencia o ausencia de un taxón en una ubicación. Use solo \"Presente\" o \"Ausente\" como posibles valores para registros biológicos. Se recomienda el uso del vocabulario controlado disponible para este elemento\n\nEjemplos: \"Presente\", \"Ausente\"","«","α"]
[]
[null,"REGISTRO\n BIOLÓGICO","Preparaciones","Una lista (en una fila continua y separada por \";\") de las preparaciones y los métodos de conservación de un ejemplar o una muestra del ejemplar\n\nEjemplos: \"Piel; Cráneo; Esqueleto\", \"Animal completo (ETOH); Tejido (EDTA)\", \"Fósil\", \"Molde\", \"Fotografía\", \"Extracción de ADN\"","«"]
[]
[null,"REGISTRO\n BIOLÓGICO","Disposición","El estado actual de un espécimen en relación a la colección identificada en Código de la colección o ID de la Colección. Se recomienda el uso de un vocabulario controlado\n\nEjemplos: \"En colección\", \"Extraviado\", \"Ejemplar testigo\", \"Duplicados en otro lugar\"","«"]
[]
[null,"REGISTRO\n BIOLÓGICO","Otros números \nde catálogo","Una lista (en una fila continua y separada por \";\") de números de catálogos anteriores o alternos, u otros identificadores usado por personas para el mismo Registro biológico, ya sea en el actual o cualquier otro conjunto de datos o colección\n\nEjemplos: \"FMNH:Mammal:1234\", \"NPS YELLO6778; MBG 33424\"","«"]
[]
[null,"REGISTRO\n BIOLÓGICO","Identificaciones \nprevias","Una lista (en una fila continua y separada por \";\") de asignaciones anteriores de nombres al Registro biológico\n\nEjemplos: \"Anthus sp., identificado en campo por G. Iglesias; Anthus correndera, Identificado por el experto C. Cicero 2009-02-12 basado en morfología\"","«"]
[]
[null,"REGISTRO\n BIOLÓGICO","Medios asociados","Una lista (en una fila continua y separada por \";\") de identificadores (publicación, identificador único global, URI) de los medios asociados con el Registro biológico\n\nEjemplos: \"http://arctos.database.museum; http://siac.net.co/catalogo\"","«"]
[]
[null,"REGISTRO\n BIOLÓGICO","Referencias \nasociadas","Una lista (en una fila continua y separada por \";\") de los identificadores (publicación, referencia bibliográfica, identificador único global, URI) de la literatura asociada con el Registro biológico.\n\nEjemplos: \"http://www.sciencemag.org/cgi/content/abstract/322/5899/261\", \"Christopher J. Conroy, Jennifer L. Neuwald. 2008. Phylogeographic study of the California vole, Microtus californicus Journal of Mammalogy, 89(3):755-767.\"","«"]
[]
[null,"REGISTRO\n BIOLÓGICO","Registros \nbiológicos asociados","Una lista (en una fila continua y separada por \";\") de los identificadores de otros registros biológicos y su relación con este Registro Biológico\n\nEjemplos: \"hermano de FMNH:Mamífero:1234;hermano de FMNH:Mamífero:1235\"","«"]
[]
[null,"REGISTRO\n BIOLÓGICO","Secuencias \nasociadas","Una lista (en una fila continua y separada por \";\") de los identificadores (publicación, identificador único global, URI) de la información de la secuencia genética asociada con el Registro biológico\n\nEjemplos: \"GenBank: U34853.1\", \"AB425960;AB425963;DQ286547\"","«"]
[]
[null,"REGISTRO\n BIOLÓGICO","Taxones asociados","Una lista (en una fila continua y separada por \";\") de los identificadores o nombres de taxones y su asociación con el Registro biológico\n\nEjemplos: \"Huésped: Quercus alba; Parásito: Apis mellifera\".","«"]
[]
[null,"EVENTO","ID del evento","Un identificador para el conjunto de información asociado con el Evento (algo que ocurre en un lugar y tiempo). Puede ser un identificador único global o un identificador específico para el conjunto de datos.","«"]
[]
[null,"EVENTO","Protocolo \nde muestreo","El nombre de, la referencia a, o la descripción del método o protocolo usado durante el Evento.\n\nEjemplos: \"Trampa de luz UV\", \"Red de niebla\", “Arrastre de fondo”, \"Observación ad hoc\", \"Punto de conteo\"","«"]
[]
[null,"EVENTO","Esfuerzo \nde muestreo","La cantidad de esfuerzo realizado durante el Evento\n\nEjemplos: \"40 trampas nocturnas\", \"10 horas de observador; 10 km caminando; 30 km en carro\"","«"]
[]
[null,"EVENTO","Fecha del evento","La fecha o el intervalo durante el cual se produjo el Evento. Para los registros biológicos, esta es la fecha cuando el evento se registró. No es adecuado para una fecha en un contexto geológico. Se recomienda utilizar un esquema de codificación, como el ISO 8601 (AAAA-MM-DD o para un intervalo de fechas: AAAA-MM-DD/AAAA-MM-DD)\n\nEjemplo: \"1963-03-08\" es 8 de marzo de 1963, \"1906-06\" es junio de 1906, \"1971\" es justo ese año, \"2007-03-01/2008-05-11\" es el intervalo entre el 1 de marzo de 2007 y 11 de mayo de 2008, \"2007-11-13/15\" es el intervalo entre el 13 de noviembre de 2007 y 15 de noviembre de 2007","«"]
[]
[null,"EVENTO","Hora del evento","El tiempo o intervalo durante el cual se produjo el Evento. Se recomienda utilizar un esquema de codificación, como el ISO 8601\n\nEjemplos: \"14:07\" es 2:07pm, \"08:40:21\" es 8:40:21am, \"13:00:00/15:30:00\" es el intervalo entre 1pm y 3:30pm","«"]
[]
[null,"EVENTO","Día inicial del año","El primer día ordinal del año en que ocurrió el Evento (1 para el 1 de enero, 365 para el 31 de diciembre, excepto en un año bisiesto, en cuyo caso es 366)\n\nEjemplos: \"1\" (=1 ene), \"365\" (=31 dic), \"365\" (=30 dic en año bisiesto, 31 dic en un año no bisiesto)","«"]
[]
[null,"EVENTO","Día final del año","El último día ordinal del año en que ocurrió el Evento (1 para el 1º de enero, 365 para el 31 de diciembre, excepto en un año bisiesto, en cuyo caso es 366)\n\nEjemplos: \"1\" (=1 enero), \"365\" (=31 diciembre), \"366\" (=31 diciembre en año bisiesto)","«"]
[]
[null,"EVENTO","Año","Los cuatro dígitos del año en que el Evento ocurrió, de acuerdo al Calendario de la Era Común\n\nEjemplo: \"2008\"","«"]
[]
[null,"EVENTO","Mes","El mes ordinal en que ocurrió el evento\n\nEjemplos: \"1\" (=enero), \"10\" (=octubre)","«"]
[]
[null,"EVENTO","Día","El día en números enteros, del mes en que ocurrió el evento\n\nEjemplo: \"9\", \"28\"","«"]
[]
[null,"EVENTO","Fecha original \ndel evento","La representación textual original de la información de fecha para el Evento\n\nEjemplos: \"primavera 1910\", \"marzo 2002\", \"1999-03-XX\", \"17IV1934\"","«"]
[]
[null,"EVENTO","Hábitat","Una categoría o la descripción del hábitat en el que ocurrió el Evento\n\nEjemplos: \"Sabana de roble\", \"Estepa de la pre-cordillera\"","«"]
[]
[null,"EVENTO","Número de campo","Un identificador dado al evento en campo. A menudo sirve como un vínculo entre las anotaciones de campo y el evento\n\nEjemplo: \"RV Sol 87-03-08\"","«"]
[]
[null,"EVENTO","Notas de campo","Puede corresponder a: a) un indicador de la existencia de las notas, b) una referencia a (publicación, URI) las notas, o c) el texto de las notas tomadas en campo sobre el evento\n\nEjemplo: \"notas disponibles en la Biblioteca Grinnell-Miller\"","«"]
[]
[null,"EVENTO","Comentarios \ndel evento","Comentarios o anotaciones sobre el Evento\n\nEjemplo: \"Después de las lluvias recientes, el río estuvo cercano a un estado de desbordamiento\"","«"]
[]
[null,"UBICACIÓN","ID de la ubicación","Un identificador para el conjunto de información de la ubicación (los datos asociados a Ubicación). Se sugiere utilizar el código de la División Política Administrativa de Colombia - DANE,  (http://www.dane.gov.co/Divipola) precedida por \"CO:\"\n\nEjemplo: para el municipio de Puerto Boyacá en Boyacá el ID es \"CO:15572\"","«"]
[]
[null,"UBICACIÓN","ID de la \ngeografía superior","Un identificador de la región geográfica de la ubicación. Se recomienda utilizar un identificador persistente de un vocabulario controlado como el Tesauro Getty de Nombres Geográficos\n\nEjemplo: \"TGN: 7005075\" para San Agustín (Huila), Colombia","«"]
[]
[null,"UBICACIÓN","Geografía superior","información acerca de las características geográficas que no están incluidas en los términos estándar, así como los datos originales (sin estructurar) de esos términos. Se recomienda hacer una fila continua y separada por \";\".\n\nEjemplo: \"América; Sudamérica; Argentina; Región Sur; Patagonia; Parque Nacional Nahuel Huapi; Neuquén; Los Lagos\" con los valores resultantes de \"Sudamérica\" en Continente, \"Argentina\" en País, \"Neuquén\" en Departamento, y “Los Lagos” en Municipio","«"]
[]
[null,"UBICACIÓN","Continente","El nombre del continente en el que tiene lugar la ubicación. Se recomienda el uso del vocabulario controlado disponible para este elemento\n\nEjemplos: \"SA\" para Sur América, “NA” para Norte América","«","α"]
[]
[null,"UBICACIÓN","Cuerpo de agua","El nombre y tipo del cuerpo de agua en el que tiene lugar la ubicación. Se recomienda usar este campo si el evento ocurrió en el cuerpo de agua propiamente dicho, no en cercanías de este\n\nEjemplos: \"Rio Lebrija\", \"Golfo de Urabá\", \"Caño Mojana\"","«"]
[]
[null,"UBICACIÓN","Grupo de islas","El nombre del grupo de islas en que tiene lugar la ubicación\n\nEjemplo: \"Cayos de Albuquerque \"","«"]
[]
[null,"UBICACIÓN","Isla","El nombre de la isla en o cerca al lugar de la ubicación\n\nEjemplo: \"Isla de Providencia\"","«"]
[]
[null,"UBICACIÓN","País","El nombre del país o unidad administrativa de mayor jerarquía de la ubicación. Se recomienda utilizar un identificador persistente de un vocabulario controlado como el Tesauro Getty de Nombres Geográficos o la norma ISO 3166\n\nEjemplos: \"Dinamarca\", \"Colombia\", \"España\"","«"]
[]
[null,"UBICACIÓN","Código del país","El código estándar para el país de la ubicación. Se recomienda el uso de la norma ISO 3166-1-alfa-2 de códigos de países\n\nEjemplos: \"AR\" para Argentina, \"CO\" para Colombia","«"]
[]
[null,"UBICACIÓN","Departamento","El nombre de la siguiente región administrativa de menor jerarquía que País (departamento) de la ubicación. Se recomienda usar  los nombres asignados en la División Política Administrativa de Colombia - DANE,  (http://www.dane.gov.co/Divipola) \n\nEjemplos: \"Antioquia\", \"Atlántico\", \"Chocó\"","«"]
[]
[null,"UBICACIÓN","Municipio","El nombre completo, sin abreviar de la siguiente región administrativa de menor jerarquía que Departamento de la ubicación (Municipio). Se recomienda usar  los nombres asignados en la División Política Administrativa de Colombia - DANE,  (http://www.dane.gov.co/Divipola) \n\nEjemplos: \"Medellín\", \"Apartadó\", \"Anolaima\"","«"]
[]
[null,"UBICACIÓN","Centro poblado \n/Cabecera municipal","El nombre completo, sin abreviar de la siguiente región administrativa de menor jerarquía que Municipio de la ubicación. No utilice este elemento para el nombre de un lugar cercano que no contiene la ubicación real. Puede ser un centro poblado, cabecera municipal, corregimiento o inspección de policía. Se recomienda usar  los nombres asignados en la División Política Administrativa de Colombia - DANE,  (http://www.dane.gov.co/Divipola) \n\nEjemplos: \"Patio Bonito\", \"Puerto Girón\", \"El Reposo\"","«"]
[]
[null,"UBICACIÓN","Localidad","La descripción específica del lugar. Información geográfica de menor especificidad puede ser provista en otros elementos geográficos (Geografía Superior, Continente, País, Departamento, Municipio, Centro poblado/Cabecera municipal, Cuerpo de Agua, Isla, Grupo Islas). Este elemento puede contener información modificada de la original para corregir errores o estandarizar la descripción\n\nEjemplos: \"kilometro 25 ruta del sol (=Ruta 237)\", \"finca los Arrayanes\"","«"]
[]
[null,"UBICACIÓN","Localidad original","La descripción textual original (como fue tomada) del lugar\n\nEjemplo: \"25 km Puerto Boyacá  por R. Sol 237\"","«"]
[]
[null,"UBICACIÓN","Elevación original","La descripción textual de la elevación (altitud, por lo general por encima del nivel del mar) de la Ubicación\n\nEjemplo: \"100-200 m\"","«"]
[]
[null,"UBICACIÓN","Elevación \nmínima en metros","El límite inferior del rango de elevación (altitud, generalmente por encima del nivel del mar), no utilice ningún indicador de unidad (metros, m) ya que el campo especifica que los valores anotados son en metros\n\nEjemplo: \"100\" ","«"]
[]
[null,"UBICACIÓN","Elevación \nmáxima en metros","El límite superior del rango de elevación (altitud, generalmente por encima del nivel del mar), no utilice ningún indicador de unidad (metros, m) ya que el campo especifica que los valores anotados son en metros\n\nEjemplo: \"200\"","«"]
[]
[null,"UBICACIÓN","Profundidad original","La descripción textual de la profundidad bajo la superficie local\n\nEjemplo: \"100-200 m\"","«"]
[]
[null,"UBICACIÓN","Profundidad \nmínima en metros","La menor profundidad de un rango de profundidad, no utilice ningún indicador de unidad (metros, m) ya que el campo especifica que los valores anotados son en metros\n\nEjemplo: \"100\"","«"]
[]
[null,"UBICACIÓN","Profundidad máxima\n en metros","La mayor profundidad de un rango de profundidad, no utilice ningún indicador de unidad (metros, m) ya que el campo especifica que los valores anotados son en metros\n\nEjemplo: \"200\"","«"]
[]
[null,"UBICACIÓN","Distancia mínima de la superficie metros","La menor distancia en metros, en un rango de distancia desde una superficie de referencia en dirección vertical. Utilice valores positivos para las ubicaciones por encima de la superficie, valores negativos para ubicaciones por debajo. Si las medidas de profundidad son proporcionadas, la superficie de referencia es la ubicación determinada por la profundidad, de lo contrario la superficie de referencia es la ubicación dada por la elevación\n\nEjemplo: Para un evento entre 1.5 metros y 4.5 metros desde el fondo de un lago \"-1.5\"","«"]
[]
[null,"UBICACIÓN","Distancia máxima \nde la superficie metros","La mayor distancia en metros, en un rango de distancia desde una superficie de referencia en dirección vertical. Utilice valores positivos para las ubicaciones por encima de la superficie, valores negativos para las ubicaciones por debajo. Si las medidas de profundidad son proporcionadas, la superficie de referencia es la ubicación determinada por la profundidad, de lo contrario la superficie de referencia es la ubicación dada por la elevación\n\nEjemplo: Para un evento entre 1.5 metros y 4.5 metros desde el fondo de un lago \"-4.5\"","«"]
[]
[null,"UBICACIÓN","Ubicación \nde acuerdo con","La información sobre la fuente de la ubicación. Podría ser una publicación (gacetero), institución o grupo de individuos\n\nEjemplos: \"Tesauro Getty de Nombres Geográficos\", \"GADM\"","«"]
[]
[null,"UBICACIÓN","Comentarios \nde la ubicación","Comentarios o anotaciones sobre la ubicación\n\nEjemplo: \"Bajo agua desde 2005\"","«"]
[]
[null,"UBICACIÓN","Coordenadas originales","Las coordenadas espaciales textuales de la ubicación en su formato original. El elipsoide de las coordenadas, el datum geodésico, o el sistema de referencia espacial completo (SRS) para estas coordenadas, debe ser documentado en SRS original, y el sistema de coordenadas en Sistema original de coordenadas\n\nEjemplos: \"41 05 54S 121 05 34W\", \"17T 630000 4833400\"","«"]
[]
[null,"UBICACIÓN","Latitud original","La latitud textual de la ubicación. El elipsoide de coordenadas, el datum geodésico o el sistema de referencia espacial completo (SRS) para estas coordenadas debe ser documentado en SRS original, y el sistema de coordenadas en Sistema original de coordenadas\n\nEjemplo: \"41 05 56.03S\"","«"]
[]
[null,"UBICACIÓN","Longitud original","La longitud textual de la ubicación. El elipsoide de coordinadas, datum geodésico o el sistema de referencia espacial completo (SRS) para estas coordenadas, debe ser documentado en SRS Original y el sistema de coordenadas en Sistema original de coordenadas\n\nEjemplo: \"121d 10' 34\" W\"","«"]
[]
[null,"UBICACIÓN","Sistema original de coordenadas","El sistema de coordenadas espaciales para Latitud original y Longitud original o Coordenadas originales de la ubicación. Se recomienda el uso del vocabulario controlado disponible para este elemento\n\nEjemplos: \"grados decimales\", \"grados minutos decimales\", \"grados minutos segundos\", \"UTM\"","«","α"]
[]
[null,"UBICACIÓN","SRS original","El elipsoide, datum geodésico, o sistema de referencia espacial (SRS) en el que se basan las coordenadas provistas en Latitud original y Longitud original o Coordenadas originales. Se recomienda usar el código EPSG, si se conoce. Caso contrario, utilice un lenguaje controlado para el nombre o código del datum geodésico, o un vocabulario controlado para el nombre o código del elipsoide, si se conoce. Si ninguno de estos se conoce, utilice el valor \"desconocido\"\n\nEjemplos: \"EPSG:4326\", \"WGS84\", \"NAD27\", \"Campo Inchauspe\", \"European 1950\", \"Clarke 1866\"","«"]
[]
[null,"UBICACIÓN","Latitud decimal","La latitud geográfica (en grados decimales, utilizando el sistema de referencia espacial provisto en Datum geodésico) del centro geográfico de una ubicación. Los valores positivos se encuentran al norte del ecuador, los valores negativos están al sur del mismo. Los valores admitidos se encuentran entre -90 y 90\n\nEjemplo: \"-4.0983\"","«"]
[]
[null,"UBICACIÓN","Longitud decimal","La longitud geográfica (en grados decimales, mediante el sistema de referencia espacial provisto en Datum geodésico) del centro geográfico de una ubicación. Los valores positivos se encuentran al este del meridiano de Greenwich, los valores negativos se encuentran al oeste de la misma. Los valores admitidos se encuentran entre -180 y 180\n\nEjemplo: \"12.1761\"","«"]
[]
[null,"UBICACIÓN","Datum geodésico","El elipsoide, datum geodésico, o sistema de referencia espacial (SRS) en el que se basan las coordenadas geográficas provistas en Latitud decimal y Longitud decimal. Se recomienda usar el código EPSG, si se conoce. Caso contrario, utilice un lenguaje controlado para el nombre o código del datum geodésico, o utilice un lenguaje controlado para el nombre o código del elipsoide, si se conoce. Si ninguno de estos se conoce, utilice el valor \"desconocido\"\n\nEjemplos: \"EPSG:4326\", \"WGS84\", \"NAD27\", \"Campo Inchauspe\", \"European 1950\", \"Clarke 1866\"","«"]
[]
[null,"UBICACIÓN","Incertidumbre de las coordenadas en metros","La distancia horizontal (en metros) de la Latitud decimal y Longitud decimal provistas describiendo el círculo más pequeño que contiene la totalidad de la ubicación. Deje el valor vacío si la incertidumbre es desconocida, no se puede estimar, o no es aplicable (porque no hay coordenadas). Cero no es un valor válido para este elemento\n\nEjemplos: \"30\", \"71\"","«"]
[]
[null,"UBICACIÓN","Precisión de \nlas coordenadas","Una representación decimal de la precisión de las coordenadas provistas en Latitud decimal y Longitud decimal\n\nEjemplos: \"0.00001\" (es límite normal de GPS para grados decimales), \"0.000278\" (es el segundo más próximo)","«"]
[]
[null,"UBICACIÓN","Ajuste espacial \ndel radio-punto","La relación entre el área del radio-punto (Latitud decimal, Longitud decimal e Incertidumbre de las coordenadas en metros) y el área de la verdadera (original, o más específica) representación espacial de la ubicación. Los valores válidos son 0, mayor que o igual a 1, o indefinido. Un valor de 1 es una coincidencia exacta o superposición de 100%. Un valor de 0 se debe utilizar si el radio-punto dado no contiene por completo la representación original. El Ajuste espacial del radio-punto no está definido (y se debe dejar en blanco) si la representación original es un punto sin incertidumbre y la georreferencia dada no es ese mismo punto (sin incertidumbre). Si tanto el original como la georreferencia dada están en el mismo punto, el Ajuste espacial del radio-punto es 1","«"]
[]
[null,"UBICACIÓN","WKT footprint","Una representación Well-Known Text (WKT) de la forma (footprint, geometría) que define la ubicación. Una ubicación puede tener una representación de radio-punto (véase Latitud decimal) y una representación footprint, y pueden diferir entre sí\n\nEjemplo: El cuadrante de un grado con esquinas opuestas (longitud=10, latitud=20) y (longitud=11, latitud=21) debe ser expresado en well-known text como POLÍGONO ((10 20, 11 20, 11 21, 10 21, 10 20))","«"]
[]
[null,"UBICACIÓN","SRS footprint","Una representación Well-Known Text (WKT) del sistema de referencia espacial (SRS) para WKT footprint de la ubicación. No utilice este elemento para describir el SRS de Latitud decimal y Longitud decimal, incluso si es la misma que para WKT footprint - utilice el Datum geodésico en su lugar\n\nEjemplo: El WKT para el estándar WGS84 SRS (EPSG:4326) es \"GEOGCS[\"GCS_WGS_1984\", DATUM[\"D_WGS_1984\", SPHEROID[\"WGS_1984\",6378137,298.257223563]], PRIMEM[\"Greenwich\",0], UNIT[\"Degree\",0.0174532925199433]]\" sin las comillas que lo encierran","«"]
[]
[null,"UBICACIÓN","Ajuste espacial \nde footprint","La relación del área de footprint (WKT footprint) y el área de la verdadera (original, o más específica) representación espacial de la ubicación. Los valores válidos son 0, mayor que o igual a 1, o indefinido. Un valor de 1 es una coincidencia exacta o superposición de 100%. Un valor de 0 debe ser utilizado si el footprint dado no contiene la representación original completamente. El Ajuste espacial de footprint es indefinido (y se debe dejar en blanco) si la representación original es un punto y la georreferencia dada no es ese mismo punto. Si el original y la georreferencia dada son el mismo punto, el Ajuste espacial de footprint es 1.","«"]
[]
[null,"UBICACIÓN","Georreferenciado por","Una lista (en una fila continua y separada por “;”) de los nombres de las personas, grupos u organizaciones que determinaron la georreferencia (representación espacial) para la ubicación\n\nEjemplos: \"Kristina Yamamoto (MVZ); Janet Fang (MVZ)\", \"Brad Millen (ROM)\"","«"]
[]
[null,"UBICACIÓN","Fecha de \ngeorreferenciación","La fecha en que fue georreferenciada la ubicación. Se recomienda utilizar un esquema de codificación, tal como la norma ISO 8601, use el siguiente formato: AAAA-MM-DD o  AAAA-MM o AAAA","«"]
[]
[null,"UBICACIÓN","Protocolo de georreferenciación","Una descripción o referencia a los métodos utilizados para determinar el footprint espacial, coordenadas, e incertidumbres\n\nEjemplos: \"Guide to Best Practices for Georeferencing\" (Chapman and Wieczorek, eds. 2006), “Global Biodiversity Information Facility.\", \"MaNIS/HerpNet/ORNIS Georeferencing Guidelines\", \"BioGeomancer\"","«"]
[]
[null,"UBICACIÓN","Fuentes de \ngeorreferenciación","Una lista (en una fila continua y separada por “;”) de los mapas, gaceteros, u otros recursos utilizados para georreferenciar la ubicación, lo suficientemente específica como para permitir que cualquier persona en el futuro utilice los mismos recursos\n\nEjemplos: \"USGS 1:24000 Florence Montana Quad; Terrametrics 2008 en Google Earth\"","«"]
[]
[null,"UBICACIÓN","Estado de la verificación \nde la georreferenciación","Una descripción categórica de la medida en que se ha verificado la georreferencia para representar, de la mejor manera, la descripción espacial. Se recomienda el uso del vocabulario controlado Estado de Verificación de la Georreferenciación (Véase Anexo 1. Vocabularios Controlados)\n\nEjemplos: \"Requiere verificación\", \"Verificado por colector\", \"Verificado por curador\"","«","α"]
[]
[null,"UBICACIÓN","Comentarios de la georreferenciación","Anotaciones o comentarios acerca de la determinación de la descripción espacial, los supuestos hechos que explican las adiciones formalizadas en el método referido en Protocolo de georreferenciación\n\nEjemplo: \"Distancia asumida del camino (Autopista 101)\"","«"]
[]
[null,"CONTEXTO\nGEOLÓGICO","ID del contexto \ngeológico","Un identificador para el conjunto de la información asociada con un Contexto geológico (la ubicación dentro de un contexto geológico, tal como estratigrafía). Puede ser un identificador único global o un identificador específico para el conjunto de datos","«"]
[]
[null,"CONTEXTO\nGEOLÓGICO","Eón temprano \no eonotema inferior","El nombre completo del eón geocronológico más temprano o el eratema cronoestratigráfico más bajo, o el nombre informal (\"Precámbrico\") atribuible al horizonte estratigráfico donde se recolectó el objeto catalogado\n\nEjemplos: \"Fanerozoico\", \"Proterozoico\"","«"]
[]
[null,"CONTEXTO\nGEOLÓGICO","Eón tardío \no eonotema superior","El nombre completo del eón geocronológico más tardío o el eratema cronoestratigráfico más alto posible, o el nombre informal (\"Precámbrico\") atribuible al horizonte estratigráfico donde se recolectó el objeto catalogado\n\nEjemplos: \"Fanerozoico\", \"Proterozoico\"","«"]
[]
[null,"CONTEXTO\nGEOLÓGICO","Era temprana \no eratema inferior","El nombre completo de la era geocronológica más temprana o el eratema cronoestratigráfico más bajo, atribuible al horizonte estratigráfico donde se recolectó el objeto catalogado\n\nEjemplos: \"Cenozoico\", \"Mesozoico\"","«"]
[]
[null,"CONTEXTO\nGEOLÓGICO","Era tardía \no eratema superior","El nombre completo de la era geocronológica más tardía o el eratema cronoestratigráfico más alto posible, atribuible al horizonte estratigráfico donde se recolectó el objeto catalogado\n\nEjemplos: \"Cenozoico\", \"Mesozoico\"","«"]
[]
[null,"CONTEXTO\nGEOLÓGICO","Periodo temprano \no sistema inferior","El nombre completo del periodo geocronológico más temprano posible o el sistema cronoestratigráfico más bajo, atribuible al horizonte estratigráfico donde se recolectó el objeto catalogado\n\nEjemplos: \"Neógeno\", \"Terciario\", \"Cuaternario\"","«"]
[]
[null,"CONTEXTO\nGEOLÓGICO","Periodo tardío \no sistema superior","El nombre completo del período geocronológico más tardío posible o del sistema cronoestratigráfico más alto, atribuible al horizonte estratigráfico donde se recolectó el objeto catalogado\n\nEjemplos: \"Neógeno\", \"Terciario\", \"Cuaternario\"","«"]
[]
[null,"CONTEXTO\nGEOLÓGICO","Época temprana \no serie inferior","El nombre completo de la época geocronológica más temprana o la serie cronoestratigráfica más baja posible, atribuible al horizonte estratigráfico donde se recolectó el objeto catalogado\n\nEjemplos: \"Holoceno\", \"Pleistoceno\", \"Serie Ibexian\"","«"]
[]
[null,"CONTEXTO\nGEOLÓGICO","Época tardía \no serie superior","El nombre completo de la época geocronológica más tardía posible o la serie cronoestratigráfica más alta, atribuible al horizonte estratigráfico donde se recolectó el objeto catalogado\n\nEjemplos: \"Holoceno\", \"Pleistoceno\", \"Serie Ibexian\"","«"]
[]
[null,"CONTEXTO\nGEOLÓGICO","Edad temprana \no piso inferior","El nombre completo de la edad geocronológica más temprana posible o piso cronoestratigráfico más bajo, atribuible al horizonte estratigráfico donde se recolectó el objeto catalogado\n\nEjemplos: \"Atlántico\", \"Boreal\"","«"]
[]
[null,"CONTEXTO\nGEOLÓGICO","Edad tardía \no piso superior","El nombre completo de la edad geocronológica más tardía posible o piso cronoestratigráfico más alto, atribuible al horizonte estratigráfico donde se recolectó el objeto catalogado\n\nEjemplos: \"Atlántico\", \"Boreal\"","«"]
[]
[null,"CONTEXTO\nGEOLÓGICO","Zona bioestratigráfica \ninferior","El nombre completo de la zona geológica bioestratigráfica más baja posible del horizonte estratigráfico donde se recolectó el objeto catalogado","«"]
[]
[null,"CONTEXTO\nGEOLÓGICO","Zona bioestratigráfica \nsuperior","El nombre completo de la zona geológica bioestratigráfica más alta posible del horizonte estratigráfico donde se recolectó el objeto catalogado","«"]
[]
[null,"CONTEXTO\nGEOLÓGICO","Términos \nlitoestratigráficos","La combinación de todos los nombres litoestratigráficos de la roca de donde se colectó el objeto catalogado","«"]
[]
[null,"CONTEXTO\nGEOLÓGICO","Grupo","El nombre completo del grupo litoestratigráfico del cual se colectó el objeto catalogado","«"]
[]
[null,"CONTEXTO\nGEOLÓGICO","Formación","El nombre completo de la formación litoestratigráfica de la cual se colectó el objeto catalogado","«"]
[]
[null,"CONTEXTO\nGEOLÓGICO","Miembro","El nombre completo del miembro litoestratigráfico del cual se colectó el elemento catalogado","«"]
[]
[null,"CONTEXTO\nGEOLÓGICO","Capa","El nombre completo de la capa litoestratigráfica de la cual se colectó el elemento catalogado","«"]
[]
[null,"IDENTIFICACIÓN","ID de la \nidentificación","Un identificador para la identificación (el cuerpo de la información asociada con la asignación de un nombre científico). Puede ser un identificador único global o un identificador específico para el conjunto de datos","«"]
[]
[null,"IDENTIFICACIÓN","Identificado por","Una lista (en una fila continua y separada por “;”) de los nombres de las personas, grupos u organizaciones que identificaron la entidad biológica\n\nEjemplos: \"James L. Patton\", \"Theodore Pappenfuss; Robert Macey\"","«"]
[]
[null,"IDENTIFICACIÓN","Fecha de \nidentificación","La fecha en que fue identificada la entidad biológica como representativa del taxón. Se recomienda utilizar un esquema de codificación, como la norma ISO 8601\nEjemplo: \"1963-03-08\" es 8 de marzo de 1963, \"1906-06\" es junio de 1906, \"1971\" es justo ese año, \"2007-03-01/2008-05-11\" es el intervalo entre el 1 de marzo de 2007 y 11 de mayo de 2008, \"2007-11-13/15\" es el intervalo entre el 13 de noviembre de 2007 y 15 de noviembre de 2007","«"]
[]
[null,"IDENTIFICACIÓN","Referencias de \nla identificación","Una lista (en una fila continua y separada por \";\") de las referencias (publicación, identificador único global, URI) usadas en la identificación\n\nEjemplo: \"Aves del Noroeste Patagónico. Christie et al. 2004.\"","«"]
[]
[null,"IDENTIFICACIÓN","Estado de la verificación \nde la identificación","Un indicador categórico del alcance de la verificación de la identificación taxonómica. Se recomienda el uso de un vocabulario controlado, como los usados en HISPID/ABCD\n\nEjemplos: \"0\", \"4\"","«"]
[]
[null,"IDENTIFICACIÓN","Comentarios de la Identificación","Comentarios o notas sobre la identificación\n\nEjemplo: Se distingue entre Anthus correndera y Anthus hellmayri basado en las longitudes comparativas de las uñas","«"]
[]
[null,"IDENTIFICACIÓN","Calificador de \nla identificación","Una breve frase o término estándar (\"cf.\",\"aff.\") para expresar las dudas del determinador sobre la identificación\n\nEjemplo: Para \"Quercus aff. agrifolia var. oxyadenia\", el Calificador de la identificación sería \"aff. agrifolia var. oxyadenia\" con valores acompañantes \"Quercus\" en Género, \"agrifolia\" en Epíteto específico, \"oxyadenia\" en Epíteto infraespecífico, y \"var.\" en Categoría taxonómica","«"]
[]
[null,"IDENTIFICACIÓN","Estado del tipo","Una lista (en una fila continua y separada por \";\") de los tipos de nomenclatura (estado del tipo, nombre científico tipificado, publicación) aplicados a la entidad biológica. Se recomienda el uso del vocabulario controlado Estado del Tipo\n\nEjemplo: \"holotipo de Ctenomys sociabilis. Pearson O. P., y M. I. Christie. 1985. Historia Natural, 5(37):388\"","«","α"]
[]
[null,"TAXÓN","ID del taxón","Un identificador para el conjunto de información del taxón (datos asociados a la clase del Taxón). Puede ser un identificador único global o un identificador específico para el conjunto de datos.\n\nEjemplos: \"8fa58e08-08de-4ac1-b69c-1235340b7001\", \"32567\", \"http://species.gbif.org/abies_alba_1753\", \"urn:lsid:gbif.org:usages:32567\"","«"]
[]
[null,"TAXÓN","ID del nombre \ncientífico","Un identificador de los detalles de la nomenclatura (no taxonómica) de un nombre científico.\n\nEjemplo: \"urn:lsid:ipni.org:names:37829-1:1.3\".","«"]
[]
[null,"TAXÓN","ID del nombre \naceptado usado","Un identificador para el uso del nombre (significado del nombre, documentado de acuerdo con alguna fuente) del taxón actualmente válido (zoológico) o aceptado (botánico)\n\nEjemplo: \"8fa58e08-08de-4ac1-b69c-1235340b7001\"","«"]
[]
[null,"TAXÓN","ID del nombre \nparental usado","Un identificador para el uso del nombre (significado documentado del nombre de acuerdo con una fuente) del taxón parental directo, más próximo de nivel superior (en una clasificación) del elemento más específico de Nombre científico\n\nEjemplo: \"8fa58e08-08de-4ac1-b69c-1235340b7001\"","«"]
[]
[null,"TAXÓN","ID del nombre \noriginal usado","Un identificador para el uso del nombre (significado documentado del nombre de acuerdo con una fuente) en el que se estableció originalmente, el elemento terminal de Nombre científico bajo las reglas del Código Nomenclatural asociado\n\nEjemplo: \"http://species.gbif.org/abies_alba_1753\"","«"]
[]
[null,"TAXÓN","ID del nombre \nde acuerdo con","Un identificador de la fuente en la que está definida o implícita la circunscripción conceptual del taxón específico. Véase \"Nombre de acuerdo con\"\n\nEjemplo: \"doi:10.1016/S0269-915X(97)80026-2\"","«"]
[]
[null,"TAXÓN","ID del nombre \npublicado en","Un identificador de la publicación en que se estableció originalmente el Nombre científico bajo las reglas del Código Nomenclatural asociado\n\nEjemplo: \"http://hdl.handle.net/10199/7\"","«"]
[]
[null,"TAXÓN","ID del concepto \ndel taxón","Un identificador para el concepto taxonómico al que se refiere el registro, no para los detalles de nomenclatura de un taxón\n\nEjemplo: \"8fa58e08-08de-4ac1-b69c-1235340b7001\"","«"]
[]
[null,"TAXÓN","Nombre científico","El nombre científico completo, con información de autoría y fecha si se conoce. Al formar parte de una identificación, este debe ser el nombre en la categoría del taxón de menor nivel que pueda ser determinado. Este elemento no debe contener calificadores de identificación, estos deberían ser suministrados en el elemento \"Calificador de la identificación\"\n\nEjemplos: \"Vespertilionidae\" (Familia), \"Manis\" (Género), \"Roptrocerus typographi (Györfi, 1952)\" (Género + Epíteto específico + Autoría nombre científico), \"Quercus agrifolia var. oxyadenia (Torr.) J.T. Howell\" (Género + Epíteto específico + Categoría taxonómica + Epíteto infraespecífico + Autoría nombre científico).","«"]
[]
[null,"TAXÓN","Nombre \naceptado usado","El nombre completo, con autoría e información de fecha si se conoce, del taxón actualmente válido (zoológico) o aceptado (botánico)\n\nEjemplos: \"Tamias minimus\" nombre válido para \"Eutamias minimus\"","«"]
[]
[null,"TAXÓN","Nombre parental \nusado","El nombre completo, con información de autoría y fecha si se conoce, del taxón parental directo más próximo de nivel superior (en una clasificación) del elemento más específico de Nombre científico\n\nEjemplos: \"Rubiaceae\", \"Gruiformes\", \"Testudinae\"","«"]
[]
[null,"TAXÓN","Nombre original \nusado","El nombre del taxón, con información de autoría y fecha si se conoce, tal como apareció originalmente cuando se estableció por primera vez bajo las reglas del Código Nomenclatural asociado. El basiónimo (botánica) o basónimo (bacteriología) de Nombre científico o el homónimo anterior de los nombres sustituidos\n\nEjemplos: \"Pinus abies\", \"Gasterosteus saltatrix Linnaeus 1768\"","«"]
[]
[null,"TAXÓN","Nombre de \nacuerdo con","La referencia a la fuente en la que está definida o implícita la circunscripción conceptual del taxón, tradicionalmente representado por el Latín \"sensu\" o \"sec.\" (de secundum, que significa \"según\"). Para los taxones que resultan de las identificaciones, una referencia a las claves, monografías, expertos y otras fuentes debe ser provista\n\nEjemplo: \"McCranie, J. R., D. B. Wake, and L. D. Wilson. 1996. The taxonomic status of Bolitoglossa schmidti, with comments on the biology of the Mesoamerican salamander Bolitoglossa dofleini (Caudata: Plethodontidae). Carib. J. Sci. 32:395-398.\"","«"]
[]
[null,"TAXÓN","Nombre \npublicado en","Una referencia para la publicación en que se estableció originalmente el Nombre científico bajo las reglas del Código Nomenclatural asociado\n\nEjemplos: \"Pearson O. P., and M. I. Christie. 1985. Historia Natural, 5(37):388\", \"Forel, Auguste, Diagnosies provisoires de quelques espèces nouvelles de fourmis de Madagascar, récoltées par M. Grandidier., Annales de la Societe Entomologique de Belgique, Comptes-rendus des Seances 30, 1886\".","«"]
[]
[null,"TAXÓN","Nombre \npublicado en el año","El año de cuatro dígitos en el que se publicó el Nombre científico\n\nEjemplos: \"1915\", \"2008\"","«"]
[]
[null,"TAXÓN","Clasificación \nsuperior","Una lista de los nombres de los taxones que terminan en la categoría inmediatamente superior al del taxón de referencia en el registro del taxón. Se recomienda ordenar la lista comenzando con la categoría más alta y separando los nombres de cada categoría, con un punto y coma (\";\").\n\nEjemplo: \"Animalia;Chordata;Vertebrata;Mammalia;Theria;Eutheria;Rodentia;Hystricognatha;Hystricognathi;Ctenomyidae;Ctenomyini;Ctenomys\"","«"]
[]
[null,"TAXÓN","Reino","El nombre científico completo del reino al que pertenece el taxón\n\nEjemplos: \"Animalia\", \"Plantae\"","«"]
[]
[null,"TAXÓN","Filo","El nombre científico completo del filo o división al que pertenece el taxón\n\nEjemplos: \"Chordata\" (filo), \"Bryophyta\" (división)","«"]
[]
[null,"TAXÓN","Clase","El nombre científico completo de la clase al que pertenece el taxón\n\nEjemplos: \"Mammalia\", \"Hepaticopsida\"","«"]
[]
[null,"TAXÓN","Orden","El nombre científico completo del orden al que pertenece el taxón\n\nEjemplos: \"Carnivora\", \"Monocleales\"","«"]
[]
[null,"TAXÓN","Familia","El nombre científico completo de la familia al que pertenece el taxón\n\nEjemplos: \"Felidae\", \"Monocleaceae\"","«"]
[]
[null,"TAXÓN","Género","El nombre científico completo del género al que pertenece el taxón\n\nEjemplos: \"Puma\", \"Monoclea\"","«"]
[]
[null,"TAXÓN","Subgénero","El nombre científico completo del subgénero al que pertenece el taxón. Los valores deben incluir el género para evitar la confusión de homonimia\n\nEjemplos: \"Strobus (Pinus)\", \"Puma (Puma)\" \"Loligo (Amerigo)\", \"Hieracium subgen. Pilosella\"","«"]
[]
[null,"TAXÓN","Epíteto \nespecífico","El nombre del epíteto específico de Nombre científico\n\nEjemplos: \"concolor\", \"gottschei\"","«"]
[]
[null,"TAXÓN","Epíteto \ninfraespecífico","El nombre con la categoría de taxón más baja o más especifica por debajo del epíteto específico (parte terminal del nombre), excluyendo cualquier otra denominación de categoría\n\nEjemplos: para el nombre científico \"Carex viridula subsp. brachyrrhyncha var. elatior\" el Epíteto infraespecífico será \"elatior\"","«"]
[]
[null,"TAXÓN","Categoría del taxón","La clasificación taxonómica del nombre más específico en el Nombre científico. Se recomienda el uso del vocabulario controlado Categoría del Taxón\n\nEjemplos: \"subespecie\", \"variedad\", \"forma\", \"especie\", \"género\"","«","α"]
[]
[null,"TAXÓN","Categoría original\n del taxón","La categoría del taxón del nombre más específico en un nombre científico tal y como aparece en el registro original\n\nEjemplos: “Agamoespecie”, “sub-lesus”, “prole”, “apomíctica”, “nothogrex”, “sp.”, \"subsp.\", \"var.\"","«"]
[]
[null,"TAXÓN","Autoría del \nnombre científico","La información de autoría del Nombre científico formateado de acuerdo a las convenciones del Código Nomenclatural aplicable\n\nEjemplos: \"(Torr.) J.T. Howell\", \"(Martinovský) Tzvelev\", \"(Györfi, 1952)\"","«"]
[]
[null,"TAXÓN","Nombre común","El nombre o nombres comunes del taxón\n\nEjemplos: \"Cóndor Andino\", \"Águila Americana\", \"Buitre, Chulo\"","«"]
[]
[null,"TAXÓN","Código \nnomenclatural","El código nomenclatural (o códigos en el caso de un nombre ambireinal) en virtud del cual se construye el Nombre científico. Se recomienda el uso del vocabulario controlado Código nomenclatural\n\nEjemplos: \"ICBN\", \"ICZN\", \"BC\", \"ICNCP\", \"BioCode\", \"ICZN; ICBN\"","«","α"]
[]
[null,"TAXÓN","Estado \ntaxonómico","El estado de la utilización de Nombre científico como una etiqueta para un taxón. Requiere opinión taxonómica para definir el alcance de un taxón. Dado lo anterior, se utilizan reglas de prioridad para definir el estado taxonómico de la nomenclatura contenida en ese enfoque, junto con la opinión de los expertos. Debe estar vinculado a una referencia sobre taxonomía específica que defina el concepto. Se recomienda el uso del vocabulario controlado Estado taxonómico\n\nEjemplos: \"Inválido\", \"Mal aplicado\", \"Sinonimia homotípica\", \"Aceptado\"","«","α"]
[]
[null,"TAXÓN","Estado \nnomenclatural","El estado relacionado con la publicación original del nombre y su conformidad con las normas pertinentes de nomenclatura. Se basa esencialmente en un algoritmo de acuerdo con las reglas de negociación del código. No requiere opinión taxonómica\n\nEjemplos: \"nom. ambig.\", \"nom. illeg.\", \"nom. subnud.\"","«"]
[]
[null,"TAXÓN","Comentarios \ndel taxón","Comentarios o notas sobre el taxón o nombre\n\nEjemplo: \"Este nombre está mal escrito en uso común\"","«"]

{"sheet":"ListaElementos","index":3,"n_rows":160,"n_cols":4,"rows_kept":160,"cut":false,"hidden":false,"merged":[]}
[null,"SECCION","Elemento","Definción"]
[null,"REGISTRO\n BIOLÓGICO","ID del registro biológico","Es un identificador del registro biológico (observación, evento, etc.). En ausencia de un identificador único global persistente, se recomienda construir uno a partir de la combinación de [código de la institución] : [código de la  colección] : [número de catálogo]\n\nEjemplos: \"urn:lsid:nhm.ku.edu:Herps:32\", \"2005:FMNH:Mammal:145732\""]
[null,"ELEMENTOS DE\n REGISTRO","Base del registro","Es la naturaleza específica del dato del registro, un subtipo del Tipo. Se recomienda el uso del vocabulario controlado disponible para este elemento\n\nEjemplos: \"Espécimen Preservado\", \"Espécimen Fósil\", \"Espécimen Vivo\", \"Observación Humana\"\n"]
[null,"ELEMENTOS DE\n REGISTRO","Código de la institución","El nombre (o acrónimo) en uso por la institución que tenga la custodia del espécimen o de la información mencionada en el registro\n\nEjemplo: \"IAVH\", \"Ministerio de Ambiente y Desarrollo Sostenible (MADS)\", \"SDA\""]
[null,"ELEMENTOS DE\n REGISTRO","Código de la colección","Es el nombre, acrónimo, código alfanumérico, o iniciales que identifican la colección o conjunto de datos del que procede el registro dentro de la institución\n\nEjemplos: \"COL\", \"ANDES\", \"FMB\", \"Mamíferos\", \"eBird\""]
[null,"REGISTRO\n BIOLÓGICO","Número de catálogo","Es un identificador para el registro dentro del conjunto de datos o colección. Puede ser un número de catálogo como tal o en el caso de no se trate de ejemplares de colección un identificador único numérico o alfanumérico dentro del conjunto de datos\n\nEjemplos: \"2008.1334\", \"145732a\", \"145732\", \"COL5033\""]
[null,"ELEMENTOS DE\n REGISTRO","Tipo","La naturaleza o género del recurso. Se recomienda el uso del vocabulario controlado disponible para este elemento\n\nEjemplos: \"Imagen estática\", \"Imagen en movimiento\", \"Sonido\", \"Objeto físico\", \"Evento\""]
[null,"ELEMENTOS DE\n REGISTRO","Modificado","La fecha más reciente en la que se haya cambiado el recurso. La práctica recomendada es utilizar la norma ISO 8601\n\nEjemplo: AAAA-MM-DD"]
[null,"ELEMENTOS DE\n REGISTRO","Idioma","El idioma del recurso. La práctica recomendada es el uso de un lenguaje controlado, como la norma ISO 639-1\n\nEjemplos: \"en\" para el idioma inglés, \"es\" para el idioma español"]
[null,"ELEMENTOS DE\n REGISTRO","Derechos","Información acerca de los derechos sobre el recurso. Generalmente, la información de derechos incluye una declaración sobre los distintos derechos de propiedad asociados con el recurso, incluidos los derechos de propiedad intelectual\n\nEjemplo: “http://creativecommons.org/licenses/by-sa/3.0/deed.es_ES”, \"Contenido licenciado bajo Creative Commons Attribution 3.0\""]
[null,"ELEMENTOS DE\n REGISTRO","Titular de los derechos","Una persona u organización propietaria o administradora de los derechos sobre el recurso\n\nEjemplo: \"Secretaria de Agricultura\", \"Ministerio de Medio Ambiente\""]
[null,"ELEMENTOS DE\n REGISTRO","Derechos de acceso","Información acerca de quién puede acceder al recurso, o una indicación de su estado de seguridad. Los Derechos de acceso pueden incluir información acerca del acceso, o restricciones basadas en políticas de privacidad, seguridad, u otras\n\nEjemplo: \"Sólo para uso no comercial\""]
[null,"ELEMENTOS DE\n REGISTRO","Citación bibliográfica","Una referencia bibliográfica para el recurso que indique la manera en que el registro debería citarse cuando sea utilizado. La práctica recomendada es incluir suficientes detalles bibliográficos para identificar el recurso tan claramente como sea posible\n\nEjemplos: \"Ctenomys sociabilis (MVZ 165861)\" para un espécimen. \"Oliver P. Pearson. 1985. Los tuco-tucos (género Ctenomys) de los Parques Nacionales Lanin y Nahuel Huapi, Argentina Historia Natural, 5(37):337-343.\" para un taxón"]
[null,"ELEMENTOS DE\n REGISTRO","Referencias","Una URL a un recurso asociado, el cual es de alguna forma referenciado o citado por el recurso descrito. Frecuentemente es una pagina web mostrando lo mismo, pero en un formato visual mas elaborado\n\nEjemplos: \"http://mvzarctos.berkeley.edu/guid/MVZ:Mamm:165861\", \"http://www.catalogueoflife.org/show_species_details.php?record_id=6197868\""]
[null,"ELEMENTOS DE\n REGISTRO","ID de la institución","Un identificador de la institución que custodia el espécimen o información mencionada en el registro. La práctica recomendada es incluir el NIT de la institución\n\nEjemplo: “586.697.465-1”"]
[null,"ELEMENTOS DE\n REGISTRO","ID de la colección","Un identificador de la colección o conjunto de datos del que procede el registro. Para especímenes, la práctica recomendada es utilizar el identificador de un índice de colección tal como el Índice de Colecciones de Biodiversidad (http://www.biodiversitycollectionsindex.org/)\n\nEjemplo: \"urn:lsid:biocol.org:col:34818\""]
[null,"ELEMENTOS DE\n REGISTRO","ID del conjunto de datos","Un identificador para el conjunto de datos. Puede ser un identificador único global o un identificador específico de una colección o institución\n\nEjemplo: \"AVES-AMNH\""]
[null,"ELEMENTOS DE\n REGISTRO","Nombre del conjunto de datos","El nombre que identifica el conjunto de datos del cual se derivó el registro\n\nEjemplo: “Muestreo de Mamíferos de la Cuenca”"]
[null,"ELEMENTOS DE\n REGISTRO","Código de la institución propietaria","El nombre (o acrónimo) en uso por la institución que tiene la propiedad del objeto(s) o de la información consignada en el registro\n\nEjemplos: \"NPS\", \"APN\", \"InBio\""]
[null,"ELEMENTOS DE\n REGISTRO","Información retenida","Información adicional que existe, pero que no ha sido compartida en el registro dado\n\nEjemplos: \"La ubicación no es provista para especies amenazadas\", \"La identidad de los colectores es retenida\", \"Pregunte acerca de muestras de tejido\""]
[null,"ELEMENTOS DE\n REGISTRO","Generalización de los datos","Las medidas adoptadas para que los datos compartidos sean menos específicos o completos que en su forma original. Sugiere que datos alternativos de mayor calidad pueden estar disponibles bajo petición\n\nEjemplo: \"Coordenadas generalizadas a partir de las coordenadas originales del GPS a la celda más cercana de la grilla\""]
[null,"ELEMENTOS DE\n REGISTRO","Propiedades dinámicas","Una lista (en una fila continua y separada por \";\") de las medidas, hechos, características, o aseveraciones adicionales sobre el registro. Su intención es proporcionar un mecanismo para contenido estructurado como representación de los datos\n\nEjemplos: \"peso en gramos =120\", \"altura en metros =1,5\", \"naturaleza del ID =identificación de experto; \"evidencia de la identificación=secuencia de citocromo B\", \"humedad relativa =28; temperatura del aire en grados ºC=22; tamaño de la muestra en kilogramos=10\", \"estado según UICN=vulnerable\""]
[null,"REGISTRO\n BIOLÓGICO","Comentarios del registro biológico","Comentarios o anotaciones sobre el Registro biológico\n\nEjemplo: \"Muerto en la vía\""]
[null,"REGISTRO\n BIOLÓGICO","Número de registro","Es equivalente al numero de colector, un identificador dado al registro biológico en el momento en que fue registrado, sirve como un vínculo entre las anotaciones de campo y la elaboración del registro. La misma idea aplica para una observación o muestreo en campo. No es el mismo Número de catalogo, el cual es usualmente asignado una vez el espécimen ingresa a la colección\n\nEjemplo: \"OPP 7101\""]
[null,"REGISTRO\n BIOLÓGICO","Registrado por","Una lista (en una fila continua y separada por \";\") de los nombres de las personas, grupos u organizaciones responsables de realizar el registro, observadores o recolectores. El colector u observador principal, especialmente si aplica un identificador personal (Número del registro), se debe listar en primer lugar\n\nEjemplos: \"Oliver P. Pearson; Anita K. Pearson\" donde el valor en Número del Registro \"OPP 7101\" corresponde al número para el espécimen en el catálogo de campo (número de colector) de Oliver P. Pearson"]
[null,"REGISTRO\n BIOLÓGICO","ID del individuo","Es el ID para identificar cualquier individuo o grupo de individuos.  Aves anilladas, fotos de mamíferos acuáticos, arboles remuestreados, biopsias periódicas, etc. Pretende facilitar el remuestreo del mismo individuo o grupo con fines de monitoreo\n\nEjemplos: \"U.amer. 44\", \"Smedley\", \"Orca J 23\"\n\n\nEjemplos: \"U.amer. 44\", \"Smedley\", \"Orca J 23\""]
[null,"REGISTRO\n BIOLÓGICO","Número de individuos","El número de individuos representados presente en el momento del Registro Biológico\n\nEjemplos: \"1\", \"25\""]
[null,"REGISTRO\n BIOLÓGICO","Sexo","El sexo de la(s) entidad(es) biológica(s) representada(s) en el Registro biológico. Se recomienda el uso del vocabulario disponible para este elemento \n\nEjemplos: \"hembra\", \"hermafrodita\", \"8 machos, 4 hembras\"."]
[null,"REGISTRO\n BIOLÓGICO","Etapa de vida","La edad o etapa de vida de la(s) entidad(es) biológica(s) en el momento del Registro biológico. Se recomienda el uso de un vocabulario controlado. Se recomienda el uso del vocabulario disponible para este elemento \n\nEjemplos: \"Huevo\", \"Juvenil\", \"Adulto\", \"2 adultos 4 juveniles\""]
[null,"REGISTRO\n BIOLÓGICO","Condición reproductiva","La condición reproductiva de la(s) entidad(es) biológica(s) representada(s) en el Registro biológico. Se recomienda el uso de un vocabulario controlado\n\nEjemplos: \"No reproductiva\", \"En gestación\", \"Floración\", \"Fructificación\""]
[null,"REGISTRO\n BIOLÓGICO","Comportamiento","Una descripción del comportamiento mostrado por el sujeto en el momento del Registro biológico. Se recomienda el uso de un vocabulario controlado\n\nEjemplos: \"Posando\", \"Alimentándose\", \"Corriendo\""]
[null,"REGISTRO\n BIOLÓGICO","Medios de establecimiento","El proceso por el cual el individuo(s) se estableció en el lugar. Se recomienda el uso de un vocabulario controlado\n\nEjemplos: \"Cultivado\", \"Invasor\", \"Fugado de cautiverio\", \"Silvestre\", \"Nativo\""]
[null,"REGISTRO\n BIOLÓGICO","Estado del registro biológico","Un estado sobre la presencia o ausencia de un taxón en una ubicación. Use solo \"Presente\" o \"Ausente\" como posibles valores para registros biológicos. Se recomienda el uso del vocabulario controlado disponible para este elemento\n\nEjemplos: \"Presente\", \"Ausente\""]
[null,"REGISTRO\n BIOLÓGICO","Preparaciones","Una lista (en una fila continua y separada por \";\") de las preparaciones y los métodos de conservación de un ejemplar o una muestra del ejemplar\n\nEjemplos: \"Piel; Cráneo; Esqueleto\", \"Animal completo (ETOH); Tejido (EDTA)\", \"Fósil\", \"Molde\", \"Fotografía\", \"Extracción de ADN\""]
[null,"REGISTRO\n BIOLÓGICO","Disposición","El estado actual de un espécimen en relación a la colección identificada en Código de la colección o ID de la Colección. Se recomienda el uso de un vocabulario controlado\n\nEjemplos: \"En colección\", \"Extraviado\", \"Ejemplar testigo\", \"Duplicados en otro lugar\""]
[null,"REGISTRO\n BIOLÓGICO","Otros números de catálogo","Una lista (en una fila continua y separada por \";\") de números de catálogos anteriores o alternos, u otros identificadores usado por personas para el mismo Registro biológico, ya sea en el actual o cualquier otro conjunto de datos o colección\n\nEjemplos: \"FMNH:Mammal:1234\", \"NPS YELLO6778; MBG 33424\""]
[null,"REGISTRO\n BIOLÓGICO","Identificaciones previas","Una lista (en una fila continua y separada por \";\") de asignaciones anteriores de nombres al Registro biológico\n\nEjemplos: \"Anthus sp., identificado en campo por G. Iglesias; Anthus correndera, Identificado por el experto C. Cicero 2009-02-12 basado en morfología\""]
[null,"REGISTRO\n BIOLÓGICO","Medios asociados","Una lista (en una fila continua y separada por \";\") de identificadores (publicación, identificador único global, URI) de los medios asociados con el Registro biológico\n\nEjemplos: \"http://arctos.database.museum; http://siac.net.co/catalogo\""]
[null,"REGISTRO\n BIOLÓGICO","Referencias asociadas","Una lista (en una fila continua y separada por \";\") de los identificadores (publicación, referencia bibliográfica, identificador único global, URI) de la literatura asociada con el Registro biológico.\n\nEjemplos: \"http://www.sciencemag.org/cgi/content/abstract/322/5899/261\", \"Christopher J. Conroy, Jennifer L. Neuwald. 2008. Phylogeographic study of the California vole, Microtus californicus Journal of Mammalogy, 89(3):755-767.\""]
[null,"REGISTRO\n BIOLÓGICO","Registros biológicos asociados","Una lista (en una fila continua y separada por \";\") de los identificadores de otros registros biológicos y su relación con este Registro Biológico\n\nEjemplos: \"hermano de FMNH:Mamífero:1234;hermano de FMNH:Mamífero:1235\""]
[null,"REGISTRO\n BIOLÓGICO","Secuencias asociadas","Una lista (en una fila continua y separada por \";\") de los identificadores (publicación, identificador único global, URI) de la información de la secuencia genética asociada con el Registro biológico\n\nEjemplos: \"GenBank: U34853.1\", \"AB425960;AB425963;DQ286547\""]
[null,"REGISTRO\n BIOLÓGICO","Taxones asociados","Una lista (en una fila continua y separada por \";\") de los identificadores o nombres de taxones y su asociación con el Registro biológico\n\nEjemplos: \"Huésped: Quercus alba; Parásito: Apis mellifera\"."]
[null,"EVENTO","ID del evento","Un identificador para el conjunto de información asociado con el Evento (algo que ocurre en un lugar y tiempo). Puede ser un identificador único global o un identificador específico para el conjunto de datos."]
[null,"EVENTO","Protocolo de muestreo","El nombre de, la referencia a, o la descripción del método o protocolo usado durante el Evento.\n\nEjemplos: \"Trampa de luz UV\", \"Red de niebla\", “Arrastre de fondo”, \"Observación ad hoc\", \"Punto de conteo\""]
[null,"EVENTO","Esfuerzo de muestreo","La cantidad de esfuerzo realizado durante el Evento\n\nEjemplos: \"40 trampas nocturnas\", \"10 horas de observador; 10 km caminando; 30 km en carro\""]
[null,"EVENTO","Fecha del evento","La fecha o el intervalo durante el cual se produjo el Evento. Para los registros biológicos, esta es la fecha cuando el evento se registró. No es adecuado para una fecha en un contexto geológico. Se recomienda utilizar un esquema de codificación, como el ISO 8601 (AAAA-MM-DD o para un intervalo de fechas: AAAA-MM-DD/AAAA-MM-DD)\n\nEjemplo: \"1963-03-08\" es 8 de marzo de 1963, \"1906-06\" es junio de 1906, \"1971\" es justo ese año, \"2007-03-01/2008-05-11\" es el intervalo entre el 1 de marzo de 2007 y 11 de mayo de 2008, \"2007-11-13/15\" es el intervalo entre el 13 de noviembre de 2007 y 15 de noviembre de 2007"]
[null,"EVENTO","Hora del evento","El tiempo o intervalo durante el cual se produjo el Evento. Se recomienda utilizar un esquema de codificación, como el ISO 8601\n\nEjemplos: \"14:07\" es 2:07pm, \"08:40:21\" es 8:40:21am, \"13:00:00/15:30:00\" es el intervalo entre 1pm y 3:30pm"]
[null,"EVENTO","Día inicial del año","El primer día ordinal del año en que ocurrió el Evento (1 para el 1 de enero, 365 para el 31 de diciembre, excepto en un año bisiesto, en cuyo caso es 366)\n\nEjemplos: \"1\" (=1 ene), \"365\" (=31 dic), \"365\" (=30 dic en año bisiesto, 31 dic en un año no bisiesto)"]
[null,"EVENTO","Día final del año","El último día ordinal del año en que ocurrió el Evento (1 para el 1º de enero, 365 para el 31 de diciembre, excepto en un año bisiesto, en cuyo caso es 366)\n\nEjemplos: \"1\" (=1 enero), \"365\" (=31 diciembre), \"366\" (=31 diciembre en año bisiesto)"]
[null,"EVENTO","Año","Los cuatro dígitos del año en que el Evento ocurrió, de acuerdo al Calendario de la Era Común\n\nEjemplo: \"2008\""]
[null,"EVENTO","Mes","El mes ordinal en que ocurrió el evento\n\nEjemplos: \"1\" (=enero), \"10\" (=octubre)"]
[null,"EVENTO","Día","El día en números enteros, del mes en que ocurrió el evento\n\nEjemplo: \"9\", \"28\""]
[null,"EVENTO","Fecha original del evento","La representación textual original de la información de fecha para el Evento\n\nEjemplos: \"primavera 1910\", \"marzo 2002\", \"1999-03-XX\", \"17IV1934\""]
[null,"EVENTO","Hábitat","Una categoría o la descripción del hábitat en el que ocurrió el Evento\n\nEjemplos: \"Sabana de roble\", \"Estepa de la pre-cordillera\""]
[null,"EVENTO","Número de campo","Un identificador dado al evento en campo. A menudo sirve como un vínculo entre las anotaciones de campo y el evento\n\nEjemplo: \"RV Sol 87-03-08\""]
[null,"EVENTO","Notas de campo","Puede corresponder a: a) un indicador de la existencia de las notas, b) una referencia a (publicación, URI) las notas, o c) el texto de las notas tomadas en campo sobre el evento\n\nEjemplo: \"notas disponibles en la Biblioteca Grinnell-Miller\""]
[null,"EVENTO","Comentarios del evento","Comentarios o anotaciones sobre el Evento\n\nEjemplo: \"Después de las lluvias recientes, el río estuvo cercano a un estado de desbordamiento\""]
[null,"UBICACIÓN","ID de la ubicación","Un identificador para el conjunto de información de la ubicación (los datos asociados a Ubicación). Se sugiere utilizar el código de la División Política Administrativa de Colombia - DANE,  (http://www.dane.gov.co/Divipola) precedida por \"CO:\"\n\nEjemplo: para el municipio de Puerto Boyacá en Boyacá el ID es \"CO:15572\""]
[null,"UBICACIÓN","ID de la geografía superior","Un identificador de la región geográfica de la ubicación. Se recomienda utilizar un identificador persistente de un vocabulario controlado como el Tesauro Getty de Nombres Geográficos\n\nEjemplo: \"TGN: 7005075\" para San Agustín (Huila), Colombia"]
[null,"UBICACIÓN","Geografía superior","información acerca de las características geográficas que no están incluidas en los términos estándar, así como los datos originales (sin estructurar) de esos términos. Se recomienda hacer una fila continua y separada por \";\".\n\nEjemplo: \"América; Sudamérica; Argentina; Región Sur; Patagonia; Parque Nacional Nahuel Huapi; Neuquén; Los Lagos\" con los valores resultantes de \"Sudamérica\" en Continente, \"Argentina\" en País, \"Neuquén\" en Departamento, y “Los Lagos” en Municipio"]
[null,"UBICACIÓN","Continente","El nombre del continente en el que tiene lugar la ubicación. Se recomienda el uso del vocabulario controlado disponible para este elemento\n\nEjemplos: \"SA\" para Sur América, “NA” para Norte América"]
[null,"UBICACIÓN","Cuerpo de agua","El nombre y tipo del cuerpo de agua en el que tiene lugar la ubicación. Se recomienda usar este campo si el evento ocurrió en el cuerpo de agua propiamente dicho, no en cercanías de este\n\nEjemplos: \"Rio Lebrija\", \"Golfo de Urabá\", \"Caño Mojana\""]
[null,"UBICACIÓN","Grupo de islas","El nombre del grupo de islas en que tiene lugar la ubicación\n\nEjemplo: \"Cayos de Albuquerque \""]
[null,"UBICACIÓN","Isla","El nombre de la isla en o cerca al lugar de la ubicación\n\nEjemplo: \"Isla de Providencia\""]
[null,"UBICACIÓN","País","El nombre del país o unidad administrativa de mayor jerarquía de la ubicación. Se recomienda utilizar un identificador persistente de un vocabulario controlado como el Tesauro Getty de Nombres Geográficos o la norma ISO 3166\n\nEjemplos: \"Dinamarca\", \"Colombia\", \"España\""]
[null,"UBICACIÓN","Código del país","El código estándar para el país de la ubicación. Se recomienda el uso de la norma ISO 3166-1-alfa-2 de códigos de países\n\nEjemplos: \"AR\" para Argentina, \"CO\" para Colombia"]
[null,"UBICACIÓN","Departamento","El nombre de la siguiente región administrativa de menor jerarquía que País (departamento) de la ubicación. Se recomienda usar  los nombres asignados en la División Política Administrativa de Colombia - DANE,  (http://www.dane.gov.co/Divipola) \n\nEjemplos: \"Antioquia\", \"Atlántico\", \"Chocó\""]
[null,"UBICACIÓN","Municipio","El nombre completo, sin abreviar de la siguiente región administrativa de menor jerarquía que Departamento de la ubicación (Municipio). Se recomienda usar  los nombres asignados en la División Política Administrativa de Colombia - DANE,  (http://www.dane.gov.co/Divipola) \n\nEjemplos: \"Medellín\", \"Apartadó\", \"Anolaima\""]
[null,"UBICACIÓN","Centro poblado / Cabecera municipal","El nombre completo, sin abreviar de la siguiente región administrativa de menor jerarquía que Municipio de la ubicación. No utilice este elemento para el nombre de un lugar cercano que no contiene la ubicación real. Puede ser un centro poblado, cabecera municipal, corregimiento o inspección de policía. Se recomienda usar  los nombres asignados en la División Política Administrativa de Colombia - DANE,  (http://www.dane.gov.co/Divipola) \n\nEjemplos: \"Patio Bonito\", \"Puerto Girón\", \"El Reposo\""]
[null,"UBICACIÓN","Localidad","La descripción específica del lugar. Información geográfica de menor especificidad puede ser provista en otros elementos geográficos (Geografía Superior, Continente, País, Departamento, Municipio, Centro poblado/Cabecera municipal, Cuerpo de Agua, Isla, Grupo Islas). Este elemento puede contener información modificada de la original para corregir errores o estandarizar la descripción\n\nEjemplos: \"kilometro 25 ruta del sol (=Ruta 237)\", \"finca los Arrayanes\""]
[null,"UBICACIÓN","Localidad original","La descripción textual original (como fue tomada) del lugar\n\nEjemplo: \"25 km Puerto Boyacá  por R. Sol 237\""]
[null,"UBICACIÓN","Elevación original","La descripción textual de la elevación (altitud, por lo general por encima del nivel del mar) de la Ubicación\n\nEjemplo: \"100-200 m\""]
[null,"UBICACIÓN","Elevación mínima en metros","El límite inferior del rango de elevación (altitud, generalmente por encima del nivel del mar), no utilice ningún indicador de unidad (metros, m) ya que el campo especifica que los valores anotados son en metros\n\nEjemplo: \"100\" "]
[null,"UBICACIÓN","Elevación máxima en metros","El límite superior del rango de elevación (altitud, generalmente por encima del nivel del mar), no utilice ningún indicador de unidad (metros, m) ya que el campo especifica que los valores anotados son en metros\n\nEjemplo: \"200\""]
[null,"UBICACIÓN","Profundidad original","La descripción textual de la profundidad bajo la superficie local\n\nEjemplo: \"100-200 m\""]
[null,"UBICACIÓN","Profundidad mínima en metros","La menor profundidad de un rango de profundidad, no utilice ningún indicador de unidad (metros, m) ya que el campo especifica que los valores anotados son en metros\n\nEjemplo: \"100\""]
[null,"UBICACIÓN","Profundidad máxima en metros","La mayor profundidad de un rango de profundidad, no utilice ningún indicador de unidad (metros, m) ya que el campo especifica que los valores anotados son en metros\n\nEjemplo: \"200\""]
[null,"UBICACIÓN","Distancia mínima de la superficie metros","La menor distancia en metros, en un rango de distancia desde una superficie de referencia en dirección vertical. Utilice valores positivos para las ubicaciones por encima de la superficie, valores negativos para ubicaciones por debajo. Si las medidas de profundidad son proporcionadas, la superficie de referencia es la ubicación determinada por la profundidad, de lo contrario la superficie de referencia es la ubicación dada por la elevación\n\nEjemplo: Para un evento entre 1.5 metros y 4.5 metros desde el fondo de un lago \"-1.5\""]
[null,"UBICACIÓN","Distancia máxima de la superficie metros","La mayor distancia en metros, en un rango de distancia desde una superficie de referencia en dirección vertical. Utilice valores positivos para las ubicaciones por encima de la superficie, valores negativos para las ubicaciones por debajo. Si las medidas de profundidad son proporcionadas, la superficie de referencia es la ubicación determinada por la profundidad, de lo contrario la superficie de referencia es la ubicación dada por la elevación\n\nEjemplo: Para un evento entre 1.5 metros y 4.5 metros desde el fondo de un lago \"-4.5\""]
[null,"UBICACIÓN","Ubicación de acuerdo con","La información sobre la fuente de la ubicación. Podría ser una publicación (gacetero), institución o grupo de individuos\n\nEjemplos: \"Tesauro Getty de Nombres Geográficos\", \"GADM\""]
[null,"UBICACIÓN","Comentarios de la ubicación","Comentarios o anotaciones sobre la ubicación\n\nEjemplo: \"Bajo agua desde 2005\""]
[null,"UBICACIÓN","Coordenadas originales","Las coordenadas espaciales textuales de la ubicación en su formato original. El elipsoide de las coordenadas, el datum geodésico, o el sistema de referencia espacial completo (SRS) para estas coordenadas, debe ser documentado en SRS original, y el sistema de coordenadas en Sistema original de coordenadas\n\nEjemplos: \"41 05 54S 121 05 34W\", \"17T 630000 4833400\""]
[null,"UBICACIÓN","Latitud original","La latitud textual de la ubicación. El elipsoide de coordenadas, el datum geodésico o el sistema de referencia espacial completo (SRS) para estas coordenadas debe ser documentado en SRS original, y el sistema de coordenadas en Sistema original de coordenadas\n\nEjemplo: \"41 05 56.03S\""]
[null,"UBICACIÓN","Longitud original","La longitud textual de la ubicación. El elipsoide de coordinadas, datum geodésico o el sistema de referencia espacial completo (SRS) para estas coordenadas, debe ser documentado en SRS Original y el sistema de coordenadas en Sistema original de coordenadas\n\nEjemplo: \"121d 10' 34\" W\""]
[null,"UBICACIÓN","Sistema original de coordenadas","El sistema de coordenadas espaciales para Latitud original y Longitud original o Coordenadas originales de la ubicación. Se recomienda el uso del vocabulario controlado disponible para este elemento\n\nEjemplos: \"grados decimales\", \"grados minutos decimales\", \"grados minutos segundos\", \"UTM\""]
[null,"UBICACIÓN","SRS original","El elipsoide, datum geodésico, o sistema de referencia espacial (SRS) en el que se basan las coordenadas provistas en Latitud original y Longitud original o Coordenadas originales. Se recomienda usar el código EPSG, si se conoce. Caso contrario, utilice un lenguaje controlado para el nombre o código del datum geodésico, o un vocabulario controlado para el nombre o código del elipsoide, si se conoce. Si ninguno de estos se conoce, utilice el valor \"desconocido\"\n\nEjemplos: \"EPSG:4326\", \"WGS84\", \"NAD27\", \"Campo Inchauspe\", \"European 1950\", \"Clarke 1866\""]
[null,"UBICACIÓN","Latitud decimal","La latitud geográfica (en grados decimales, utilizando el sistema de referencia espacial provisto en Datum geodésico) del centro geográfico de una ubicación. Los valores positivos se encuentran al norte del ecuador, los valores negativos están al sur del mismo. Los valores admitidos se encuentran entre -90 y 90\n\nEjemplo: \"-4.0983\""]
[null,"UBICACIÓN","Longitud decimal","La longitud geográfica (en grados decimales, mediante el sistema de referencia espacial provisto en Datum geodésico) del centro geográfico de una ubicación. Los valores positivos se encuentran al este del meridiano de Greenwich, los valores negativos se encuentran al oeste de la misma. Los valores admitidos se encuentran entre -180 y 180\n\nEjemplo: \"12.1761\""]
[null,"UBICACIÓN","Datum geodésico","El elipsoide, datum geodésico, o sistema de referencia espacial (SRS) en el que se basan las coordenadas geográficas provistas en Latitud decimal y Longitud decimal. Se recomienda usar el código EPSG, si se conoce. Caso contrario, utilice un lenguaje controlado para el nombre o código del datum geodésico, o utilice un lenguaje controlado para el nombre o código del elipsoide, si se conoce. Si ninguno de estos se conoce, utilice el valor \"desconocido\"\n\nEjemplos: \"EPSG:4326\", \"WGS84\", \"NAD27\", \"Campo Inchauspe\", \"European 1950\", \"Clarke 1866\""]
[null,"UBICACIÓN","Incertidumbre de las coordenadas en metros","La distancia horizontal (en metros) de la Latitud decimal y Longitud decimal provistas describiendo el círculo más pequeño que contiene la totalidad de la ubicación. Deje el valor vacío si la incertidumbre es desconocida, no se puede estimar, o no es aplicable (porque no hay coordenadas). Cero no es un valor válido para este elemento\n\nEjemplos: \"30\", \"71\""]
[null,"UBICACIÓN","Precisión de las coordenadas","Una representación decimal de la precisión de las coordenadas provistas en Latitud decimal y Longitud decimal\n\nEjemplos: \"0.00001\" (es límite normal de GPS para grados decimales), \"0.000278\" (es el segundo más próximo)"]
[null,"UBICACIÓN","Ajuste espacial del radio-punto","La relación entre el área del radio-punto (Latitud decimal, Longitud decimal e Incertidumbre de las coordenadas en metros) y el área de la verdadera (original, o más específica) representación espacial de la ubicación. Los valores válidos son 0, mayor que o igual a 1, o indefinido. Un valor de 1 es una coincidencia exacta o superposición de 100%. Un valor de 0 se debe utilizar si el radio-punto dado no contiene por completo la representación original. El Ajuste espacial del radio-punto no está definido (y se debe dejar en blanco) si la representación original es un punto sin incertidumbre y la georreferencia dada no es ese mismo punto (sin incertidumbre). Si tanto el original como la georreferencia dada están en el mismo punto, el Ajuste espacial del radio-punto es 1"]
[null,"UBICACIÓN","WKT footprint","Una representación Well-Known Text (WKT) de la forma (footprint, geometría) que define la ubicación. Una ubicación puede tener una representación de radio-punto (véase Latitud decimal) y una representación footprint, y pueden diferir entre sí\n\nEjemplo: El cuadrante de un grado con esquinas opuestas (longitud=10, latitud=20) y (longitud=11, latitud=21) debe ser expresado en well-known text como POLÍGONO ((10 20, 11 20, 11 21, 10 21, 10 20))"]
[null,"UBICACIÓN","SRS footprint","Una representación Well-Known Text (WKT) del sistema de referencia espacial (SRS) para WKT footprint de la ubicación. No utilice este elemento para describir el SRS de Latitud decimal y Longitud decimal, incluso si es la misma que para WKT footprint - utilice el Datum geodésico en su lugar\n\nEjemplo: El WKT para el estándar WGS84 SRS (EPSG:4326) es \"GEOGCS[\"GCS_WGS_1984\", DATUM[\"D_WGS_1984\", SPHEROID[\"WGS_1984\",6378137,298.257223563]], PRIMEM[\"Greenwich\",0], UNIT[\"Degree\",0.0174532925199433]]\" sin las comillas que lo encierran"]
[null,"UBICACIÓN","Ajuste espacial de footprint","La relación del área de footprint (WKT footprint) y el área de la verdadera (original, o más específica) representación espacial de la ubicación. Los valores válidos son 0, mayor que o igual a 1, o indefinido. Un valor de 1 es una coincidencia exacta o superposición de 100%. Un valor de 0 debe ser utilizado si el footprint dado no contiene la representación original completamente. El Ajuste espacial de footprint es indefinido (y se debe dejar en blanco) si la representación original es un punto y la georreferencia dada no es ese mismo punto. Si el original y la georreferencia dada son el mismo punto, el Ajuste espacial de footprint es 1."]
[null,"UBICACIÓN","Georreferenciado por","Una lista (en una fila continua y separada por “;”) de los nombres de las personas, grupos u organizaciones que determinaron la georreferencia (representación espacial) para la ubicación\n\nEjemplos: \"Kristina Yamamoto (MVZ); Janet Fang (MVZ)\", \"Brad Millen (ROM)\""]
[null,"UBICACIÓN","Fecha de georreferenciación","La fecha en que fue georreferenciada la ubicación. Se recomienda utilizar un esquema de codificación, tal como la norma ISO 8601, use el siguiente formato: AAAA-MM-DD o  AAAA-MM o AAAA"]
[null,"UBICACIÓN","Protocolo de georreferenciación","Una descripción o referencia a los métodos utilizados para determinar el footprint espacial, coordenadas, e incertidumbres\n\nEjemplos: \"Guide to Best Practices for Georeferencing\" (Chapman and Wieczorek, eds. 2006), “Global Biodiversity Information Facility.\", \"MaNIS/HerpNet/ORNIS Georeferencing Guidelines\", \"BioGeomancer\""]
[null,"UBICACIÓN","Fuentes de georreferenciación","Una lista (en una fila continua y separada por “;”) de los mapas, gaceteros, u otros recursos utilizados para georreferenciar la ubicación, lo suficientemente específica como para permitir que cualquier persona en el futuro utilice los mismos recursos\n\nEjemplos: \"USGS 1:24000 Florence Montana Quad; Terrametrics 2008 en Google Earth\""]
[null,"UBICACIÓN","Estado de la verificación de la georreferenciación","Una descripción categórica de la medida en que se ha verificado la georreferencia para representar, de la mejor manera, la descripción espacial. Se recomienda el uso del vocabulario controlado Estado de Verificación de la Georreferenciación (Véase Anexo 1. Vocabularios Controlados)\n\nEjemplos: \"Requiere verificación\", \"Verificado por colector\", \"Verificado por curador\""]
[null,"UBICACIÓN","Comentarios de la georreferenciación","Anotaciones o comentarios acerca de la determinación de la descripción espacial, los supuestos hechos que explican las adiciones formalizadas en el método referido en Protocolo de georreferenciación\n\nEjemplo: \"Distancia asumida del camino (Autopista 101)\""]
[null,"CONTEXTO\nGEOLÓGICO","ID del contexto geológico","Un identificador para el conjunto de la información asociada con un Contexto geológico (la ubicación dentro de un contexto geológico, tal como estratigrafía). Puede ser un identificador único global o un identificador específico para el conjunto de datos"]
[null,"CONTEXTO\nGEOLÓGICO","Eón temprano o eonotema inferior","El nombre completo del eón geocronológico más temprano o el eratema cronoestratigráfico más bajo, o el nombre informal (\"Precámbrico\") atribuible al horizonte estratigráfico donde se recolectó el objeto catalogado\n\nEjemplos: \"Fanerozoico\", \"Proterozoico\""]
[null,"CONTEXTO\nGEOLÓGICO","Eón tardío o eonotema superior","El nombre completo del eón geocronológico más tardío o el eratema cronoestratigráfico más alto posible, o el nombre informal (\"Precámbrico\") atribuible al horizonte estratigráfico donde se recolectó el objeto catalogado\n\nEjemplos: \"Fanerozoico\", \"Proterozoico\""]
[null,"CONTEXTO\nGEOLÓGICO","Era temprana o eratema inferior","El nombre completo de la era geocronológica más temprana o el eratema cronoestratigráfico más bajo, atribuible al horizonte estratigráfico donde se recolectó el objeto catalogado\n\nEjemplos: \"Cenozoico\", \"Mesozoico\""]
[null,"CONTEXTO\nGEOLÓGICO","Era tardía o eratema superior","El nombre completo de la era geocronológica más tardía o el eratema cronoestratigráfico más alto posible, atribuible al horizonte estratigráfico donde se recolectó el objeto catalogado\n\nEjemplos: \"Cenozoico\", \"Mesozoico\""]
[null,"CONTEXTO\nGEOLÓGICO","Periodo temprano o sistema inferior","El nombre completo del periodo geocronológico más temprano posible o el sistema cronoestratigráfico más bajo, atribuible al horizonte estratigráfico donde se recolectó el objeto catalogado\n\nEjemplos: \"Neógeno\", \"Terciario\", \"Cuaternario\""]
[null,"CONTEXTO\nGEOLÓGICO","Periodo tardío o sistema superior","El nombre completo del período geocronológico más tardío posible o del sistema cronoestratigráfico más alto, atribuible al horizonte estratigráfico donde se recolectó el objeto catalogado\n\nEjemplos: \"Neógeno\", \"Terciario\", \"Cuaternario\""]
[null,"CONTEXTO\nGEOLÓGICO","Época temprana o serie inferior","El nombre completo de la época geocronológica más temprana o la serie cronoestratigráfica más baja posible, atribuible al horizonte estratigráfico donde se recolectó el objeto catalogado\n\nEjemplos: \"Holoceno\", \"Pleistoceno\", \"Serie Ibexian\""]
[null,"CONTEXTO\nGEOLÓGICO","Época tardía o serie superior","El nombre completo de la época geocronológica más tardía posible o la serie cronoestratigráfica más alta, atribuible al horizonte estratigráfico donde se recolectó el objeto catalogado\n\nEjemplos: \"Holoceno\", \"Pleistoceno\", \"Serie Ibexian\""]
[null,"CONTEXTO\nGEOLÓGICO","Edad temprana o piso inferior","El nombre completo de la edad geocronológica más temprana posible o piso cronoestratigráfico más bajo, atribuible al horizonte estratigráfico donde se recolectó el objeto catalogado\n\nEjemplos: \"Atlántico\", \"Boreal\""]
[null,"CONTEXTO\nGEOLÓGICO","Edad tardía o piso superior","El nombre completo de la edad geocronológica más tardía posible o piso cronoestratigráfico más alto, atribuible al horizonte estratigráfico donde se recolectó el objeto catalogado\n\nEjemplos: \"Atlántico\", \"Boreal\""]
[null,"CONTEXTO\nGEOLÓGICO","Zona bioestratigráfica inferior","El nombre completo de la zona geológica bioestratigráfica más baja posible del horizonte estratigráfico donde se recolectó el objeto catalogado"]
[null,"CONTEXTO\nGEOLÓGICO","Zona bioestratigráfica superior","El nombre completo de la zona geológica bioestratigráfica más alta posible del horizonte estratigráfico donde se recolectó el objeto catalogado"]
[null,"CONTEXTO\nGEOLÓGICO","Términos litoestratigráficos","La combinación de todos los nombres litoestratigráficos de la roca de donde se colectó el objeto catalogado"]
[null,"CONTEXTO\nGEOLÓGICO","Grupo","El nombre completo del grupo litoestratigráfico del cual se colectó el objeto catalogado"]
[null,"CONTEXTO\nGEOLÓGICO","Formación","El nombre completo de la formación litoestratigráfica de la cual se colectó el objeto catalogado"]
[null,"CONTEXTO\nGEOLÓGICO","Miembro","El nombre completo del miembro litoestratigráfico del cual se colectó el elemento catalogado"]
[null,"CONTEXTO\nGEOLÓGICO","Capa","El nombre completo de la capa litoestratigráfica de la cual se colectó el elemento catalogado"]
[null,"IDENTIFICACIÓN","ID de la identificación","Un identificador para la identificación (el cuerpo de la información asociada con la asignación de un nombre científico). Puede ser un identificador único global o un identificador específico para el conjunto de datos"]
[null,"IDENTIFICACIÓN","Identificado por","Una lista (en una fila continua y separada por “;”) de los nombres de las personas, grupos u organizaciones que identificaron la entidad biológica\n\nEjemplos: \"James L. Patton\", \"Theodore Pappenfuss; Robert Macey\""]
[null,"IDENTIFICACIÓN","Fecha de identificación","La fecha en que fue identificada la entidad biológica como representativa del taxón. Se recomienda utilizar un esquema de codificación, como la norma ISO 8601\nEjemplo: \"1963-03-08\" es 8 de marzo de 1963, \"1906-06\" es junio de 1906, \"1971\" es justo ese año, \"2007-03-01/2008-05-11\" es el intervalo entre el 1 de marzo de 2007 y 11 de mayo de 2008, \"2007-11-13/15\" es el intervalo entre el 13 de noviembre de 2007 y 15 de noviembre de 2007"]
[null,"IDENTIFICACIÓN","Referencias de la identificación","Una lista (en una fila continua y separada por \";\") de las referencias (publicación, identificador único global, URI) usadas en la identificación\n\nEjemplo: \"Aves del Noroeste Patagónico. Christie et al. 2004.\""]
[null,"IDENTIFICACIÓN","Estado de la verificación de la identificación","Un indicador categórico del alcance de la verificación de la identificación taxonómica. Se recomienda el uso de un vocabulario controlado, como los usados en HISPID/ABCD\n\nEjemplos: \"0\", \"4\""]
[null,"IDENTIFICACIÓN","Comentarios de la Identificación","Comentarios o notas sobre la identificación\n\nEjemplo: Se distingue entre Anthus correndera y Anthus hellmayri basado en las longitudes comparativas de las uñas"]
[null,"IDENTIFICACIÓN","Calificador de la identificación","Una breve frase o término estándar (\"cf.\",\"aff.\") para expresar las dudas del determinador sobre la identificación\n\nEjemplo: Para \"Quercus aff. agrifolia var. oxyadenia\", el Calificador de la identificación sería \"aff. agrifolia var. oxyadenia\" con valores acompañantes \"Quercus\" en Género, \"agrifolia\" en Epíteto específico, \"oxyadenia\" en Epíteto infraespecífico, y \"var.\" en Categoría taxonómica"]
[null,"IDENTIFICACIÓN","Estado del tipo","Una lista (en una fila continua y separada por \";\") de los tipos de nomenclatura (estado del tipo, nombre científico tipificado, publicación) aplicados a la entidad biológica. Se recomienda el uso del vocabulario controlado Estado del Tipo\n\nEjemplo: \"holotipo de Ctenomys sociabilis. Pearson O. P., y M. I. Christie. 1985. Historia Natural, 5(37):388\""]
[null,"TAXÓN","ID del taxón","Un identificador para el conjunto de información del taxón (datos asociados a la clase del Taxón). Puede ser un identificador único global o un identificador específico para el conjunto de datos.\n\nEjemplos: \"8fa58e08-08de-4ac1-b69c-1235340b7001\", \"32567\", \"http://species.gbif.org/abies_alba_1753\", \"urn:lsid:gbif.org:usages:32567\""]
[null,"TAXÓN","ID del nombre científico","Un identificador de los detalles de la nomenclatura (no taxonómica) de un nombre científico.\n\nEjemplo: \"urn:lsid:ipni.org:names:37829-1:1.3\"."]
[null,"TAXÓN","ID del nombre aceptado usado","Un identificador para el uso del nombre (significado del nombre, documentado de acuerdo con alguna fuente) del taxón actualmente válido (zoológico) o aceptado (botánico)\n\nEjemplo: \"8fa58e08-08de-4ac1-b69c-1235340b7001\""]
[null,"TAXÓN","ID del nombre parental usado","Un identificador para el uso del nombre (significado documentado del nombre de acuerdo con una fuente) del taxón parental directo, más próximo de nivel superior (en una clasificación) del elemento más específico de Nombre científico\n\nEjemplo: \"8fa58e08-08de-4ac1-b69c-1235340b7001\""]
[null,"TAXÓN","ID del nombre original usado","Un identificador para el uso del nombre (significado documentado del nombre de acuerdo con una fuente) en el que se estableció originalmente, el elemento terminal de Nombre científico bajo las reglas del Código Nomenclatural asociado\n\nEjemplo: \"http://species.gbif.org/abies_alba_1753\""]
[null,"TAXÓN","ID del nombre de acuerdo con","Un identificador de la fuente en la que está definida o implícita la circunscripción conceptual del taxón específico. Véase \"Nombre de acuerdo con\"\n\nEjemplo: \"doi:10.1016/S0269-915X(97)80026-2\""]
[null,"TAXÓN","ID del nombre publicado en","Un identificador de la publicación en que se estableció originalmente el Nombre científico bajo las reglas del Código Nomenclatural asociado\n\nEjemplo: \"http://hdl.handle.net/10199/7\""]
[null,"TAXÓN","ID del concepto del taxón","Un identificador para el concepto taxonómico al que se refiere el registro, no para los detalles de nomenclatura de un taxón\n\nEjemplo: \"8fa58e08-08de-4ac1-b69c-1235340b7001\""]
[null,"TAXÓN","Nombre científico","El nombre científico completo, con información de autoría y fecha si se conoce. Al formar parte de una identificación, este debe ser el nombre en la categoría del taxón de menor nivel que pueda ser determinado. Este elemento no debe contener calificadores de identificación, estos deberían ser suministrados en el elemento \"Calificador de la identificación\"\n\nEjemplos: \"Vespertilionidae\" (Familia), \"Manis\" (Género), \"Roptrocerus typographi (Györfi, 1952)\" (Género + Epíteto específico + Autoría nombre científico), \"Quercus agrifolia var. oxyadenia (Torr.) J.T. Howell\" (Género + Epíteto específico + Categoría taxonómica + Epíteto infraespecífico + Autoría nombre científico)."]
[null,"TAXÓN","Nombre aceptado usado","El nombre completo, con autoría e información de fecha si se conoce, del taxón actualmente válido (zoológico) o aceptado (botánico)\n\nEjemplos: \"Tamias minimus\" nombre válido para \"Eutamias minimus\""]
[null,"TAXÓN","Nombre parental usado","El nombre completo, con información de autoría y fecha si se conoce, del taxón parental directo más próximo de nivel superior (en una clasificación) del elemento más específico de Nombre científico\n\nEjemplos: \"Rubiaceae\", \"Gruiformes\", \"Testudinae\""]
[null,"TAXÓN","Nombre original usado","El nombre del taxón, con información de autoría y fecha si se conoce, tal como apareció originalmente cuando se estableció por primera vez bajo las reglas del Código Nomenclatural asociado. El basiónimo (botánica) o basónimo (bacteriología) de Nombre científico o el homónimo anterior de los nombres sustituidos\n\nEjemplos: \"Pinus abies\", \"Gasterosteus saltatrix Linnaeus 1768\""]
[null,"TAXÓN","Nombre de acuerdo con","La referencia a la fuente en la que está definida o implícita la circunscripción conceptual del taxón, tradicionalmente representado por el Latín \"sensu\" o \"sec.\" (de secundum, que significa \"según\"). Para los taxones que resultan de las identificaciones, una referencia a las claves, monografías, expertos y otras fuentes debe ser provista\n\nEjemplo: \"McCranie, J. R., D. B. Wake, and L. D. Wilson. 1996. The taxonomic status of Bolitoglossa schmidti, with comments on the biology of the Mesoamerican salamander Bolitoglossa dofleini (Caudata: Plethodontidae). Carib. J. Sci. 32:395-398.\""]
[null,"TAXÓN","Nombre publicado en","Una referencia para la publicación en que se estableció originalmente el Nombre científico bajo las reglas del Código Nomenclatural asociado\n\nEjemplos: \"Pearson O. P., and M. I. Christie. 1985. Historia Natural, 5(37):388\", \"Forel, Auguste, Diagnosies provisoires de quelques espèces nouvelles de fourmis de Madagascar, récoltées par M. Grandidier., Annales de la Societe Entomologique de Belgique, Comptes-rendus des Seances 30, 1886\"."]
[null,"TAXÓN","Nombre publicado en el año","El año de cuatro dígitos en el que se publicó el Nombre científico\n\nEjemplos: \"1915\", \"2008\""]
[null,"TAXÓN","Clasificación superior","Una lista de los nombres de los taxones que terminan en la categoría inmediatamente superior al del taxón de referencia en el registro del taxón. Se recomienda ordenar la lista comenzando con la categoría más alta y separando los nombres de cada categoría, con un punto y coma (\";\").\n\nEjemplo: \"Animalia;Chordata;Vertebrata;Mammalia;Theria;Eutheria;Rodentia;Hystricognatha;Hystricognathi;Ctenomyidae;Ctenomyini;Ctenomys\""]
[null,"TAXÓN","Reino","El nombre científico completo del reino al que pertenece el taxón\n\nEjemplos: \"Animalia\", \"Plantae\""]
[null,"TAXÓN","Filo","El nombre científico completo del filo o división al que pertenece el taxón\n\nEjemplos: \"Chordata\" (filo), \"Bryophyta\" (división)"]
[null,"TAXÓN","Clase","El nombre científico completo de la clase al que pertenece el taxón\n\nEjemplos: \"Mammalia\", \"Hepaticopsida\""]
[null,"TAXÓN","Orden","El nombre científico completo del orden al que pertenece el taxón\n\nEjemplos: \"Carnivora\", \"Monocleales\""]
[null,"TAXÓN","Familia","El nombre científico completo de la familia al que pertenece el taxón\n\nEjemplos: \"Felidae\", \"Monocleaceae\""]
[null,"TAXÓN","Género","El nombre científico completo del género al que pertenece el taxón\n\nEjemplos: \"Puma\", \"Monoclea\""]
[null,"TAXÓN","Subgénero","El nombre científico completo del subgénero al que pertenece el taxón. Los valores deben incluir el género para evitar la confusión de homonimia\n\nEjemplos: \"Strobus (Pinus)\", \"Puma (Puma)\" \"Loligo (Amerigo)\", \"Hieracium subgen. Pilosella\""]
[null,"TAXÓN","Epíteto específico","El nombre del epíteto específico de Nombre científico\n\nEjemplos: \"concolor\", \"gottschei\""]
[null,"TAXÓN","Epíteto infraespecífico","El nombre con la categoría de taxón más baja o más especifica por debajo del epíteto específico (parte terminal del nombre), excluyendo cualquier otra denominación de categoría\n\nEjemplos: para el nombre científico \"Carex viridula subsp. brachyrrhyncha var. elatior\" el Epíteto infraespecífico será \"elatior\""]
[null,"TAXÓN","Categoría del taxón","La clasificación taxonómica del nombre más específico en el Nombre científico. Se recomienda el uso del vocabulario controlado Categoría del Taxón\n\nEjemplos: \"subespecie\", \"variedad\", \"forma\", \"especie\", \"género\""]
[null,"TAXÓN","Categoría original del taxón","La categoría del taxón del nombre más específico en un nombre científico tal y como aparece en el registro original\n\nEjemplos: “Agamoespecie”, “sub-lesus”, “prole”, “apomíctica”, “nothogrex”, “sp.”, \"subsp.\", \"var.\""]
[null,"TAXÓN","Autoría del nombre científico","La información de autoría del Nombre científico formateado de acuerdo a las convenciones del Código Nomenclatural aplicable\n\nEjemplos: \"(Torr.) J.T. Howell\", \"(Martinovský) Tzvelev\", \"(Györfi, 1952)\""]
[null,"TAXÓN","Nombre común","El nombre o nombres comunes del taxón\n\nEjemplos: \"Cóndor Andino\", \"Águila Americana\", \"Buitre, Chulo\""]
[null,"TAXÓN","Código nomenclatural","El código nomenclatural (o códigos en el caso de un nombre ambireinal) en virtud del cual se construye el Nombre científico. Se recomienda el uso del vocabulario controlado Código nomenclatural\n\nEjemplos: \"ICBN\", \"ICZN\", \"BC\", \"ICNCP\", \"BioCode\", \"ICZN; ICBN\""]
[null,"TAXÓN","Estado taxonómico","El estado de la utilización de Nombre científico como una etiqueta para un taxón. Requiere opinión taxonómica para definir el alcance de un taxón. Dado lo anterior, se utilizan reglas de prioridad para definir el estado taxonómico de la nomenclatura contenida en ese enfoque, junto con la opinión de los expertos. Debe estar vinculado a una referencia sobre taxonomía específica que defina el concepto. Se recomienda el uso del vocabulario controlado Estado taxonómico\n\nEjemplos: \"Inválido\", \"Mal aplicado\", \"Sinonimia homotípica\", \"Aceptado\""]
[null,"TAXÓN","Estado nomenclatural","El estado relacionado con la publicación original del nombre y su conformidad con las normas pertinentes de nomenclatura. Se basa esencialmente en un algoritmo de acuerdo con las reglas de negociación del código. No requiere opinión taxonómica\n\nEjemplos: \"nom. ambig.\", \"nom. illeg.\", \"nom. subnud.\""]
[null,"TAXÓN","Comentarios del taxón","Comentarios o notas sobre el taxón o nombre\n\nEjemplo: \"Este nombre está mal escrito en uso común\""]

{"sheet":"EncabezadosStandard","index":4,"n_rows":3,"n_cols":173,"rows_kept":3,"cut":false,"hidden":false,"merged":[]}
["occurrenceID","basisOfRecord","institutionCode","collectionCode","catalogNumber","type","modified","language","rights","rightsHolder","accessRights","bibliographicCitation","references","institutionID","collectionID","datasetID","datasetName","ownerInstitutionCode","informationWithheld","dataGeneralizations","dynamicProperties","occurrenceRemarks","recordNumber","recordedBy","individualID","individualCount","sex","lifeStage","reproductiveCondition","behavior","establishmentMeans","occurrenceStatus","preparations","disposition","otherCatalogNumbers","previousIdentifications","associatedMedia","associatedReferences","associatedOccurrences","associatedSequences","associatedTaxa","eventID","samplingProtocol","samplingEffort","eventDate","eventTime","startDayOfYear","endDayOfYear","year","month","day","verbatimEventDate","habitat","fieldNumber","fieldNotes","eventRemarks","locationID","higherGeographyID","higherGeography","continent","waterBody","islandGroup","island","country","countryCode","stateProvince","municipality","county","locality","verbatimLocality","verbatimElevation","minimumElevationInMeters","maximumElevationInMeters","verbatimDepth","minimumDepthInMeters","maximumDepthInMeters","minimumDistanceAboveSurfaceInMeters","maximumDistanceAboveSurfaceInMeters","locationAccordingTo","locationRemarks","verbatimCoordinates","verbatimLatitude","verbatimLongitude","verbatimCoordinateSystem","verbatimSRS","decimalLatitude","decimalLongitude","geodeticDatum","coordinateUncertaintyInMeters","coordinatePrecision","pointRadiusSpatialFit","footprintWKT","footprintSRS","footprintSpatialFit","georeferencedBy","georeferencedDate","georeferenceProtocol","georeferenceSources","georeferenceVerificationStatus","georeferenceRemarks","geologicalContextID","earliestEonOrLowestEonothem","latestEonOrHighestEonothem","earliestEraOrLowestErathem","latestEraOrHighestErathem","earliestPeriodOrLowestSystem","latestPeriodOrHighestSystem","earliestEpochOrLowestSeries","latestEpochOrHighestSeries","earliestAgeOrLowestStage","latestAgeOrHighestStage","lowestBiostratigraphicZone","highestBiostratigraphicZone","lithostratigraphicTerms","group","formation","member","bed","identificationID","identifiedBy","dateIdentified","identificationReferences","identificationVerificationStatus","identificationRemarks","identificationQualifier","typeStatus","taxonID","scientificNameID","acceptedNameUsageID","parentNameUsageID","originalNameUsageID","nameAccordingToID","namePublishedInID","taxonConceptID","scientificName","acceptedNameUsage","parentNameUsage","originalNameUsage","nameAccordingTo","namePublishedIn","namePublishedInYear","higherClassification","kingdom","phylum","class","order","family","genus","subgenus","specificEpithet","infraspecificEpithet","taxonRank","verbatimTaxonRank","scientificNameAuthorship","vernacularName","nomenclaturalCode","taxonomicStatus","nomenclaturalStatus","taxonRemarks","APHIAID","CLAVE","DOI","ECORREGION","ENTIDAD_FUENTE","ID_PROYECTO","ID_REG","NIVEL_TAXONOMICO","NODOS_ACTIVOS","PHOTO_ID","ZONA_PROTEGIDA","ZOTERO_GRUPO","ZOTERO_ID","TIPO_REGISTRO"]
["ID del registro biológico","Base del registro","Código de la institución","Código de la colección","Número de catálogo","Tipo","Modificado","Idioma","Derechos","Titular de los derechos","Derechos de acceso","Citación bibliográfica","Referencias","ID de la institución","ID de la colección","ID del conjunto de datos","Nombre del conjunto de datos","Código de la institución propietaria","Información retenida","Generalización de los datos","Propiedades dinámicas","Comentarios del registro biológico","Número de registro","Registrado por","ID del individuo","Número de individuos","Sexo","Etapa de vida","Condición reproductiva","Comportamiento","Medios de establecimiento","Estado del registro biológico","Preparaciones","Disposición","Otros números de catálogo","Identificaciones previas","Medios asociados","Referencias asociadas","Registros biológicos asociados","Secuencias asociadas","Taxones asociados","ID del evento","Protocolo de muestreo","Esfuerzo de muestreo","Fecha del evento","Hora del evento","Día inicial del año","Día final del año","Año","Mes","Día","Fecha original del evento","Hábitat","Número de campo","Notas de campo","Comentarios del evento","ID de la ubicación","ID de la geografía superior","Geografía superior","Continente","Cuerpo de agua","Grupo de islas","Isla","País","Código del país","Departamento","Municipio","Centro poblado / Cabecera municipal","Localidad","Localidad original","Elevación original","Elevación mínima en metros","Elevación máxima en metros","Profundidad original","Profundidad mínima en metros","Profundidad máxima en metros","Distancia mínima de la superficie metros","Distancia máxima de la superficie metros","Ubicación de acuerdo con","Comentarios de la ubicación","Coordenadas originales","Latitud original","Longitud original","Sistema original de coordenadas","SRS original","Latitud decimal","Longitud decimal","Datum geodésico","Incertidumbre de las coordenadas en metros","Precisión de las coordenadas","Ajuste espacial del radio-punto","WKT footprint","SRS footprint","Ajuste espacial de footprint","Georreferenciado por","Fecha de georreferenciación","Protocolo de georreferenciación","Fuentes de georreferenciación","Estado de la verificación de la georreferenciación","Comentarios de la georreferenciación","ID del contexto geológico","Eón temprano o eonotema inferior","Eón tardío o eonotema superior","Era temprana o eratema inferior","Era tardía o eratema superior","Periodo temprano o sistema inferior","Periodo tardío o sistema superior","Época temprana o serie inferior","Época tardía o serie superior","Edad temprana o piso inferior","Edad tardía o piso superior","Zona bioestratigráfica inferior","Zona bioestratigráfica superior","Términos litoestratigráficos","Grupo","Formación","Miembro","Capa","ID de la identificación","Identificado por","Fecha de identificación","Referencias de la identificación","Estado de la verificación de la identificación","Comentarios de la Identificación","Calificador de la identificación","Estado del tipo","ID del taxón","ID del nombre científico","ID del nombre aceptado usado","ID del nombre parental usado","ID del nombre original usado","ID del nombre de acuerdo con","ID del nombre publicado en","ID del concepto del taxón","Nombre científico","Nombre aceptado usado","Nombre parental usado","Nombre original usado","Nombre de acuerdo con","Nombre publicado en","Nombre publicado en el año","Clasificación superior","Reino","Filo","Clase","Orden","Familia","Género","Subgénero","Epíteto específico","Epíteto infraespecífico","Categoría del taxón","Categoría original del taxón","Autoría del nombre científico","Nombre común","Código nomenclatural","Estado taxonómico","Estado nomenclatural","Comentarios del taxón"]
["occurrenceID","basisOfRecord","institutionCode","collectionCode","catalogNumber","type","modified","language_dc","rights","rightsHolder","accessRights","bibliographicCitation","references","institutionID","collectionID","datasetID","datasetName","ownerInstitutionCode","informationWithheld","dataGeneralizations","dynamicProperties","occurrenceRemarks","recordNumber","recordedBy","individualID","individualCount","sex","lifeStage","reproductiveCondition","behavior","establishmentMeans","occurrenceStatus","preparations","disposition","otherCatalogNumbers","previousIdentifications","associatedMedia","associatedReferences","associatedOccurrences","associatedSequences","associatedTaxa","eventID","samplingProtocol","samplingEffort","eventDate","eventTime","startDayOfYear","endDayOfYear","year_dc","month_dc","day_dc","verbatimEventDate","habitat","fieldNumber","fieldNotes","eventRemarks","locationID","higherGeographyID","higherGeography","continent","waterBody","islandGroup","island","country","countryCode","stateProvince","municipality","county","locality","verbatimLocality","verbatimElevation","minimumElevationInMeters","maximumElevationInMeters","verbatimDepth","minimumDepthInMeters","maximumDepthInMeters","minimumDistanceAboveSurfaceInMeters","maximumDistanceAboveSurfaceInMeters","locationAccordingTo","locationRemarks","verbatimCoordinates","verbatimLatitude","verbatimLongitude","verbatimCoordinateSystem","verbatimSRS","decimalLatitude","decimalLongitude","geodeticDatum","coordinateUncertaintyInMeters","coordinatePrecision","pointRadiusSpatialFit","footprintWKT","footprintSRS","footprintSpatialFit","georeferencedBy","georeferencedDate","georeferenceProtocol","georeferenceSources","georeferenceVerificationStatus","georeferenceRemarks","geologicalContextID","earliestEonOrLowestEonothem","latestEonOrHighestEonothem","earliestEraOrLowestErathem","latestEraOrHighestErathem","earliestPeriodOrLowestSystem","latestPeriodOrHighestSystem","earliestEpochOrLowestSeries","latestEpochOrHighestSeries","earliestAgeOrLowestStage","latestAgeOrHighestStage","lowestBiostratigraphicZone","highestBiostratigraphicZone","lithostratigraphicTerms","group_dc","formation","member_dc","bed","identificationID","identifiedBy","dateIdentified","identificationReferences","identificationVerificationStatus","identificationRemarks","identificationQualifier","typeStatus","taxonID","scientificNameID","acceptedNameUsageID","parentNameUsageID","originalNameUsageID","nameAccordingToID","namePublishedInID","taxonConceptID","scientificName","acceptedNameUsage","parentNameUsage","originalNameUsage","nameAccordingTo","namePublishedIn","namePublishedInYear","higherClassification","kingdom","phylum","class_dc","order_dc","family","genus","subgenus","specificEpithet","infraspecificEpithet","taxonRank","verbatimTaxonRank","scientificNameAuthorship","vernacularName","nomenclaturalCode","taxonomicStatus","nomenclaturalStatus","taxonRemarks","APHIAID","CLAVE","DOI","ECORREGION","ENTIDAD_FUENTE","ID_PROYECTO","ID_REG","NIVEL_TAXONOMICO","NODOS_ACTIVOS","PHOTO_ID","ZONA_PROTEGIDA","ZOTERO_GRUPO","ZOTERO_ID","TIPO_REGISTRO"]

{"sheet":"Vocabulario","index":5,"n_rows":110,"n_cols":6,"rows_kept":110,"cut":false,"hidden":false,"merged":[[86,5,109,5],[14,1,18,1],[53,5,55,5],[57,5,61,5],[63,5,68,5],[70,5,76,5],[78,5,84,5],[78,1,84,1],[86,1,109,1],[3,5,12,5],[20,5,25,5],[27,5,32,5],[45,5,51,5],[34,5,43,5],[14,5,18,5],[1,1,1,4],[3,1,12,1],[27,1,32,1],[20,1,25,1],[70,1,76,1],[63,1,68,1],[57,1,61,1],[53,1,55,1],[45,1,51,1],[34,1,43,1],[3,0,12,0],[14,0,19,0],[20,0,25,0],[27,0,32,0],[45,0,51,0],[86,0,109,0],[53,0,55,0],[57,0,61,0],[63,0,68,0],[70,0,76,0],[78,0,84,0]]}
[]
[null,"Vocabulario"]
[]
[null,"Base del registro",null,"Registro biológico",null,"«"]
[null,null,null,"Evento"]
[null,null,null,"Ubicación"]
[null,null,null,"Taxón"]
[null,null,null,"Espécimen preservado","El organismo esta preservado (muerto), vivió dentro de tiempos históricos y  existe (o alguna vez existió) una parte física que podría ser evaluada nuevamente"]
[null,null,null,"Espécimen fosilizado","El organismo vivió dentro de tiempos prehistóricos y  existe (o alguna vez existió) una parte física que podría ser evaluada nuevamente"]
[null,null,null,"Espécimen vivo","Existe un espécimen disponible, se encuentra vivo (crece o metaboliza, no es una parte dormante de un Espécimen preservado) al menos cuando se creo el recurso"]
[null,null,null,"Observación humana","El registro fue documentado sin recolectar evidencia física o digital que pudiera ser evaluada nuevamente"]
[null,null,null,"Observación con máquina","El registro fue documentado recolectando evidencia física o digital que pudiera ser evaluada nuevamente. Fotografías, video o sonidos"]
[null,null,null,"Lista chequeo nomenclatural"]
[]
[null,"Tipo",null,"Objeto físico",null,"«"]
[null,null,null,"Imagen estática","Una fotografía, ilustración, etcétera"]
[null,null,null,"Imagen en movimiento","Una secuencia de imágenes fijas tomadas a intervalos regulares que se reproduce como imagen en movimiento, puede incluir sonido"]
[null,null,null,"Sonido","Una grabación o registro de audio"]
[null,null,null,"Evento"]
[]
[null,"Estado del registro\nbiológico",null,"Presente","Existe al menos un registro bien documentado de la presencia del taxón en el área","«"]
[null,null,null,"Ausente","Existe evidencia para documentar la ausencia del taxón en el área"]
[null,null,null,"Común","El taxón ha sido observado con frecuencia en el área"]
[null,null,null,"Irregular","La presencia del taxón varía episódicamente en el área"]
[null,null,null,"Raro","El taxón ha sido observado con poca frecuencia en el área"]
[null,null,null,"Dudoso","Se presume la presencia del taxón en el área, pero hay incertidumbre sobre la evidencia, incluyendo imprecisiones taxonómicas o geográficas en los registros"]
[]
[null,"Sexo",null,"Desconocido",null,"«"]
[null,null,null,"Indeterminado"]
[null,null,null,"Hembra"]
[null,null,null,"Macho"]
[null,null,null,"Hermafrodita"]
[null,null,null,"Ginandromorfo"]
[]
[null,"Etapa de vida",null,"Cigoto",null,"«"]
[null,null,null,"Embrión"]
[null,null,null,"Larva"]
[null,null,null,"Juvenil"]
[null,null,null,"Adulto"]
[null,null,null,"Esporófito"]
[null,null,null,"Espora"]
[null,null,null,"Gametofito"]
[null,null,null,"Gameto"]
[null,null,null,"Pupa"]
[]
[null,"Continente",null,"AF","África","«"]
[null,null,null,"AS","Asia"]
[null,null,null,"EU","Europa"]
[null,null,null,"NA","Norteamérica"]
[null,null,null,"SA","Sudamérica"]
[null,null,null,"OC","Oceanía"]
[null,null,null,"AN","Antártida"]
[]
[null,"Estado de verificación \nde la georreferenciación\n",null,"Sin verificación",null,"«"]
[null,null,null,"Verificado por el custodio de los datos"]
[null,null,null,"Verificado por el proveedor de los datos"]
[]
[null,"Sistema original \nde coordenadas",null,"Grados decimales",null,"«"]
[null,null,null,"Grados, minutos decimales"]
[null,null,null,"Grados, minutos, segundos"]
[null,null,null,"UTM","Sistema de Coordenadas Universal Transversal de Mercator "]
[null,null,null,"CRTM","Costa Rica Transversal de Mercator"]
[]
[null,"Código \nnomenclatural",null,"BC","Código Internacional de Nomenclatura de Bacterias","«"]
[null,null,null,"BioCode","Biocódigo"]
[null,null,null,"ICBN","Código Internacional de Nomenclatura Botánica "]
[null,null,null,"ICNCP","Código Internacional de Nomenclatura para Plantas Cultivadas"]
[null,null,null,"ICZN","Código Internacional de Nomenclatura Zoológica"]
[null,null,null,"PhyloCode","Clasificación filogenética"]
[]
[null,"Estado del tipo",null,"Holotipo",null,"«"]
[null,null,null,"Paratipo"]
[null,null,null,"Neotipo"]
[null,null,null,"Sintipo"]
[null,null,null,"Lectotipo"]
[null,null,null,"Paralectotipo"]
[null,null,null,"Hapantotipo"]
[]
[null,"Estado \ntaxonómico",null,"Aceptado","Botánico","«"]
[null,null,null,"Válido","Zoológico"]
[null,null,null,"Inválido"]
[null,null,null,"Sinónimo","No se sabe si es homo- o heterotípico"]
[null,null,null,"Sinónimo homotípico","Objetivo"]
[null,null,null,"Sinónimo heterotípico","Subjetivo"]
[null,null,null,"Nombre mal aplicado"]
[]
[null,"Categoría \ndel taxón",null,"Reino",null,"«"]
[null,null,null,"Subreino"]
[null,null,null,"Filo o División"]
[null,null,null,"Subfilo o Subdivisión"]
[null,null,null,"Clase"]
[null,null,null,"Subclase"]
[null,null,null,"Orden"]
[null,null,null,"Suborden"]
[null,null,null,"Familia"]
[null,null,null,"Subfamilia"]
[null,null,null,"Tribu"]
[null,null,null,"Subtribu"]
[null,null,null,"Género"]
[null,null,null,"Subgénero"]
[null,null,null,"Sección"]
[null,null,null,"Subsección"]
[null,null,null,"Serie"]
[null,null,null,"Subserie"]
[null,null,null,"Especie"]
[null,null,null,"Subespecie"]
[null,null,null,"Variedad"]
[null,null,null,"Subvariedad"]
[null,null,null,"Forma"]
[null,null,null,"Subforma"]

{"sheet":"Instrucciones","index":6,"n_rows":22,"n_cols":4,"rows_kept":22,"cut":false,"hidden":false,"merged":[[2,2,2,4],[20,2,20,3],[19,2,19,3],[21,2,21,3],[3,2,3,3],[5,2,5,3],[7,2,7,3],[4,2,4,4],[6,2,6,4],[9,3,9,4],[11,3,11,4],[13,3,13,4],[15,3,15,4],[17,3,17,4]]}
[]
[]
[null,null,"Plantilla para la documentación de registros biológicos \nbasada en el estándar Darwin Core"]
[null,null,"Contenido "]
[null,null,"Esta plantilla esta basada en el estándar Darwin Core (versión 2011-10-26). Contiene 159 elementos que son de utilidad al momento de documentar registros biológicos, de los cuales solo cinco son obligatorios. El conjunto de elementos fue elaborado por Biodiversity Information Standards (TDWG, 2010)"]
[null,null,"Instrucciones"]
[null,null,"Antes de iniciar el proceso  se recomienda fuertemente  observar el video \"Proceso de publicación de un recurso en el IPT\" disponible aqui. \nEn la pestaña Plantilla cada uno de los elementos debe interpretarse como una columna, se sugiere que documente solo aquellas columnas de las que posea información o pueda inferirla. Por favor, elimine las columnas que no necesite. Las celdas de la primera fila indican el nombre del elemento, al hacer clic será redirigido a la hoja Definiciones la cual contiene la definición y en la mayoría de casos ejemplos del campo seleccionado. "]
[null,null,"Convenciones"]
[]
[null,null,"Elemento DwC","Elemento obligatorio para la publicación de los registros a través del SiB Colombia"]
[]
[null,null,"Elemento DwC","Elemento que aunque no es obligatorio, es básico o recomendado en la documentación de un buen registro"]
[]
[null,null,"Elemento DwC","Elemento opcional que puede documentarse si posee la información o si el publicador lo desea"]
[]
[null,null,null,"Haga clic desde cualquier hoja para regresar a la plantilla"]
[]
[null,null,null,"Haga clic desde la hoja Definiciones para acceder al vocabulario controlado"]
[]
[null,null,"Este documento se publica bajo una licencia Creative Commons Attribution 3.0"]
[null,null,"Beltrán N., Escobar D. 2013. Plantilla para la documentación de registros biológicos basada\nen el estándar Darwin Core (versión 2011-10-26). Sistema de Información sobre Biodiversidad\nde Colombia. Versión 3.0. Bogotá D.C. "]
[null,null,"Ultima revisión: Noviembre de 2013"]